Ref No,Fund Type,Dept,Cost Centre Description    ,Description    ,Creditor Name    ,GL Code Net Amount,Payment date        
2,Revenue,CCHD,Bed Purchasing - Frenchay Hospital,Residential Homes,.,1779.16, 03-Sep-2013
3,Revenue,CCHD,Bed Purchasing - Under 65s PWLD - South,Residential Homes,.,2194, 03-Sep-2013
4,Revenue,CCHD,Bed purchasing - Under 65s PWLD - North,Residential Homes,3 Trees Community Support Limited,4038.55, 03-Sep-2013
5,Revenue,CCHD,Home Care - Elderly - South,Other Small Contracts,3 Trees Community Support Ltd,95.52, 11-Sep-2013
6,Revenue,CCHD,Home Care - Elderly - North,Other Small Contracts,3 Trees Community Support Ltd,2841.72, 11-Sep-2013
7,Revenue,CCHD,Day Care - North,Private & Voluntary Day Care,3 Trees Community Support Ltd,47.76, 11-Sep-2013
8,Revenue,CCHD,Home Care - Elderly - South,Other Small Contracts,3 Trees Community Support Ltd,95.52, 17-Sep-2013
9,Revenue,CCHD,Home Care - Elderly - North,Other Small Contracts,3 Trees Community Support Ltd,1385.04, 17-Sep-2013
10,Revenue,CCHD,Day Care - North,Private & Voluntary Day Care,3 Trees Community Support Ltd,47.76, 17-Sep-2013
11,Revenue,CCHD,Home Care - Elderly - South,Other Small Contracts,3 Trees Community Support Ltd,95.52, 16-Sep-2013
12,Revenue,CCHD,Home Care - Elderly - North,Other Small Contracts,3 Trees Community Support Ltd,1671.6, 16-Sep-2013
13,Revenue,CCHD,Day Care - North,Private & Voluntary Day Care,3 Trees Community Support Ltd,47.76, 16-Sep-2013
14,Revenue,CCHD,Home Care - Elderly - North,Other Small Contracts,3 Trees Community Support Ltd,1671.6, 27-Sep-2013
15,Revenue,CCHD,Day Care - North,Private & Voluntary Day Care,3 Trees Community Support Ltd,47.76, 27-Sep-2013
16,Revenue,CCHD,Purchase of Non-Res Care - South,Private & Voluntary Day Care,3 Trees Community Support Ltd,3084.2, 02-Sep-2013
17,Revenue,CCHD,Supported Living - South,Private & Voluntary Home Care,3 Trees Community Support Ltd,705.51, 18-Sep-2013
18,Revenue,CCHD,Supported Living - South,Private & Voluntary Home Care,3 Trees Community Support Ltd,1564.87, 24-Sep-2013
19,Revenue,CCHD,Purchase of Non-Res Care - North,Private & Voluntary Day Care,3 Trees Community Support Ltd,5406.73, 17-Sep-2013
20,Revenue,CCHD,Supported Living - South,Private & Voluntary Home Care,3 Trees Community Support Ltd,2541.36, 19-Sep-2013
21,Revenue,CCHD,Purchase of Non-Res Care - North,Private & Voluntary Day Care,3 Trees Community Support Ltd,2012.45, 17-Sep-2013
22,Revenue,CCHD,Purchase of Non-Res Care - North,Private & Voluntary Day Care,3 Trees Community Support Ltd,2132.95, 20-Sep-2013
23,Revenue,CCHD,Purchase of Non-Res Care - North,Private & Voluntary Day Care,3 Trees Community Support Ltd,7344.99, 17-Sep-2013
24,Revenue,CCHD,Purchase of Non-Res Care - South,Private & Voluntary Day Care,3 Trees Community Support Ltd,3855.25, 18-Sep-2013
25,Revenue,CCHD,Supported Living - North,Private & Voluntary Home Care,3 Trees Community Support Ltd,8036.22, 17-Sep-2013
26,Revenue,CCHD,Purchase of Non-Res Care - North,Private & Voluntary Day Care,3 Trees Community Support Ltd,1532.77, 23-Sep-2013
27,Revenue,CCHD,Supported Living - North,Private & Voluntary Home Care,3 Trees Community Support Ltd,7632.8, 23-Sep-2013
28,Revenue,CCHD,Direct Payments - Phys Dis - North,Grants to Voluntary Bodies,A4E Management Limited,23434.92, 30-Sep-2013
29,Revenue,CCHD,Bed Purchasing - Frenchay Hospital,Nursing Homes,Aabletone Nursing Home,834.76, 03-Sep-2013
30,Revenue,CCHD,Home Care - Elderly - South,Other Small Contracts,Abacus Care (Western) Ltd,619.5, 06-Sep-2013
31,Revenue,CCHD,Home Care - Elderly - North,Other Small Contracts,Abacus Care (Western) Ltd,995.25, 06-Sep-2013
32,Revenue,CCHD,Home Care - Elderly - South,Other Small Contracts,Abacus Care (Western) Ltd,648.41, 06-Sep-2013
33,Revenue,CCHD,Home Care - Elderly - North,Other Small Contracts,Abacus Care (Western) Ltd,961.19, 06-Sep-2013
34,Revenue,CCHD,Home Care - Elderly - South,Other Small Contracts,Abacus Care (Western) Ltd,735.14, 06-Sep-2013
35,Revenue,CCHD,Home Care - Elderly - North,Other Small Contracts,Abacus Care (Western) Ltd,995.25, 06-Sep-2013
36,Revenue,CCHD,Home Care - Elderly - South,Other Small Contracts,Abacus Care (Western) Ltd,892.08, 12-Sep-2013
37,Revenue,CCHD,Home Care - Elderly - North,Other Small Contracts,Abacus Care (Western) Ltd,995.25, 12-Sep-2013
38,Revenue,CCHD,Home Care - Elderly - South,Other Small Contracts,Abacus Care (Western) Ltd,1139.88, 24-Sep-2013
39,Revenue,CCHD,Home Care - Elderly - North,Other Small Contracts,Abacus Care (Western) Ltd,995.25, 24-Sep-2013
40,Revenue,CCHD,Home Care - Elderly - South,Other Small Contracts,Abacus Care (Western) Ltd,982.94, 24-Sep-2013
41,Revenue,CCHD,Home Care - Elderly - North,Other Small Contracts,Abacus Care (Western) Ltd,995.25, 24-Sep-2013
42,Revenue,CCHD,MH Purchasing - Younger,Residential Homes,Abbey Grange,2067.44, 03-Sep-2013
43,Revenue,CCHD,Bed purchasing - Phys Dis - North,Nursing Homes,ABI Development Limited,80116.23, 03-Sep-2013
44,Revenue,CCHD,Day Care - North,Private & Voluntary Day Care,About Me Care and Support Limited,1398.08, 09-Sep-2013
45,Revenue,CCHD,Day Care - South,Private & Voluntary Day Care,About Me Care and Support Limited,775.02, 05-Sep-2013
46,Revenue,CCHD,Day Care - South,Private & Voluntary Day Care,About Me Care and Support Limited,1508.77, 05-Sep-2013
47,Revenue,CCHD,Bed purchasing - Under 65s PWLD - North,Residential Homes,Acorn Care Providers,5744.4, 03-Sep-2013
48,Revenue,CCHD,Older People's Commissioned Se,Grants to Voluntary Bodies,Action for Blind People,24242.25, 30-Sep-2013
49,Revenue,CCHD,Section 117 Placements MH Younger,Private & Voluntary Day Care,Adolphus Care Ltd,4087.02, 12-Sep-2013
50,Revenue,CCHD,Section 117 Placements MH Younger,Private & Voluntary Day Care,Adolphus Care Ltd,1164.8, 26-Sep-2013
51,Revenue,CCHD,Alexandra Way,Furniture & Fittings Loose,Advanced Aerials,750, 02-Sep-2013
52,Revenue,CCHD,SLA Grants - Support Serv,Grants to Voluntary Bodies,Age UK South Gloucestershire,5437.75, 30-Sep-2013
53,Revenue,CCHD,Home Care - Elderly - South,Other Small Contracts,Agincare Chippenham,1607.01, 09-Sep-2013
54,Revenue,CCHD,Home Care - Elderly - South,Other Small Contracts,Agincare Chippenham,1564, 09-Sep-2013
55,Revenue,CCHD,Home Care - Elderly - South,Other Small Contracts,Agincare Chippenham,1630.47, 09-Sep-2013
56,Revenue,CCHD,Home Care - Elderly - South,Other Small Contracts,Agincare UK Limited,899.3, 12-Sep-2013
57,Revenue,CCHD,Home Care - Elderly - North,Other Small Contracts,Agincare UK Limited,86.02, 12-Sep-2013
58,Revenue,CCHD,Day Care - South,Private & Voluntary Day Care,Agincare UK Limited,97.75, 12-Sep-2013
59,Revenue,CCHD,Elderly MH Day Care North,Private & Voluntary Day Care,Agincare UK Limited,117.3, 12-Sep-2013
60,Revenue,CCHD,Home Care - Elderly - South,Other Small Contracts,Agincare UK Limited,911.03, 12-Sep-2013
61,Revenue,CCHD,Home Care - Elderly - North,Other Small Contracts,Agincare UK Limited,101.66, 12-Sep-2013
62,Revenue,CCHD,Day Care - South,Private & Voluntary Day Care,Agincare UK Limited,105.57, 12-Sep-2013
63,Revenue,CCHD,Elderly MH Day Care North,Private & Voluntary Day Care,Agincare UK Limited,117.3, 12-Sep-2013
64,Revenue,CCHD,S117 Placements PCT,Residential Homes,Alexandra House,6875.64, 03-Sep-2013
65,Revenue,CCHD,Bed Purchasing - Under 65s PWLD - South,Residential Homes,Alexandra House,9758.5, 03-Sep-2013
66,Revenue,CCHD,Section 117 Placements MH Younger,Residential Homes,Alexandra House,6400.88, 03-Sep-2013
67,Revenue,CCHD,Home Care - Elderly - South,Other Small Contracts,Allied Healthcare Group,361.9, 04-Sep-2013
68,Revenue,CCHD,Home Care - Elderly - North,Other Small Contracts,Allied Healthcare Group,481.25, 04-Sep-2013
69,Revenue,CCHD,Day Care - North,Private & Voluntary Day Care,Allied Healthcare Group,42.35, 04-Sep-2013
70,Revenue,CCHD,Home Care - Elderly - South,Other Small Contracts,Allied Healthcare Group,350.35, 04-Sep-2013
71,Revenue,CCHD,Home Care - Elderly - North,Other Small Contracts,Allied Healthcare Group,465.85, 04-Sep-2013
72,Revenue,CCHD,Day Care - North,Private & Voluntary Day Care,Allied Healthcare Group,46.2, 04-Sep-2013
73,Revenue,CCHD,Home Care - Elderly - South,Other Small Contracts,Allied Healthcare Group,334.95, 04-Sep-2013
74,Revenue,CCHD,Home Care - Elderly - North,Other Small Contracts,Allied Healthcare Group,477.4, 04-Sep-2013
75,Revenue,CCHD,Day Care - North,Private & Voluntary Day Care,Allied Healthcare Group,46.2, 04-Sep-2013
76,Revenue,CCHD,Home Care - Elderly - South,Other Small Contracts,Allied Healthcare Group,358.05, 04-Sep-2013
77,Revenue,CCHD,Home Care - Elderly - North,Other Small Contracts,Allied Healthcare Group,196.35, 04-Sep-2013
78,Revenue,CCHD,Day Care - North,Private & Voluntary Day Care,Allied Healthcare Group,46.2, 04-Sep-2013
79,Revenue,CCHD,Elderly MH Day Care North,Private & Voluntary Day Care,Alzheimers Society,577.68, 18-Sep-2013
80,Revenue,CCHD,Elderly MH Day Care North,Private & Voluntary Day Care,Alzheimers Society,866.52, 18-Sep-2013
81,Revenue,CCHD,Day Care - South,Private & Voluntary Day Care,Alzheimers Society,649.89, 19-Sep-2013
82,Revenue,CCHD,Bed Purchasing - Elderly S117- North,Private & Voluntary Day Care,Alzheimers Society,649.89, 18-Sep-2013
83,Revenue,CCHD,Elderly MH Day Care South,Private & Voluntary Day Care,Alzheimers Society,649.89, 18-Sep-2013
84,Revenue,CCHD,Day Care - South,Private & Voluntary Day Care,Alzheimers Society,649.89, 19-Sep-2013
85,Revenue,CCHD,Bed Purchasing - Southmead Hospital,Nursing Homes,Ambleside Nusing Ho!,1425.36, 03-Sep-2013
86,Revenue,CCHD,Bed Purchasing - Frenchay Hospital,Residential Homes,Anbridge Care Home,822.44, 03-Sep-2013
87,Revenue,CCHD,Bed Purchasing - Elderly - North,Nursing Homes,Annabel House,1401.52, 03-Sep-2013
88,Revenue,CCHD,General EPH budgets,Prop.Serv. General Repairs,Apre Surfacing Limited,2350, 27-Sep-2013
89,Revenue,CCHD,Bed purchasing - Under 65s PWLD - North,Residential Homes,Ark Care Homes Ltd,10163.76, 03-Sep-2013
90,Revenue,CCHD,Bed Purchasing - Elderly - South,Residential Homes,Ashbourne House Care Home Limited,1107.96, 03-Sep-2013
91,Revenue,CCHD,Home Care - Elderly - South,Other Small Contracts,Ashley Commercial Finance Ltd,1105.05, 12-Sep-2013
92,Revenue,CCHD,Home Care - Elderly - North,Other Small Contracts,Ashley Commercial Finance Ltd,4637.04, 12-Sep-2013
93,Revenue,CCHD,Home Care - Elderly - South,Other Small Contracts,Ashley Commercial Finance Ltd,834, 20-Sep-2013
94,Revenue,CCHD,Home Care - Elderly - North,Other Small Contracts,Ashley Commercial Finance Ltd,4891.41, 20-Sep-2013
95,Revenue,CCHD,Bed and Breakfast,Bed & Breakfast,Ashley Guest Houses Limited,938, 26-Sep-2013
96,Revenue,CCHD,Bed and Breakfast,Bed & Breakfast,Ashley Guest Houses Limited,818, 11-Sep-2013
97,Revenue,CCHD,Bed and Breakfast,Bed & Breakfast,Ashley Guest Houses Limited,710, 09-Sep-2013
98,Revenue,CCHD,Bed and Breakfast,Bed & Breakfast,Ashley Guest Houses Limited,518, 18-Sep-2013
99,Revenue,CCHD,Bed and Breakfast,Bed & Breakfast,Ashley Guest Houses Limited,518, 26-Sep-2013
100,Revenue,CCHD,Bed purchasing - Under 65s PWLD - North,Residential Homes,Aspects 2 Limited,6265.24, 03-Sep-2013
101,Revenue,CCHD,Supported Living - South,Private & Voluntary Home Care,Aspirations Support Bristol Limited,523.9, 09-Sep-2013
102,Revenue,CCHD,Supported Living - South,Private & Voluntary Home Care,Aspirations Support Bristol Limited,3853.7, 09-Sep-2013
103,Revenue,CCHD,Supported Living - South,Private & Voluntary Home Care,Aspirations Support Bristol Limited,3982.61, 09-Sep-2013
104,Revenue,CCHD,Purchase of Non-Res Care - South,Private & Voluntary Day Care,Aspirations Support Bristol Limited,2499.48, 09-Sep-2013
105,Revenue,CCHD,Supported Living - South,Private & Voluntary Home Care,Aspirations Support Bristol Limited,596.44, 09-Sep-2013
106,Revenue,CCHD,Bed Purchasing - Under 65s PWLD - South,Residential Homes,Autism Specialised Care Homes,5584.12, 03-Sep-2013
107,Revenue,CCHD,Younger Adult Mental Health,Health Services (Third Party Payments),Avon & Wiltshire Mental Health,5000, 27-Sep-2013
108,Revenue,CCHD,Bed Purchasing - Southmead Hospital,Nursing Homes,Bamfield Lodge,1851.68, 27-Sep-2013
109,Revenue,CCHD,Bed Purchasing - Frenchay Hospital,Nursing Homes,Bayview Nursing & Residential Home,1463.36, 03-Sep-2013
110,Revenue,CCHD,Bed Purchasing - Elderly - North,Residential Homes,Beaufort House,1801.76, 03-Sep-2013
111,Revenue,CCHD,Bed purchasing - Elderly MH - North,Residential Homes,Beaufort House,1514.84, 03-Sep-2013
112,Revenue,CCHD,Bed Purchasing - Elderly S117- North,Residential Homes,Beaufort House,2322.08, 03-Sep-2013
113,Revenue,CCHD,Bed purchasing - Elderly MH - North,Residential Homes,Beaufort House,1383.68, 03-Sep-2013
114,Revenue,CCHD,Bed Purchasing - Elderly - North,Residential Homes,Beaufort House,1836.08, 03-Sep-2013
115,Revenue,CCHD,Bed Purchasing - Frenchay Hospital,Residential Homes,Beaufort House,1285.32, 03-Sep-2013
116,Revenue,CCHD,Bed purchasing - Elderly MH - North,Residential Homes,Beaufort House,1660.49, 03-Sep-2013
117,Revenue,CCHD,Bed Purchasing - Elderly - North,Residential Homes,Beaufort House,1200.4, 03-Sep-2013
118,Revenue,CCHD,Bed Purchasing - Elderly - North,Residential Homes,Beaufort House,1726.68, 03-Sep-2013
119,Revenue,CCHD,Bed purchasing - Elderly MH - North,Residential Homes,Beaufort House,1684.12, 03-Sep-2013
120,Revenue,CCHD,Bed Purchasing - Elderly - North,Residential Homes,Beaufort House,1519.32, 03-Sep-2013
121,Revenue,CCHD,Bed purchasing - Elderly PWLD - South,Residential Homes,Bedrock Lodge,2909.4, 03-Sep-2013
122,Revenue,CCHD,Section 117 Placements MH Younger,Residential Homes,Bedrock Lodge,1837.68, 03-Sep-2013
123,Revenue,CCHD,Bed Purchasing - Frenchay Hospital,Nursing Homes,Beech House,1700.88, 03-Sep-2013
124,Revenue,CCHD,Bed Purchasing - Elderly - North,Nursing Homes,Beech House,2095.68, 03-Sep-2013
125,Revenue,CCHD,Bed Purchasing - Elderly - North,Nursing Homes,Beech House,725.16, 03-Sep-2013
126,Revenue,CCHD,Bed Purchasing - Southmead Hospital,Nursing Homes,Beech House,2305.76, 03-Sep-2013
127,Revenue,CCHD,South Glos Users in South Glos Homes,Nursing Homes,Beech House,2195.8, 03-Sep-2013
128,Revenue,CCHD,Bed Purchasing - Elderly - North,Nursing Homes,Beech House,2220.52, 03-Sep-2013
129,Revenue,CCHD,Bed Purchasing - Frenchay Hospital,Residential Homes,Belmont View,1352.08, 03-Sep-2013
130,Revenue,CCHD,Bed purchasing - Elderly MH - North,Nursing Homes,Blossom Field,1042.16, 03-Sep-2013
131,Revenue,CCHD,Bed Purchasing - Elderly - North,Nursing Homes,Blossom Field,1911, 03-Sep-2013
132,Revenue,CCHD,Bed Purchasing - Elderly - North,Nursing Homes,Blossom Field,1096.6, 03-Sep-2013
133,Revenue,CCHD,Bed purchasing - Elderly MH - North,Nursing Homes,Blossom Field,1400.04, 03-Sep-2013
134,Revenue,CCHD,Bed Purchasing - Elderly - South,Nursing Homes,Blossom Field,1884.56, 03-Sep-2013
135,Revenue,CCHD,Bed Purchasing - Elderly - North,Nursing Homes,Blossom Fields,3844.54, 02-Sep-2013
136,Revenue,CCHD,South Glos Users in South Glos Homes,Nursing Homes,Blossom Fields,1317.48, 02-Sep-2013
137,Revenue,CCHD,Bed purchasing - Elderly MH - North,Nursing Homes,Blossom Fields,1544.57, 02-Sep-2013
138,Revenue,CCHD,Bed Purchasing - Elderly - North,Nursing Homes,Blossom Fields,4170.54, 25-Sep-2013
139,Revenue,CCHD,Bed Purchasing - Southmead Hospital,Nursing Homes,Blossom Fields,737.58, 25-Sep-2013
140,Revenue,CCHD,South Glos Users in South Glos Homes,Nursing Homes,Blossom Fields,956.74, 25-Sep-2013
141,Revenue,CCHD,Bed purchasing - Elderly MH - North,Nursing Homes,Blossom Fields,1544.57, 25-Sep-2013
142,Revenue,CCHD,Training - Adult Services,Training Expenses,Bob Dawson,650, 24-Sep-2013
143,Revenue,CCHD,Bed Purchasing - Frenchay Hospital,Residential Homes,Bradbury House,925.59, 03-Sep-2013
144,Revenue,CCHD,Bed purchasing - Under 65s PWLD - North,Residential Homes,Bradbury House,8632.8, 03-Sep-2013
145,Revenue,CCHD,Home Care - Elderly - North,Other Small Contracts,Bradley House Home Care Services,1069.34, 18-Sep-2013
146,Revenue,CCHD,Day Care - North,Private & Voluntary Day Care,Bradley House Home Care Services,101.04, 18-Sep-2013
147,Revenue,CCHD,Home Care - Elderly - North,Other Small Contracts,Bradley House Home Care Services,993.56, 25-Sep-2013
148,Revenue,CCHD,Day Care - North,Private & Voluntary Day Care,Bradley House Home Care Services,101.04, 25-Sep-2013
149,Revenue,CCHD,Home Care - Elderly - South,Other Small Contracts,Bradley House Home Care Services,29.47, 25-Sep-2013
150,Revenue,CCHD,Home Care - Elderly - North,Other Small Contracts,Bradley House Home Care Services,1060.92, 25-Sep-2013
151,Revenue,CCHD,Day Care - North,Private & Voluntary Day Care,Bradley House Home Care Services,101.04, 25-Sep-2013
152,Revenue,CCHD,Home Care - Elderly - South,Other Small Contracts,Bradley House Home Care Services,126.3, 25-Sep-2013
153,Revenue,CCHD,Home Care - Elderly - North,Other Small Contracts,Bradley House Home Care Services,1616.64, 25-Sep-2013
154,Revenue,CCHD,Day Care - North,Private & Voluntary Day Care,Bradley House Home Care Services,101.04, 25-Sep-2013
155,Revenue,CCHD,Alexandra Way,"Provisions (Food, etc)",Brake Bros,665.4, 18-Sep-2013
156,Revenue,CCHD,Woodleaze,"Provisions (Food, etc)",Brake Bros,655.01, 10-Sep-2013
157,Revenue,CCHD,Bed Purchasing - S28A - Over 65- North,Residential Homes,Brandon Trust,3054.48, 03-Sep-2013
158,Revenue,CCHD,Bed Purchasing - Under 65s PWLD - South,Residential Homes,Brandon Trust,9600.6, 03-Sep-2013
159,Revenue,CCHD,Bed Purchasing - Under 65s PWLD - South,Residential Homes,Brandon Trust,3976.8, 03-Sep-2013
160,Revenue,CCHD,Bed purchasing - Elderly PWLD - South,Residential Homes,Brandon Trust,3412.04, 03-Sep-2013
161,Revenue,CCHD,Bed Purchasing - LD S28A- Over 65- South,Nursing Homes,Brandon Trust,4486.84, 03-Sep-2013
162,Revenue,CCHD,South Glos Users in South Glos Homes,Nursing Homes,Brandon Trust,972.43, 03-Sep-2013
163,Revenue,CCHD,Bed Purchasing - Under 65s PWLD - South,Nursing Homes,Brandon Trust,4962.92, 03-Sep-2013
164,Revenue,CCHD,Bed purchasing - S28A Under 65 - South,Nursing Homes,Brandon Trust,5280.52, 03-Sep-2013
165,Revenue,CCHD,Bed purchasing - S28A Under 65 - South,Residential Homes,Brandon Trust,4832.6, 03-Sep-2013
166,Revenue,CCHD,Bed purchasing - S28A Under 65 - South,Nursing Homes,Brandon Trust,5280.52, 03-Sep-2013
167,Revenue,CCHD,Bed Purchasing - LD S28A- Over 65- South,Nursing Homes,Brandon Trust,5109.72, 03-Sep-2013
168,Revenue,CCHD,Bed Purchasing - LD S28A- Over 65- South,Nursing Homes,Brandon Trust,4777.8, 03-Sep-2013
169,Revenue,CCHD,Bed Purchasing - Under 65s PWLD - South,Residential Homes,Brandon Trust,3225.28, 03-Sep-2013
170,Revenue,CCHD,Bed Purchasing - S28A - Over 65- North,Nursing Homes,Brandon Trust,4742.68, 03-Sep-2013
171,Revenue,CCHD,Bed purchasing - S28A Under 65 - South,Residential Homes,Brandon Trust,5126.44, 03-Sep-2013
172,Revenue,CCHD,Bed purchasing - S28A Under 65 - South,Residential Homes,Brandon Trust,5181.28, 03-Sep-2013
173,Revenue,CCHD,Bed Purchasing - S28A - Over 65- North,Residential Homes,Brandon Trust,5419.24, 03-Sep-2013
174,Revenue,CCHD,Bed Purchasing - S28A - Over 65- North,Residential Homes,Brandon Trust,4456.08, 03-Sep-2013
175,Revenue,CCHD,Bed purchasing - S28A Under 65 - South,Nursing Homes,Brandon Trust,5280.52, 03-Sep-2013
176,Revenue,CCHD,Bed purchasing - S28A Under 65 - South,Nursing Homes,Brandon Trust,5280.52, 03-Sep-2013
177,Revenue,CCHD,Bed purchasing -S28A  Under 65 - North,Nursing Homes,Brandon Trust,4712.96, 03-Sep-2013
178,Revenue,CCHD,Bed purchasing - S28A Under 65 - South,Residential Homes,Brandon Trust,5181.28, 03-Sep-2013
179,Revenue,CCHD,Bed Purchasing - LD S28A- Over 65- South,Residential Homes,Brandon Trust,4681.52, 03-Sep-2013
180,Revenue,CCHD,Bed Purchasing - Elderly - North,Residential Homes,Bridge House Care Home,1246, 03-Sep-2013
181,Revenue,CCHD,Bed Purchasing - Elderly - North,Residential Homes,Bridge House Care Home,1485.04, 03-Sep-2013
182,Revenue,CCHD,Bed Purchasing - Elderly - North,Residential Homes,Bridge House Care Home,1150.56, 03-Sep-2013
183,Revenue,CCHD,Bed Purchasing - Elderly MH - South,Residential Homes,Brightbow,2067.28, 03-Sep-2013
184,Revenue,CCHD,MH Purchasing - Younger,Residential Homes,Brightbow,920.8, 03-Sep-2013
185,Revenue,CCHD,Older People's Commissioned Se,Grants to Voluntary Bodies,Bristol Area Stroke Foundation,4618.25, 30-Sep-2013
186,Revenue,CCHD,Purchase of RAC places,Other L.A.'s - General,Bristol City Council,2641.79, 04-Sep-2013
187,Revenue,CCHD,Purchase of RAC places,Other L.A.'s - General,Bristol City Council,3934.9, 04-Sep-2013
188,Revenue,CCHD,Purchase of RAC places,Other L.A.'s - General,Bristol City Council,5541.15, 04-Sep-2013
189,Revenue,CCHD,Purchase of RAC places,Other L.A.'s - General,Bristol City Council,4580.49, 04-Sep-2013
190,Revenue,CCHD,Supported Living - North,Private & Voluntary Home Care,Bristol Houses UK Limited,1267.92, 24-Sep-2013
191,Revenue,CCHD,Supported Living - North,Private & Voluntary Home Care,Bristol Houses UK Limited,1056.6, 24-Sep-2013
192,Revenue,CCHD,Supported Living - North,Private & Voluntary Home Care,Bristol Houses UK Limited,986.16, 24-Sep-2013
193,Revenue,CCHD,Day Care - North,Private & Voluntary Day Care,Bristol Houses UK Limited,2320.12, 25-Sep-2013
194,Revenue,CCHD,Supported Living - North,Private & Voluntary Home Care,Bristol Houses UK Limited,605.6, 24-Sep-2013
195,Revenue,CCHD,Supported Living - North,Private & Voluntary Home Care,Bristol Houses UK Limited,900.83, 24-Sep-2013
196,Revenue,CCHD,Bed and Breakfast,Bed & Breakfast,Bristol Housing & Support Limited,1856, 26-Sep-2013
197,Revenue,CCHD,Bed and Breakfast,Bed & Breakfast,Bristol Housing & Support Limited,1120, 05-Sep-2013
198,Revenue,CCHD,Bed and Breakfast,Bed & Breakfast,Bristol Housing & Support Limited,1750, 26-Sep-2013
199,Revenue,CCHD,Bed and Breakfast,Bed & Breakfast,Bristol Housing & Support Limited,1050, 26-Sep-2013
200,Revenue,CCHD,Bed and Breakfast,Bed & Breakfast,Bristol Housing & Support Limited,1100, 04-Sep-2013
201,Revenue,CCHD,Bed and Breakfast,Bed & Breakfast,Bristol Housing & Support Limited,1330, 05-Sep-2013
202,Revenue,CCHD,Bed and Breakfast,Bed & Breakfast,Bristol Housing & Support Limited,1330, 26-Sep-2013
203,Revenue,CCHD,Bed and Breakfast,Bed & Breakfast,Bristol Housing & Support Limited,1330, 26-Sep-2013
204,Revenue,CCHD,Bed and Breakfast,Bed & Breakfast,Bristol Housing & Support Limited,1130, 26-Sep-2013
205,Revenue,CCHD,Bed and Breakfast,Bed & Breakfast,Bristol Housing & Support Limited,1050, 30-Sep-2013
206,Revenue,CCHD,Day Care - South,Private & Voluntary Day Care,Britannia House,901.6, 04-Sep-2013
207,Revenue,CCHD,Day Care - South,Private & Voluntary Day Care,Britannia House,676.2, 04-Sep-2013
208,Revenue,CCHD,Day Care - North,Private & Voluntary Day Care,Britannia House,901.6, 04-Sep-2013
209,Revenue,CCHD,Day Care - North,Private & Voluntary Day Care,Britannia House,1496.38, 04-Sep-2013
210,Revenue,CCHD,Day Care - South,Private & Voluntary Day Care,Britannia House,676.2, 04-Sep-2013
211,Revenue,CCHD,Day Care - South,Private & Voluntary Day Care,Britannia House,901.6, 04-Sep-2013
212,Revenue,CCHD,Day Care - North,Private & Voluntary Day Care,Britannia House,901.6, 04-Sep-2013
213,Revenue,CCHD,Day Care - South,Private & Voluntary Day Care,Britannia House,563.5, 04-Sep-2013
214,Revenue,CCHD,Day Care - South,Private & Voluntary Day Care,Britannia House,1127, 04-Sep-2013
215,Revenue,CCHD,Day Care - North,Private & Voluntary Day Care,Britannia House,961.76, 04-Sep-2013
216,Revenue,CCHD,Home Care - Elderly - South,Other Small Contracts,Britannia House,676.2, 04-Sep-2013
217,Revenue,CCHD,Day Care - South,Private & Voluntary Day Care,Britannia House,676.2, 04-Sep-2013
218,Revenue,CCHD,Day Care - South,Private & Voluntary Day Care,Britannia House,676.2, 04-Sep-2013
219,Revenue,CCHD,Bed Purchasing - Elderly - North,Residential Homes,Brook Lane Residential Home,910.08, 03-Sep-2013
220,Revenue,CCHD,Home Care - Elderly - North,Private & Voluntary Home Care,Brunelcare,15809.01, 09-Sep-2013
221,Revenue,CCHD,Home Care - Elderly - North,Private & Voluntary Home Care,Brunelcare,15809.01, 16-Sep-2013
222,Revenue,CCHD,Home Care - Elderly - North,Private & Voluntary Home Care,Brunelcare,15809.01, 23-Sep-2013
223,Revenue,CCHD,Home Care - Elderly - North,Private & Voluntary Home Care,Brunelcare,15809.01, 30-Sep-2013
224,Revenue,CCHD,Bed Purchasing - Elderly - South,Nursing Homes,Brunelcare,22465.46, 12-Sep-2013
225,Revenue,CCHD,Bed Purchasing - Elderly - North,Nursing Homes,Brunelcare,3498.77, 12-Sep-2013
226,Revenue,CCHD,Bed Purchasing - Frenchay Hospital,Nursing Homes,Brunelcare,3229.82, 12-Sep-2013
227,Revenue,CCHD,Bed Purchasing - Southmead Hospital,Nursing Homes,Brunelcare,947.07, 12-Sep-2013
228,Revenue,CCHD,South Glos Users in South Glos Homes,Nursing Homes,Brunelcare,6311.98, 12-Sep-2013
229,Revenue,CCHD,Bed Purchasing - Elderly MH - South,Nursing Homes,Brunelcare,5963.12, 12-Sep-2013
230,Revenue,CCHD,Bed purchasing - Elderly MH - North,Nursing Homes,Brunelcare,1560.81, 12-Sep-2013
231,Revenue,CCHD,Bed Purchasing - Elderly S117- North,Nursing Homes,Brunelcare,2189.26, 12-Sep-2013
232,Revenue,CCHD,Bed Purchasing - Elderly - South,Nursing Homes,Brunelcare,15200.98, 13-Sep-2013
233,Revenue,CCHD,Bed Purchasing - Elderly - North,Nursing Homes,Brunelcare,3352.16, 13-Sep-2013
234,Revenue,CCHD,Bed Purchasing - Frenchay Hospital,Nursing Homes,Brunelcare,4169.34, 13-Sep-2013
235,Revenue,CCHD,Bed Purchasing - Southmead Hospital,Nursing Homes,Brunelcare,7481.5, 13-Sep-2013
236,Revenue,CCHD,South Glos Users in South Glos Homes,Nursing Homes,Brunelcare,9238.04, 13-Sep-2013
237,Revenue,CCHD,Bed Purchasing - Elderly MH - South,Nursing Homes,Brunelcare,6611.37, 13-Sep-2013
238,Revenue,CCHD,Bed purchasing - Elderly S117 - South,Nursing Homes,Brunelcare,2363.79, 13-Sep-2013
239,Revenue,CCHD,Bed purchasing - Elderly MH - North,Nursing Homes,Brunelcare,1612.84, 13-Sep-2013
240,Revenue,CCHD,Bed Purchasing - Elderly S117- North,Nursing Homes,Brunelcare,2363.79, 13-Sep-2013
241,Revenue,CCHD,Home Care - Elderly - South,Other Small Contracts,Brunelcare,2394.96, 18-Sep-2013
242,Revenue,CCHD,Home Care - Elderly - North,Other Small Contracts,Brunelcare,4543.12, 18-Sep-2013
243,Revenue,CCHD,Day Care - South,Private & Voluntary Day Care,Brunelcare,77.52, 18-Sep-2013
244,Revenue,CCHD,Day Care - North,Private & Voluntary Day Care,Brunelcare,73.44, 18-Sep-2013
245,Revenue,CCHD,Home Care - Elderly - South,Other Small Contracts,Brunelcare,2101.2, 18-Sep-2013
246,Revenue,CCHD,Home Care - Elderly - North,Other Small Contracts,Brunelcare,4571.64, 18-Sep-2013
247,Revenue,CCHD,Day Care - South,Private & Voluntary Day Care,Brunelcare,77.52, 18-Sep-2013
248,Revenue,CCHD,Day Care - North,Private & Voluntary Day Care,Brunelcare,73.44, 18-Sep-2013
249,Revenue,CCHD,Home Care - Elderly - South,Other Small Contracts,Brunelcare,2713.2, 18-Sep-2013
250,Revenue,CCHD,Home Care - Elderly - North,Other Small Contracts,Brunelcare,4632.72, 18-Sep-2013
251,Revenue,CCHD,Day Care - South,Private & Voluntary Day Care,Brunelcare,73.44, 18-Sep-2013
252,Revenue,CCHD,Day Care - North,Private & Voluntary Day Care,Brunelcare,44.88, 18-Sep-2013
253,Revenue,CCHD,Home Care - Elderly - South,Other Small Contracts,Brunelcare,2582.64, 25-Sep-2013
254,Revenue,CCHD,Home Care - Elderly - North,Other Small Contracts,Brunelcare,4616.44, 25-Sep-2013
255,Revenue,CCHD,Day Care - South,Private & Voluntary Day Care,Brunelcare,73.44, 25-Sep-2013
256,Revenue,CCHD,Day Care - North,Private & Voluntary Day Care,Brunelcare,81.6, 25-Sep-2013
257,Revenue,CCHD,Home Care - Elderly - South,Other Small Contracts,Brunelcare,2558.16, 25-Sep-2013
258,Revenue,CCHD,Home Care - Elderly - North,Other Small Contracts,Brunelcare,4503.28, 25-Sep-2013
259,Revenue,CCHD,Day Care - South,Private & Voluntary Day Care,Brunelcare,77.52, 25-Sep-2013
260,Revenue,CCHD,Day Care - North,Private & Voluntary Day Care,Brunelcare,48.96, 25-Sep-2013
261,Revenue,CCHD,Home Care - Elderly - South,Other Small Contracts,Brunelcare,2680.56, 25-Sep-2013
262,Revenue,CCHD,Home Care - Elderly - North,Other Small Contracts,Brunelcare,4526.52, 25-Sep-2013
263,Revenue,CCHD,Day Care - South,Private & Voluntary Day Care,Brunelcare,69.36, 25-Sep-2013
264,Revenue,CCHD,Day Care - North,Private & Voluntary Day Care,Brunelcare,81.6, 25-Sep-2013
265,Revenue,CCHD,Information Systems - Software,Computer Equipment - Purchase,BT Global Services Solutions,978.04, 02-Sep-2013
266,Revenue,CCHD,Information Systems - Software,Computer Equipment - Purchase,BT Global Services Solutions,978.04, 16-Sep-2013
267,Revenue,CCHD,Woodleaze,Cleaning & Domestic Services,Bunzl Cleaning & Hygiene Supplies,733.84, 09-Sep-2013
268,Revenue,CCHD,Woodleaze,Cleaning & Domestic Services,Bunzl Cleaning & Hygiene Supplies,738.54, 23-Sep-2013
269,Revenue,CCHD,Bed Purchasing - Southmead Hospital,Nursing Homes,Bupa Care Services  Bridge House,2653, 03-Sep-2013
270,Revenue,CCHD,Bed purchasing - Phys Dis - North,Nursing Homes,Bupa Care Services  Bridge House,5851.68, 03-Sep-2013
271,Revenue,CCHD,South Glos Users in all other LA Homes,Nursing Homes,Bupa Care Services  Bridge House,604.4, 03-Sep-2013
272,Revenue,CCHD,Bed purchasing - Elderly MH - North,Residential Homes,Bupa Care Services  Bridge House,1900, 03-Sep-2013
273,Revenue,CCHD,Supported Living - North,Private & Voluntary Home Care,Camphill Communities Thornbury Limited,2132.92, 04-Sep-2013
274,Revenue,CCHD,Supported Living - North,Private & Voluntary Home Care,Camphill Communities Thornbury Limited,2450.96, 04-Sep-2013
275,Revenue,CCHD,Supported Living - North,Private & Voluntary Home Care,Camphill Communities Thornbury Limited,2016.48, 05-Sep-2013
276,Revenue,CCHD,Supported Living - North,Private & Voluntary Home Care,Camphill Communities Thornbury Limited,2237.32, 05-Sep-2013
277,Revenue,CCHD,Supported Living - North,Private & Voluntary Home Care,Camphill Communities Thornbury Limited,1792.96, 05-Sep-2013
278,Revenue,CCHD,Supported Living - North,Private & Voluntary Home Care,Camphill Communities Thornbury Limited,2303.08, 05-Sep-2013
279,Revenue,CCHD,Supported Living - North,Private & Voluntary Home Care,Camphill Communities Thornbury Limited,2203.08, 05-Sep-2013
280,Revenue,CCHD,Supported Living - North,Private & Voluntary Home Care,Camphill Communities Thornbury Limited,2793.8, 12-Sep-2013
281,Revenue,CCHD,Supported Living - North,Private & Voluntary Home Care,Camphill Communities Thornbury Limited,1753.08, 18-Sep-2013
282,Revenue,CCHD,Supported Living - North,Private & Voluntary Home Care,Camphill Communities Thornbury Limited,2498.76, 18-Sep-2013
283,Revenue,CCHD,Supported Living - North,Private & Voluntary Home Care,Camphill Communities Thornbury Limited,2597.48, 18-Sep-2013
284,Revenue,CCHD,Supported Living - North,Private & Voluntary Home Care,Camphill Communities Thornbury Limited,1822.24, 20-Sep-2013
285,Revenue,CCHD,Supported Living - North,Private & Voluntary Home Care,Camphill Communities Thornbury Limited,2290.92, 25-Sep-2013
286,Revenue,CCHD,Supported Living - North,Private & Voluntary Home Care,Camphill Communities Thornbury Limited,2049.76, 25-Sep-2013
287,Revenue,CCHD,Supported Living - North,Private & Voluntary Home Care,Camphill Communities Thornbury Limited,2016.48, 25-Sep-2013
288,Revenue,CCHD,Bed Purchasing - Elderly S117- North,Residential Homes,Canjayor,2300, 03-Sep-2013
289,Revenue,CCHD,Home Care - Elderly - South,Other Small Contracts,Care 1st Homecare,5189.67, 02-Sep-2013
290,Revenue,CCHD,Home Care - Elderly - North,Other Small Contracts,Care 1st Homecare,5687.18, 02-Sep-2013
291,Revenue,CCHD,Day Care - North,Private & Voluntary Day Care,Care 1st Homecare,151.33, 02-Sep-2013
292,Revenue,CCHD,Home care - Elderly MH - North,Other Small Contracts,Care 1st Homecare,53.17, 02-Sep-2013
293,Revenue,CCHD,Home Care - Elderly - South,Other Small Contracts,Care 1st Homecare,5090.06, 04-Sep-2013
294,Revenue,CCHD,Home Care - Elderly - North,Other Small Contracts,Care 1st Homecare,6169.65, 04-Sep-2013
295,Revenue,CCHD,Day Care - North,Private & Voluntary Day Care,Care 1st Homecare,155.42, 04-Sep-2013
296,Revenue,CCHD,Home care - Elderly MH - North,Other Small Contracts,Care 1st Homecare,49.08, 04-Sep-2013
297,Revenue,CCHD,Home Care - Elderly - South,Other Small Contracts,Care 1st Homecare,4889.77, 04-Sep-2013
298,Revenue,CCHD,Home Care - Elderly - North,Other Small Contracts,Care 1st Homecare,5166, 04-Sep-2013
299,Revenue,CCHD,Day Care - North,Private & Voluntary Day Care,Care 1st Homecare,57.26, 04-Sep-2013
300,Revenue,CCHD,Home care - Elderly MH - North,Other Small Contracts,Care 1st Homecare,49.08, 04-Sep-2013
301,Revenue,CCHD,Bed Purchasing - PWLD S 117 Placements,Residential Homes,Care Community Ltd,7536.4, 03-Sep-2013
302,Revenue,CCHD,Home Care - Elderly - North,Other Small Contracts,Care Horizons Limited,1473.73, 09-Sep-2013
303,Revenue,CCHD,Day Care - South,Private & Voluntary Day Care,Care Horizons Limited,367.92, 09-Sep-2013
304,Revenue,CCHD,Home Care - Elderly - North,Other Small Contracts,Care Horizons Limited,1482.48, 11-Sep-2013
305,Revenue,CCHD,Day Care - South,Private & Voluntary Day Care,Care Horizons Limited,350.4, 11-Sep-2013
306,Revenue,CCHD,Supported Living - North,Private & Voluntary Home Care,Care Horizons Limited,5813.55, 17-Sep-2013
307,Revenue,CCHD,Purchase of Non-Res Care - North,Private & Voluntary Day Care,Care Horizons Limited,1127.4, 17-Sep-2013
308,Revenue,CCHD,Purchase of Non-Res Care - North,Private & Voluntary Day Care,Care Horizons Limited,1709.85, 17-Sep-2013
309,Revenue,CCHD,Purchase of Non-Res Care - North,Private & Voluntary Day Care,Care Horizons Limited,1341.14, 17-Sep-2013
310,Revenue,CCHD,Supported Living - South,Private & Voluntary Home Care,Care Horizons Limited,1887.36, 16-Sep-2013
311,Revenue,CCHD,Supported Living - North,Private & Voluntary Home Care,Care Horizons Limited,5373.79, 26-Sep-2013
312,Revenue,CCHD,Electronic Home Care Monitoring,Other Supplies & Services,Care Monitoring 2000 Limited,1340, 02-Sep-2013
313,Revenue,CCHD,Electronic Home Care Monitoring,Other Supplies & Services,Care Monitoring 2000 Limited,7354.15, 12-Sep-2013
314,Revenue,CCHD,Home Care - Elderly - North,Other Small Contracts,Carers R Us (Bristol) Limited,571.28, 02-Sep-2013
315,Revenue,CCHD,Home Care - Elderly - North,Other Small Contracts,Carers R Us (Bristol) Limited,571.28, 11-Sep-2013
316,Revenue,CCHD,Home Care - Elderly - North,Other Small Contracts,Carers R Us (Bristol) Limited,575.14, 11-Sep-2013
317,Revenue,CCHD,Home Care - Elderly - South,Other Small Contracts,Carewatch (Bristol),1181.5, 04-Sep-2013
318,Revenue,CCHD,Home Care - Elderly - North,Other Small Contracts,Carewatch (Bristol),1164.5, 04-Sep-2013
319,Revenue,CCHD,Home Care - Elderly - South,Other Small Contracts,Carewatch (Bristol),1130.5, 24-Sep-2013
320,Revenue,CCHD,Home Care - Elderly - North,Other Small Contracts,Carewatch (Bristol),1105, 24-Sep-2013
321,Revenue,CCHD,Home Care - Elderly - South,Other Small Contracts,Carewatch (Bristol),1032.75, 24-Sep-2013
322,Revenue,CCHD,Home Care - Elderly - North,Other Small Contracts,Carewatch (Bristol),1109.25, 24-Sep-2013
323,Revenue,CCHD,Home Care - Elderly - South,Other Small Contracts,Carewatch (Bristol),867, 24-Sep-2013
324,Revenue,CCHD,Home Care - Elderly - North,Other Small Contracts,Carewatch (Bristol),1147.5, 24-Sep-2013
325,Revenue,CCHD,Home Care - Elderly - South,Other Small Contracts,Cash Friday at Lloyds TSB,101.4, 04-Sep-2013
326,Revenue,CCHD,Home Care - Elderly - North,Other Small Contracts,Cash Friday at Lloyds TSB,920.4, 04-Sep-2013
327,Revenue,CCHD,Home Care - Elderly - South,Other Small Contracts,Cash Friday at Lloyds TSB,101.4, 04-Sep-2013
328,Revenue,CCHD,Home Care - Elderly - North,Other Small Contracts,Cash Friday at Lloyds TSB,908.7, 04-Sep-2013
329,Revenue,CCHD,Home Care - Elderly - South,Other Small Contracts,Cash Friday at Lloyds TSB,101.4, 16-Sep-2013
330,Revenue,CCHD,Home Care - Elderly - North,Other Small Contracts,Cash Friday at Lloyds TSB,920.4, 16-Sep-2013
331,Revenue,CCHD,Bed Purchasing - Elderly - South,Residential Homes,Cepen Lodge Care Home,2176.28, 03-Sep-2013
332,Revenue,CCHD,Bed Purchasing - Southmead Hospital,Residential Homes,Charlton House Residential Home,1385.36, 03-Sep-2013
333,Revenue,CCHD,Home Care - Elderly - South,Other Small Contracts,Cherish Able Care Limited,4085.12, 04-Sep-2013
334,Revenue,CCHD,Home Care - Elderly - South,Other Small Contracts,Cherish Able Care Limited,4721.6, 06-Sep-2013
335,Revenue,CCHD,Home Care - Elderly - South,Other Small Contracts,Cherish Able Care Limited,4796.48, 13-Sep-2013
336,Revenue,CCHD,Home Care - Elderly - South,Other Small Contracts,Cherish Able Care Limited,5241.6, 20-Sep-2013
337,Revenue,CCHD,Home Care - Elderly - South,Other Small Contracts,Cherish Able Care Limited,5391.36, 27-Sep-2013
338,Revenue,CCHD,Bed purchasing -S28A  Under 65 - North,Residential Homes,Chescombe Lodge,8569.72, 03-Sep-2013
339,Revenue,CCHD,Bed Purchasing - Under 65s PWLD - South,Residential Homes,Chosen Court,6910.16, 03-Sep-2013
340,Revenue,CCHD,Bed Purchasing - PWLD S 117 Placements,Residential Homes,Chosen Court,8801.84, 03-Sep-2013
341,Revenue,CCHD,Bed Purchasing - Under 65s PWLD - South,Residential Homes,Chosen Court,5375.48, 03-Sep-2013
342,Revenue,CCHD,Training - Adult Services,Training Expenses,Chris Garnier,500, 04-Sep-2013
343,Revenue,CCHD,Supported Living - South,Private & Voluntary Home Care,Cintre Community,528.55, 12-Sep-2013
344,Revenue,CCHD,Bed Purchasing - Southmead Hospital,Residential Homes,Cleeve Lodge,1435.24, 03-Sep-2013
345,Revenue,CCHD,Bed Purchasing - Elderly - South,Residential Homes,Cleeve Lodge,1764.48, 03-Sep-2013
346,Revenue,CCHD,Bed Purchasing - Elderly - South,Residential Homes,Cleeve Lodge,2258.44, 03-Sep-2013
347,Revenue,CCHD,Bed Purchasing - Elderly - North,Residential Homes,Cleeve Lodge,1383.2, 03-Sep-2013
348,Revenue,CCHD,Bed Purchasing - Elderly - South,Residential Homes,Cleeve Lodge,1779.92, 03-Sep-2013
349,Revenue,CCHD,Bed Purchasing - Elderly - South,Residential Homes,Collingwood Residential Home,1298.48, 03-Sep-2013
350,Revenue,CCHD,Bed Purchasing - Elderly - South,Residential Homes,Collingwood Residential Home,1403.68, 03-Sep-2013
351,Revenue,CCHD,Bed Purchasing - Elderly - South,Residential Homes,Collingwood Residential Home,1421, 03-Sep-2013
352,Revenue,CCHD,Bed Purchasing - Elderly - South,Residential Homes,Collingwood Residential Home,1089.96, 03-Sep-2013
353,Revenue,CCHD,Bed Purchasing - Elderly - South,Residential Homes,Collingwood Residential Home,1334.28, 03-Sep-2013
354,Revenue,CCHD,Bed Purchasing - Elderly MH - South,Residential Homes,Collingwood Residential Home,1306.28, 03-Sep-2013
355,Revenue,CCHD,Bed Purchasing - Elderly - South,Residential Homes,Collingwood Residential Home,1156.52, 03-Sep-2013
356,Revenue,CCHD,Bed Purchasing - Elderly - South,Residential Homes,Collingwood Residential Home,1268.04, 03-Sep-2013
357,Revenue,CCHD,Bed Purchasing - Elderly - South,Residential Homes,Collingwood Residential Home,1405.32, 03-Sep-2013
358,Revenue,CCHD,Bed and Breakfast,Bed & Breakfast,Connolly & Callaghan Limited,441, 26-Sep-2013
359,Revenue,CCHD,Bed and Breakfast,Bed & Breakfast,Connolly & Callaghan Limited,441, 10-Sep-2013
360,Revenue,CCHD,Bed and Breakfast,Bed & Breakfast,Connolly & Callaghan Limited,441, 09-Sep-2013
361,Revenue,CCHD,Bed and Breakfast,Bed & Breakfast,Connolly & Callaghan Limited,441, 06-Sep-2013
362,Revenue,CCHD,Bed and Breakfast,Bed & Breakfast,Connolly & Callaghan Limited,441, 09-Sep-2013
363,Revenue,CCHD,Bed and Breakfast,Bed & Breakfast,Connolly & Callaghan Limited,441, 06-Sep-2013
364,Revenue,CCHD,Bed and Breakfast,Bed & Breakfast,Connolly & Callaghan Limited,476, 09-Sep-2013
365,Revenue,CCHD,Bed and Breakfast,Bed & Breakfast,Connolly & Callaghan Limited,441, 09-Sep-2013
366,Revenue,CCHD,Bed and Breakfast,Bed & Breakfast,Connolly & Callaghan Limited,546, 09-Sep-2013
367,Revenue,CCHD,Bed and Breakfast,Bed & Breakfast,Connolly & Callaghan Limited,511, 09-Sep-2013
368,Revenue,CCHD,Bed and Breakfast,Bed & Breakfast,Connolly & Callaghan Limited,441, 06-Sep-2013
369,Revenue,CCHD,Bed and Breakfast,Bed & Breakfast,Connolly & Callaghan Limited,441, 06-Sep-2013
370,Revenue,CCHD,Bed and Breakfast,Bed & Breakfast,Connolly & Callaghan Limited,616, 09-Sep-2013
371,Revenue,CCHD,Bed and Breakfast,Bed & Breakfast,Connolly & Callaghan Limited,441, 09-Sep-2013
372,Revenue,CCHD,Bed and Breakfast,Bed & Breakfast,Connolly & Callaghan Limited,441, 06-Sep-2013
373,Revenue,CCHD,Bed and Breakfast,Bed & Breakfast,Connolly & Callaghan Limited,441, 12-Sep-2013
374,Revenue,CCHD,Bed and Breakfast,Bed & Breakfast,Connolly & Callaghan Limited,441, 12-Sep-2013
375,Revenue,CCHD,Bed and Breakfast,Bed & Breakfast,Connolly & Callaghan Limited,441, 12-Sep-2013
376,Revenue,CCHD,Bed and Breakfast,Bed & Breakfast,Connolly & Callaghan Limited,511, 12-Sep-2013
377,Revenue,CCHD,Bed and Breakfast,Bed & Breakfast,Connolly & Callaghan Limited,476, 10-Sep-2013
378,Revenue,CCHD,Bed and Breakfast,Bed & Breakfast,Connolly & Callaghan Limited,438, 12-Sep-2013
379,Revenue,CCHD,Bed and Breakfast,Bed & Breakfast,Connolly & Callaghan Limited,441, 10-Sep-2013
380,Revenue,CCHD,Bed and Breakfast,Bed & Breakfast,Connolly & Callaghan Limited,511, 12-Sep-2013
381,Revenue,CCHD,Bed and Breakfast,Bed & Breakfast,Connolly & Callaghan Limited,511, 10-Sep-2013
382,Revenue,CCHD,Bed and Breakfast,Bed & Breakfast,Connolly & Callaghan Limited,441, 12-Sep-2013
383,Revenue,CCHD,Bed and Breakfast,Bed & Breakfast,Connolly & Callaghan Limited,616, 12-Sep-2013
384,Revenue,CCHD,Bed and Breakfast,Bed & Breakfast,Connolly & Callaghan Limited,511, 12-Sep-2013
385,Revenue,CCHD,Bed and Breakfast,Bed & Breakfast,Connolly & Callaghan Limited,651, 10-Sep-2013
386,Revenue,CCHD,Bed and Breakfast,Bed & Breakfast,Connolly & Callaghan Limited,616, 12-Sep-2013
387,Revenue,CCHD,Bed and Breakfast,Bed & Breakfast,Connolly & Callaghan Limited,721, 12-Sep-2013
388,Revenue,CCHD,Bed and Breakfast,Bed & Breakfast,Connolly & Callaghan Limited,511, 10-Sep-2013
389,Revenue,CCHD,Bed and Breakfast,Bed & Breakfast,Connolly & Callaghan Limited,511, 10-Sep-2013
390,Revenue,CCHD,Bed and Breakfast,Bed & Breakfast,Connolly & Callaghan Limited,441, 17-Sep-2013
391,Revenue,CCHD,Bed and Breakfast,Bed & Breakfast,Connolly & Callaghan Limited,441, 18-Sep-2013
392,Revenue,CCHD,Bed and Breakfast,Bed & Breakfast,Connolly & Callaghan Limited,511, 24-Sep-2013
393,Revenue,CCHD,Bed and Breakfast,Bed & Breakfast,Connolly & Callaghan Limited,476, 17-Sep-2013
394,Revenue,CCHD,Bed and Breakfast,Bed & Breakfast,Connolly & Callaghan Limited,511, 17-Sep-2013
395,Revenue,CCHD,Bed and Breakfast,Bed & Breakfast,Connolly & Callaghan Limited,441, 25-Sep-2013
396,Revenue,CCHD,Bed and Breakfast,Bed & Breakfast,Connolly & Callaghan Limited,511, 17-Sep-2013
397,Revenue,CCHD,Bed and Breakfast,Bed & Breakfast,Connolly & Callaghan Limited,511, 17-Sep-2013
398,Revenue,CCHD,Bed and Breakfast,Bed & Breakfast,Connolly & Callaghan Limited,511, 17-Sep-2013
399,Revenue,CCHD,Bed and Breakfast,Bed & Breakfast,Connolly & Callaghan Limited,441, 17-Sep-2013
400,Revenue,CCHD,Bed and Breakfast,Bed & Breakfast,Connolly & Callaghan Limited,616, 17-Sep-2013
401,Revenue,CCHD,Bed and Breakfast,Bed & Breakfast,Connolly & Callaghan Limited,651, 17-Sep-2013
402,Revenue,CCHD,Bed and Breakfast,Bed & Breakfast,Connolly & Callaghan Limited,616, 17-Sep-2013
403,Revenue,CCHD,Bed and Breakfast,Bed & Breakfast,Connolly & Callaghan Limited,721, 17-Sep-2013
404,Revenue,CCHD,Bed and Breakfast,Bed & Breakfast,Connolly & Callaghan Limited,441, 17-Sep-2013
405,Revenue,CCHD,Bed and Breakfast,Bed & Breakfast,Connolly & Callaghan Limited,441, 17-Sep-2013
406,Revenue,CCHD,Bed and Breakfast,Bed & Breakfast,Connolly & Callaghan Limited,441, 17-Sep-2013
407,Revenue,CCHD,Bed and Breakfast,Bed & Breakfast,Connolly & Callaghan Limited,511, 17-Sep-2013
408,Revenue,CCHD,Bed and Breakfast,Bed & Breakfast,Connolly & Callaghan Limited,476, 17-Sep-2013
409,Revenue,CCHD,Bed and Breakfast,Bed & Breakfast,Connolly & Callaghan Limited,511, 17-Sep-2013
410,Revenue,CCHD,Bed and Breakfast,Bed & Breakfast,Connolly & Callaghan Limited,511, 17-Sep-2013
411,Revenue,CCHD,Bed and Breakfast,Bed & Breakfast,Connolly & Callaghan Limited,511, 17-Sep-2013
412,Revenue,CCHD,Bed and Breakfast,Bed & Breakfast,Connolly & Callaghan Limited,441, 17-Sep-2013
413,Revenue,CCHD,Bed and Breakfast,Bed & Breakfast,Connolly & Callaghan Limited,616, 17-Sep-2013
414,Revenue,CCHD,Bed and Breakfast,Bed & Breakfast,Connolly & Callaghan Limited,651, 17-Sep-2013
415,Revenue,CCHD,Bed and Breakfast,Bed & Breakfast,Connolly & Callaghan Limited,616, 17-Sep-2013
416,Revenue,CCHD,Bed and Breakfast,Bed & Breakfast,Connolly & Callaghan Limited,441, 17-Sep-2013
417,Revenue,CCHD,Bed and Breakfast,Bed & Breakfast,Connolly & Callaghan Limited,441, 17-Sep-2013
418,Revenue,CCHD,Bed and Breakfast,Bed & Breakfast,Connolly & Callaghan Limited,441, 17-Sep-2013
419,Revenue,CCHD,Bed and Breakfast,Bed & Breakfast,Connolly & Callaghan Limited,476, 17-Sep-2013
420,Revenue,CCHD,Bed and Breakfast,Bed & Breakfast,Connolly & Callaghan Limited,511, 17-Sep-2013
421,Revenue,CCHD,Bed and Breakfast,Bed & Breakfast,Connolly & Callaghan Limited,511, 17-Sep-2013
422,Revenue,CCHD,Bed and Breakfast,Bed & Breakfast,Connolly & Callaghan Limited,441, 17-Sep-2013
423,Revenue,CCHD,Bed and Breakfast,Bed & Breakfast,Connolly & Callaghan Limited,616, 17-Sep-2013
424,Revenue,CCHD,Bed and Breakfast,Bed & Breakfast,Connolly & Callaghan Limited,651, 17-Sep-2013
425,Revenue,CCHD,Bed and Breakfast,Bed & Breakfast,Connolly & Callaghan Limited,441, 18-Sep-2013
426,Revenue,CCHD,Bed and Breakfast,Bed & Breakfast,Connolly & Callaghan Limited,441, 18-Sep-2013
427,Revenue,CCHD,Bed and Breakfast,Bed & Breakfast,Connolly & Callaghan Limited,476, 18-Sep-2013
428,Revenue,CCHD,Bed and Breakfast,Bed & Breakfast,Connolly & Callaghan Limited,511, 18-Sep-2013
429,Revenue,CCHD,Bed and Breakfast,Bed & Breakfast,Connolly & Callaghan Limited,511, 23-Sep-2013
430,Revenue,CCHD,Bed and Breakfast,Bed & Breakfast,Connolly & Callaghan Limited,441, 18-Sep-2013
431,Revenue,CCHD,Bed and Breakfast,Bed & Breakfast,Connolly & Callaghan Limited,476, 24-Sep-2013
432,Revenue,CCHD,Bed and Breakfast,Bed & Breakfast,Connolly & Callaghan Limited,441, 18-Sep-2013
433,Revenue,CCHD,Bed and Breakfast,Bed & Breakfast,Connolly & Callaghan Limited,441, 18-Sep-2013
434,Revenue,CCHD,Bed and Breakfast,Bed & Breakfast,Connolly & Callaghan Limited,476, 18-Sep-2013
435,Revenue,CCHD,Bed and Breakfast,Bed & Breakfast,Connolly & Callaghan Limited,511, 18-Sep-2013
436,Revenue,CCHD,Bed and Breakfast,Bed & Breakfast,Connolly & Callaghan Limited,511, 18-Sep-2013
437,Revenue,CCHD,Bed and Breakfast,Bed & Breakfast,Connolly & Callaghan Limited,441, 18-Sep-2013
438,Revenue,CCHD,Bed and Breakfast,Bed & Breakfast,Connolly & Callaghan Limited,616, 18-Sep-2013
439,Revenue,CCHD,Bed and Breakfast,Bed & Breakfast,Connolly & Callaghan Limited,651, 18-Sep-2013
440,Revenue,CCHD,Bed and Breakfast,Bed & Breakfast,Connolly & Callaghan Limited,441, 24-Sep-2013
441,Revenue,CCHD,Bed and Breakfast,Bed & Breakfast,Connolly & Callaghan Limited,441, 24-Sep-2013
442,Revenue,CCHD,Bed and Breakfast,Bed & Breakfast,Connolly & Callaghan Limited,490, 24-Sep-2013
443,Revenue,CCHD,Bed and Breakfast,Bed & Breakfast,Connolly & Callaghan Limited,511, 24-Sep-2013
444,Revenue,CCHD,Bed and Breakfast,Bed & Breakfast,Connolly & Callaghan Limited,511, 24-Sep-2013
445,Revenue,CCHD,Bed and Breakfast,Bed & Breakfast,Connolly & Callaghan Limited,546, 24-Sep-2013
446,Revenue,CCHD,Bed and Breakfast,Bed & Breakfast,Connolly & Callaghan Limited,651, 24-Sep-2013
447,Revenue,CCHD,Bed and Breakfast,Bed & Breakfast,Connolly & Callaghan Limited,441, 24-Sep-2013
448,Revenue,CCHD,Bed and Breakfast,Bed & Breakfast,Connolly & Callaghan Limited,441, 24-Sep-2013
449,Revenue,CCHD,Bed and Breakfast,Bed & Breakfast,Connolly & Callaghan Limited,465, 24-Sep-2013
450,Revenue,CCHD,Bed and Breakfast,Bed & Breakfast,Connolly & Callaghan Limited,686, 24-Sep-2013
451,Revenue,CCHD,Bed and Breakfast,Bed & Breakfast,Connolly & Callaghan Limited,511, 24-Sep-2013
452,Revenue,CCHD,Bed and Breakfast,Bed & Breakfast,Connolly & Callaghan Limited,546, 24-Sep-2013
453,Revenue,CCHD,Bed and Breakfast,Bed & Breakfast,Connolly & Callaghan Limited,441, 24-Sep-2013
454,Revenue,CCHD,Bed and Breakfast,Bed & Breakfast,Connolly & Callaghan Limited,651, 24-Sep-2013
455,Revenue,CCHD,Bed Purchasing - Frenchay Hospital,Residential Homes,Coombs Wood House,962.96, 03-Sep-2013
456,Revenue,CCHD,Tenancy Start Up Scheme,Other Supplies & Services,Country Property Agents,1150, 04-Sep-2013
457,Revenue,CCHD,Bed purchasing -S28A  Under 65 - North,Residential Homes,Cream Ii Ltd  Longrun House,7924.8, 03-Sep-2013
458,Revenue,CCHD,Bed Purchasing - Under 65s PWLD - South,Residential Homes,Cream Ii Ltd  Longrun House,5546.44, 03-Sep-2013
459,Revenue,CCHD,Bed purchasing -S28A  Under 65 - North,Residential Homes,Creedy Court,9157.32, 03-Sep-2013
460,Revenue,CCHD,Bed Purchasing - S28A - Over 65- North,Residential Homes,Creedy Court,7616.76, 03-Sep-2013
461,Revenue,CCHD,Brokerage and Information Service,Grants to Voluntary Bodies,D H I,9210.08, 27-Sep-2013
462,Revenue,CCHD,Purchase of Non-Res Care - South,Private & Voluntary Day Care,Daneswood,1327.08, 25-Sep-2013
463,Revenue,CCHD,Bed Purchasing - Under 65s PWLD - South,Residential Homes,Daneswood,10848.44, 03-Sep-2013
464,Revenue,CCHD,Bed purchasing - Under 65s PWLD - North,Residential Homes,Daneswood,8986.84, 03-Sep-2013
465,Revenue,CCHD,Learning Difficulties PSL,Other Supplies & Services,Individual,2016.44, 20-Sep-2013
466,Revenue,CCHD,Purchase of RAC places,Other L.A.'s - General,Derbyshire County Council,19761, 24-Sep-2013
467,Revenue,CCHD,Purchase of Non-Res Care - North,Private & Voluntary Day Care,Design 4 Life Ltd,1810.2, 11-Sep-2013
468,Revenue,CCHD,Purchase of Non-Res Care - North,Private & Voluntary Day Care,Design 4 Life Ltd,1034.4, 12-Sep-2013
469,Revenue,CCHD,Purchase of Non-Res Care - North,Private & Voluntary Day Care,Design 4 Life Ltd,1857.7, 11-Sep-2013
470,Revenue,CCHD,Bed Purchasing - Under 65s PWLD - South,Residential Homes,Devon & Cornwall Autistic Community Trus,8668.84, 03-Sep-2013
471,Revenue,CCHD,Day Care - South,Private & Voluntary Day Care,Dhek Bhal,960.94, 13-Sep-2013
472,Revenue,CCHD,Day Care - South,Private & Voluntary Day Care,Dhek Bhal,793.82, 13-Sep-2013
473,Revenue,CCHD,Bed Purchasing - Under 65s PWLD - South,Residential Homes,Dimensions (Uk),4808.36, 03-Sep-2013
474,Revenue,CCHD,Supported Living - South,Private & Voluntary Home Care,Dimensions (UK) Ltd,8006.68, 19-Sep-2013
475,Revenue,CCHD,Community Support - North,Preventative Assistance,Dobbins Industrial Cleaning Limited,440, 03-Sep-2013
476,Revenue,CCHD,Minor Adaptations Service,Preventative Assistance,Dobbins Industrial Cleaning Limited,440, 24-Sep-2013
477,Revenue,CCHD,Home Care - Elderly - South,Other Small Contracts,DoCare Ltd,4567.26, 18-Sep-2013
478,Revenue,CCHD,Home Care - Elderly - North,Other Small Contracts,DoCare Ltd,7738.19, 18-Sep-2013
479,Revenue,CCHD,Day Care - North,Private & Voluntary Day Care,DoCare Ltd,168.12, 18-Sep-2013
480,Revenue,CCHD,Home Care - Elderly - South,Other Small Contracts,DoCare Ltd,4641.98, 18-Sep-2013
481,Revenue,CCHD,Home Care - Elderly - North,Other Small Contracts,DoCare Ltd,7378.6, 18-Sep-2013
482,Revenue,CCHD,Day Care - North,Private & Voluntary Day Care,DoCare Ltd,130.76, 18-Sep-2013
483,Revenue,CCHD,Home Care - Elderly - South,Other Small Contracts,DoCare Ltd,4319.75, 24-Sep-2013
484,Revenue,CCHD,Home Care - Elderly - North,Other Small Contracts,DoCare Ltd,7570.07, 24-Sep-2013
485,Revenue,CCHD,Day Care - North,Private & Voluntary Day Care,DoCare Ltd,168.12, 24-Sep-2013
486,Revenue,CCHD,Home Care - Elderly - South,Other Small Contracts,DoCare Ltd,4487.87, 24-Sep-2013
487,Revenue,CCHD,Home Care - Elderly - North,Other Small Contracts,DoCare Ltd,7733.52, 24-Sep-2013
488,Revenue,CCHD,Day Care - North,Private & Voluntary Day Care,DoCare Ltd,168.12, 24-Sep-2013
489,Revenue,CCHD,Home Care - Elderly - South,Other Small Contracts,DoCare Ltd,4922.18, 24-Sep-2013
490,Revenue,CCHD,Home Care - Elderly - North,Other Small Contracts,DoCare Ltd,7210.48, 24-Sep-2013
491,Revenue,CCHD,Day Care - North,Private & Voluntary Day Care,DoCare Ltd,163.45, 24-Sep-2013
492,Revenue,CCHD,Home Care - Elderly - South,Other Small Contracts,DoCare Ltd,4875.48, 24-Sep-2013
493,Revenue,CCHD,Home Care - Elderly - North,Other Small Contracts,DoCare Ltd,7079.72, 24-Sep-2013
494,Revenue,CCHD,Day Care - North,Private & Voluntary Day Care,DoCare Ltd,168.12, 24-Sep-2013
495,Revenue,CCHD,Bed Purchasing - Under 65s PWLD - South,Residential Homes,Dudbridge House,6546.16, 03-Sep-2013
496,Revenue,CCHD,Bed Purchasing - Elderly - South,Nursing Homes,Dunkirk Memorial House,1158.8, 03-Sep-2013
497,Revenue,CCHD,MH Purchasing - Younger,Residential Homes,Dunraven House,1826.8, 03-Sep-2013
498,Revenue,CCHD,Bed purchasing - Under 65s PWLD - North,Residential Homes,East Court,2180.72, 03-Sep-2013
499,Revenue,CCHD,Minor Adaptations Service,Operational Equipment,Eastman & Co (Timber) Limited,956.66, 13-Sep-2013
500,Revenue,CCHD,Day Care - South,Private & Voluntary Day Care,Easton Community Centre,512.88, 04-Sep-2013
501,Revenue,CCHD,Day Care - South,Private & Voluntary Day Care,Easton Community Centre,512.88, 04-Sep-2013
502,Revenue,CCHD,Younger MH non-res purchasing,Private & Voluntary Day Care,Easton Community Centre,512.88, 04-Sep-2013
503,Revenue,CCHD,Day Care - South,Private & Voluntary Day Care,Easton Community Centre,512.88, 04-Sep-2013
504,Revenue,CCHD,Day Care - South,Private & Voluntary Day Care,Easton Community Centre,512.88, 04-Sep-2013
505,Revenue,CCHD,Bed Purchasing - Elderly - South,Residential Homes,Edgecumbe Lodge,1514, 03-Sep-2013
506,Revenue,CCHD,Bed Purchasing - Elderly - South,Residential Homes,Edgecumbe Lodge,919.22, 03-Sep-2013
507,Revenue,CCHD,Bed Purchasing - Southmead Hospital,Residential Homes,Edgecumbe Lodge,1246, 03-Sep-2013
508,Revenue,CCHD,Bed Purchasing - Elderly - South,Residential Homes,Edgecumbe Lodge,1052.16, 03-Sep-2013
509,Revenue,CCHD,Bed Purchasing - Elderly - South,Residential Homes,Edgecumbe Lodge,1312.64, 03-Sep-2013
510,Revenue,CCHD,Bed Purchasing - Elderly - South,Residential Homes,Edgecumbe Lodge,1405.12, 03-Sep-2013
511,Revenue,CCHD,Bed Purchasing - Southmead Hospital,Residential Homes,Edgecumbe Lodge,1514, 03-Sep-2013
512,Revenue,CCHD,Bed Purchasing - Elderly - South,Residential Homes,Edgecumbe Lodge,991.96, 03-Sep-2013
513,Revenue,CCHD,Bed Purchasing - Elderly - South,Residential Homes,Edgecumbe Lodge,1276.24, 03-Sep-2013
514,Revenue,CCHD,Bed Purchasing - Elderly - South,Residential Homes,Edgecumbe Lodge,1223.16, 03-Sep-2013
515,Revenue,CCHD,Bed Purchasing - Elderly MH - South,Residential Homes,Edgecumbe Lodge,1151.68, 03-Sep-2013
516,Revenue,CCHD,Bed Purchasing - Southmead Hospital,Residential Homes,Edgemont House Ltd,1414, 03-Sep-2013
517,Revenue,CCHD,Bed Purchasing - Elderly - South,Residential Homes,Edgemont House Ltd,1246, 03-Sep-2013
518,Revenue,CCHD,Bed Purchasing - Elderly - South,Residential Homes,Edgemont House Ltd,1246, 03-Sep-2013
519,Revenue,CCHD,Bed Purchasing - Elderly - South,Residential Homes,Edgemont House Ltd,1412.04, 03-Sep-2013
520,Revenue,CCHD,Bed Purchasing - Elderly - South,Residential Homes,Edgemont House Ltd,1260.96, 03-Sep-2013
521,Revenue,CCHD,Bed Purchasing - Elderly - South,Nursing Homes,Edgemont View Nursing Home,1427.52, 03-Sep-2013
522,Revenue,CCHD,Bed Purchasing - Frenchay Hospital,Nursing Homes,Edgemont View Nursing Home,797.4, 03-Sep-2013
523,Revenue,CCHD,Bed Purchasing - Elderly - South,Nursing Homes,Edgemont View Nursing Home,1302, 03-Sep-2013
524,Revenue,CCHD,Bed Purchasing - Elderly - South,Nursing Homes,Edgemont View Nursing Home,1151.6, 03-Sep-2013
525,Revenue,CCHD,Bed Purchasing - Elderly - South,Nursing Homes,Edgemont View Nursing Home,1613.52, 03-Sep-2013
526,Revenue,CCHD,Bed Purchasing - Elderly - South,Nursing Homes,Edgemont View Nursing Home,1177.24, 03-Sep-2013
527,Revenue,CCHD,Home Care - Elderly - South,Other Small Contracts,Elite Home Care Ltd,4880.77, 11-Sep-2013
528,Revenue,CCHD,Home Care - Elderly - North,Other Small Contracts,Elite Home Care Ltd,34.96, 11-Sep-2013
529,Revenue,CCHD,Home care - Elderly MH - North,Other Small Contracts,Elite Home Care Ltd,148.58, 11-Sep-2013
530,Revenue,CCHD,Home Care - Elderly - South,Other Small Contracts,Elite Home Care Ltd,4802.15, 12-Sep-2013
531,Revenue,CCHD,Home care - Elderly MH - North,Other Small Contracts,Elite Home Care Ltd,157.32, 12-Sep-2013
532,Revenue,CCHD,Home Care - Elderly - South,Other Small Contracts,Elite Home Care Ltd,5003.13, 12-Sep-2013
533,Revenue,CCHD,Home care - Elderly MH - North,Other Small Contracts,Elite Home Care Ltd,157.32, 12-Sep-2013
534,Revenue,CCHD,Home Care - Elderly - South,Other Small Contracts,Elite Home Care Ltd,5033.8, 16-Sep-2013
535,Revenue,CCHD,Home care - Elderly MH - North,Other Small Contracts,Elite Home Care Ltd,157.32, 16-Sep-2013
536,Revenue,CCHD,Home Care - Elderly - South,Other Small Contracts,Elite Home Care Ltd,4928.88, 17-Sep-2013
537,Revenue,CCHD,Home care - Elderly MH - North,Other Small Contracts,Elite Home Care Ltd,157.32, 17-Sep-2013
538,Revenue,CCHD,Bed Purchasing - Frenchay Hospital,Nursing Homes,Elmwood Nursing Home,2223.88, 03-Sep-2013
539,Revenue,CCHD,Younger MH non-res purchasing,Private & Voluntary Day Care,Enham,638.72, 04-Sep-2013
540,Revenue,CCHD,Bed Purchasing - Southmead Hospital,Nursing Homes,Epworth House,1335, 03-Sep-2013
541,Revenue,CCHD,Home Care - Elderly - South,Other Small Contracts,Everycare (Bristol) Ltd,5668.88, 11-Sep-2013
542,Revenue,CCHD,Home Care - Elderly - North,Other Small Contracts,Everycare (Bristol) Ltd,2709.36, 11-Sep-2013
543,Revenue,CCHD,Day Care - South,Private & Voluntary Day Care,Everycare (Bristol) Ltd,101.76, 11-Sep-2013
544,Revenue,CCHD,Under 65s -MH  Home Care Purch,Other Small Contracts,Everycare (Bristol) Ltd,84.8, 11-Sep-2013
545,Revenue,CCHD,Home Care - Elderly - South,Other Small Contracts,Everycare (Bristol) Ltd,5643.44, 11-Sep-2013
546,Revenue,CCHD,Home Care - Elderly - North,Other Small Contracts,Everycare (Bristol) Ltd,2845.04, 11-Sep-2013
547,Revenue,CCHD,Day Care - South,Private & Voluntary Day Care,Everycare (Bristol) Ltd,67.84, 11-Sep-2013
548,Revenue,CCHD,Under 65s -MH  Home Care Purch,Other Small Contracts,Everycare (Bristol) Ltd,84.8, 11-Sep-2013
549,Revenue,CCHD,Home Care - Elderly - South,Other Small Contracts,Everycare (Bristol) Ltd,5249.12, 27-Sep-2013
550,Revenue,CCHD,Home Care - Elderly - North,Other Small Contracts,Everycare (Bristol) Ltd,2454.96, 27-Sep-2013
551,Revenue,CCHD,Day Care - South,Private & Voluntary Day Care,Everycare (Bristol) Ltd,93.28, 27-Sep-2013
552,Revenue,CCHD,Under 65s -MH  Home Care Purch,Other Small Contracts,Everycare (Bristol) Ltd,50.88, 27-Sep-2013
553,Revenue,CCHD,Bed Purchasing - Elderly - South,Nursing Homes,Fairview Court,1180.4, 03-Sep-2013
554,Revenue,CCHD,Bed purchasing - Elderly MH - North,Nursing Homes,Fairview Court,1595.96, 03-Sep-2013
555,Revenue,CCHD,Bed Purchasing - Elderly MH - South,Nursing Homes,Fairview Court,1850.48, 03-Sep-2013
556,Revenue,CCHD,Bed Purchasing - Elderly MH - South,Nursing Homes,Fairview Court,14978.11, 03-Sep-2013
557,Revenue,CCHD,Bed Purchasing - Elderly MH - South,Nursing Homes,Fairview Court,1934.36, 03-Sep-2013
558,Revenue,CCHD,Bed Purchasing - Elderly MH - South,Nursing Homes,Fairview Court,1095.91, 03-Sep-2013
559,Revenue,CCHD,Bed Purchasing - Southmead Hospital,Nursing Homes,Fairview Court,1023.72, 03-Sep-2013
560,Revenue,CCHD,Bed Purchasing - Elderly - South,Nursing Homes,Fairview Court,5019.99, 03-Sep-2013
561,Revenue,CCHD,Bed Purchasing - Elderly - South,Nursing Homes,Fairview Court,2303.01, 03-Sep-2013
562,Revenue,CCHD,Bed Purchasing - Elderly - South,Nursing Homes,Fairview Court,1056.84, 03-Sep-2013
563,Revenue,CCHD,Bed Purchasing - Elderly MH - South,Residential Homes,Fairview Court,1414, 03-Sep-2013
564,Revenue,CCHD,Bed Purchasing - Elderly - South,Residential Homes,Fairview Court,2648.56, 03-Sep-2013
565,Revenue,CCHD,Bed Purchasing - Elderly - South,Residential Homes,Fairview Court,2154.56, 03-Sep-2013
566,Revenue,CCHD,Bed Purchasing - Elderly - South,Nursing Homes,Fairview Court,1830.44, 03-Sep-2013
567,Revenue,CCHD,Bed Purchasing - Southmead Hospital,Nursing Homes,Fairview Court,2194, 03-Sep-2013
568,Revenue,CCHD,Bed Purchasing - Frenchay Hospital,Nursing Homes,Fairview Court,1836.08, 03-Sep-2013
569,Revenue,CCHD,Bed Purchasing - Elderly MH - South,Nursing Homes,Fairview Court,2002.88, 03-Sep-2013
570,Revenue,CCHD,Bed purchasing - Elderly MH - North,Nursing Homes,Fairview Court,1699.6, 03-Sep-2013
571,Revenue,CCHD,Bed Purchasing - Frenchay Hospital,Nursing Homes,Fairview Court Care Home,1482.48, 24-Sep-2013
572,Revenue,CCHD,South Glos Users in South Glos Homes,Nursing Homes,Fairview Court Care Home,2823.17, 24-Sep-2013
573,Revenue,CCHD,Bed purchasing - Phys Dis - North,Nursing Homes,Fairview Court Care Home,1927.38, 24-Sep-2013
574,Revenue,CCHD,Bed Purchasing - Elderly MH - South,Nursing Homes,Fairview Court Care Home,4528.14, 24-Sep-2013
575,Revenue,CCHD,Bed purchasing - Elderly S117 - South,Nursing Homes,Fairview Court Care Home,2491.46, 24-Sep-2013
576,Revenue,CCHD,Bed Purchasing - Elderly - South,Residential Homes,Fairview House,865.48, 03-Sep-2013
577,Revenue,CCHD,Bed Purchasing - Elderly - South,Residential Homes,Fairview House,1265.24, 03-Sep-2013
578,Revenue,CCHD,Bed Purchasing - Frenchay Hospital,Residential Homes,Fairview House,992.24, 03-Sep-2013
579,Revenue,CCHD,Bed Purchasing - Elderly - South,Residential Homes,Fairview House,928.12, 03-Sep-2013
580,Revenue,CCHD,Bed purchasing - Elderly S117 - South,Residential Homes,Fairview House,1888.88, 03-Sep-2013
581,Revenue,CCHD,Bed Purchasing - Southmead Hospital,Residential Homes,Fairview House,1019.48, 03-Sep-2013
582,Revenue,CCHD,Bed Purchasing - Elderly - South,Residential Homes,Fairview House,1188.36, 03-Sep-2013
583,Revenue,CCHD,Bed Purchasing - Southmead Hospital,Residential Homes,Fairview House,1116.24, 03-Sep-2013
584,Revenue,CCHD,Bed Purchasing - Elderly MH - South,Residential Homes,Fairview House,1109.84, 03-Sep-2013
585,Revenue,CCHD,Bed Purchasing - Frenchay Hospital,Residential Homes,Fairview House,1246, 03-Sep-2013
586,Revenue,CCHD,Bed Purchasing - Southmead Hospital,Residential Homes,Fairview House,1062.04, 03-Sep-2013
587,Revenue,CCHD,Bed Purchasing - Elderly MH - South,Residential Homes,Fairview House,1036.08, 03-Sep-2013
588,Revenue,CCHD,Bed Purchasing - Elderly MH - South,Residential Homes,Fairview House,1206.32, 03-Sep-2013
589,Revenue,CCHD,Bed Purchasing - Frenchay Hospital,Residential Homes,Faith House,1310.92, 03-Sep-2013
590,Revenue,CCHD,Bed purchasing - Under 65s PWLD - North,Residential Homes,Fernbank,7593.16, 03-Sep-2013
591,Revenue,CCHD,Home Care - Elderly - South,Other Small Contracts,Firstpoint Homecare Ltd,1835.52, 27-Sep-2013
592,Revenue,CCHD,Home Care - Elderly - North,Other Small Contracts,Firstpoint Homecare Ltd,1232.64, 27-Sep-2013
593,Revenue,CCHD,Day Care - South,Private & Voluntary Day Care,Firstpoint Homecare Ltd,276.48, 27-Sep-2013
594,Revenue,CCHD,Day Care - North,Private & Voluntary Day Care,Firstpoint Homecare Ltd,192, 27-Sep-2013
595,Revenue,CCHD,Under 65s -MH  Home Care Purch,Other Small Contracts,Firstpoint Homecare Ltd,46.08, 27-Sep-2013
596,Revenue,CCHD,Younger MH non-res purchasing,Private & Voluntary Day Care,Firstpoint Homecare Ltd,69.12, 27-Sep-2013
597,Revenue,CCHD,Home care - Elderly MH - North,Other Small Contracts,Firstpoint Homecare Ltd,157.44, 27-Sep-2013
598,Revenue,CCHD,Elderly MH Day Care North,Private & Voluntary Day Care,Firstpoint Homecare Ltd,92.16, 27-Sep-2013
599,Revenue,CCHD,Home Care - Elderly - South,Other Small Contracts,Firstpoint Homecare Ltd,1397.76, 27-Sep-2013
600,Revenue,CCHD,Home Care - Elderly - North,Other Small Contracts,Firstpoint Homecare Ltd,1102.08, 27-Sep-2013
601,Revenue,CCHD,Day Care - South,Private & Voluntary Day Care,Firstpoint Homecare Ltd,122.88, 27-Sep-2013
602,Revenue,CCHD,Day Care - North,Private & Voluntary Day Care,Firstpoint Homecare Ltd,249.6, 27-Sep-2013
603,Revenue,CCHD,Under 65s -MH  Home Care Purch,Other Small Contracts,Firstpoint Homecare Ltd,46.08, 27-Sep-2013
604,Revenue,CCHD,Home care - Elderly MH - North,Other Small Contracts,Firstpoint Homecare Ltd,49.92, 27-Sep-2013
605,Revenue,CCHD,Elderly MH Day Care North,Private & Voluntary Day Care,Firstpoint Homecare Ltd,92.16, 27-Sep-2013
606,Revenue,CCHD,Home Care - Elderly - South,Other Small Contracts,Firstpoint Homecare Ltd,1221.12, 27-Sep-2013
607,Revenue,CCHD,Home Care - Elderly - North,Other Small Contracts,Firstpoint Homecare Ltd,1186.56, 27-Sep-2013
608,Revenue,CCHD,Day Care - South,Private & Voluntary Day Care,Firstpoint Homecare Ltd,245.76, 27-Sep-2013
609,Revenue,CCHD,Day Care - North,Private & Voluntary Day Care,Firstpoint Homecare Ltd,249.6, 27-Sep-2013
610,Revenue,CCHD,Under 65s -MH  Home Care Purch,Other Small Contracts,Firstpoint Homecare Ltd,46.08, 27-Sep-2013
611,Revenue,CCHD,Younger MH non-res purchasing,Private & Voluntary Day Care,Firstpoint Homecare Ltd,46.08, 27-Sep-2013
612,Revenue,CCHD,Home care - Elderly MH - North,Other Small Contracts,Firstpoint Homecare Ltd,46.08, 27-Sep-2013
613,Revenue,CCHD,Elderly MH Day Care North,Private & Voluntary Day Care,Firstpoint Homecare Ltd,92.16, 27-Sep-2013
614,Revenue,CCHD,Home Care - Elderly - South,Other Small Contracts,Firstpoint Homecare Ltd,1551.36, 27-Sep-2013
615,Revenue,CCHD,Home Care - Elderly - North,Other Small Contracts,Firstpoint Homecare Ltd,1067.52, 27-Sep-2013
616,Revenue,CCHD,Day Care - South,Private & Voluntary Day Care,Firstpoint Homecare Ltd,215.04, 27-Sep-2013
617,Revenue,CCHD,Day Care - North,Private & Voluntary Day Care,Firstpoint Homecare Ltd,241.92, 27-Sep-2013
618,Revenue,CCHD,Under 65s -MH  Home Care Purch,Other Small Contracts,Firstpoint Homecare Ltd,46.08, 27-Sep-2013
619,Revenue,CCHD,Younger MH non-res purchasing,Private & Voluntary Day Care,Firstpoint Homecare Ltd,69.12, 27-Sep-2013
620,Revenue,CCHD,Home care - Elderly MH - North,Other Small Contracts,Firstpoint Homecare Ltd,165.12, 27-Sep-2013
621,Revenue,CCHD,Elderly MH Day Care North,Private & Voluntary Day Care,Firstpoint Homecare Ltd,92.16, 27-Sep-2013
622,Revenue,CCHD,Home Care - Elderly - South,Other Small Contracts,Firstpoint Homecare Ltd,1378.56, 27-Sep-2013
623,Revenue,CCHD,Home Care - Elderly - North,Other Small Contracts,Firstpoint Homecare Ltd,1186.56, 27-Sep-2013
624,Revenue,CCHD,Day Care - South,Private & Voluntary Day Care,Firstpoint Homecare Ltd,215.04, 27-Sep-2013
625,Revenue,CCHD,Day Care - North,Private & Voluntary Day Care,Firstpoint Homecare Ltd,203.52, 27-Sep-2013
626,Revenue,CCHD,Under 65s -MH  Home Care Purch,Other Small Contracts,Firstpoint Homecare Ltd,46.08, 27-Sep-2013
627,Revenue,CCHD,Younger MH non-res purchasing,Private & Voluntary Day Care,Firstpoint Homecare Ltd,46.08, 27-Sep-2013
628,Revenue,CCHD,Elderly MH Day Care North,Private & Voluntary Day Care,Firstpoint Homecare Ltd,92.16, 27-Sep-2013
629,Revenue,CCHD,Home Care - Elderly - South,Other Small Contracts,Firstpoint Homecare Ltd,1474.56, 27-Sep-2013
630,Revenue,CCHD,Home Care - Elderly - North,Other Small Contracts,Firstpoint Homecare Ltd,1240.32, 27-Sep-2013
631,Revenue,CCHD,Day Care - South,Private & Voluntary Day Care,Firstpoint Homecare Ltd,272.64, 27-Sep-2013
632,Revenue,CCHD,Day Care - North,Private & Voluntary Day Care,Firstpoint Homecare Ltd,245.76, 27-Sep-2013
633,Revenue,CCHD,Younger MH non-res purchasing,Private & Voluntary Day Care,Firstpoint Homecare Ltd,65.28, 27-Sep-2013
634,Revenue,CCHD,Home care - Elderly MH - North,Other Small Contracts,Firstpoint Homecare Ltd,115.2, 27-Sep-2013
635,Revenue,CCHD,Elderly MH Day Care North,Private & Voluntary Day Care,Firstpoint Homecare Ltd,92.16, 27-Sep-2013
636,Revenue,CCHD,Home Care - Elderly - South,Other Small Contracts,Firstpoint Homecare Ltd,1443.84, 27-Sep-2013
637,Revenue,CCHD,Home Care - Elderly - North,Other Small Contracts,Firstpoint Homecare Ltd,1351.68, 27-Sep-2013
638,Revenue,CCHD,Day Care - South,Private & Voluntary Day Care,Firstpoint Homecare Ltd,245.76, 27-Sep-2013
639,Revenue,CCHD,Day Care - North,Private & Voluntary Day Care,Firstpoint Homecare Ltd,203.52, 27-Sep-2013
640,Revenue,CCHD,Under 65s -MH  Home Care Purch,Other Small Contracts,Firstpoint Homecare Ltd,46.08, 27-Sep-2013
641,Revenue,CCHD,Home care - Elderly MH - North,Other Small Contracts,Firstpoint Homecare Ltd,46.08, 27-Sep-2013
642,Revenue,CCHD,Elderly MH Day Care North,Private & Voluntary Day Care,Firstpoint Homecare Ltd,92.16, 27-Sep-2013
643,Revenue,CCHD,Home Care - Elderly - South,Other Small Contracts,Firstpoint Homecare Ltd,1159.68, 27-Sep-2013
644,Revenue,CCHD,Home Care - Elderly - North,Other Small Contracts,Firstpoint Homecare Ltd,1244.16, 27-Sep-2013
645,Revenue,CCHD,Day Care - South,Private & Voluntary Day Care,Firstpoint Homecare Ltd,272.64, 27-Sep-2013
646,Revenue,CCHD,Day Care - North,Private & Voluntary Day Care,Firstpoint Homecare Ltd,241.92, 27-Sep-2013
647,Revenue,CCHD,Under 65s -MH  Home Care Purch,Other Small Contracts,Firstpoint Homecare Ltd,46.08, 27-Sep-2013
648,Revenue,CCHD,Younger MH non-res purchasing,Private & Voluntary Day Care,Firstpoint Homecare Ltd,69.12, 27-Sep-2013
649,Revenue,CCHD,Elderly MH Day Care North,Private & Voluntary Day Care,Firstpoint Homecare Ltd,99.84, 27-Sep-2013
650,Revenue,CCHD,Home Care - Elderly - South,Other Small Contracts,Firstpoint Homecare Ltd,1278.72, 27-Sep-2013
651,Revenue,CCHD,Home Care - Elderly - North,Other Small Contracts,Firstpoint Homecare Ltd,1286.4, 27-Sep-2013
652,Revenue,CCHD,Day Care - South,Private & Voluntary Day Care,Firstpoint Homecare Ltd,276.48, 27-Sep-2013
653,Revenue,CCHD,Day Care - North,Private & Voluntary Day Care,Firstpoint Homecare Ltd,245.76, 27-Sep-2013
654,Revenue,CCHD,Under 65s -MH  Home Care Purch,Other Small Contracts,Firstpoint Homecare Ltd,46.08, 27-Sep-2013
655,Revenue,CCHD,Younger MH non-res purchasing,Private & Voluntary Day Care,Firstpoint Homecare Ltd,46.08, 27-Sep-2013
656,Revenue,CCHD,Elderly MH Day Care North,Private & Voluntary Day Care,Firstpoint Homecare Ltd,92.16, 27-Sep-2013
657,Revenue,CCHD,Home Care - Elderly - South,Other Small Contracts,Firstpoint Homecare Ltd,1731.84, 27-Sep-2013
658,Revenue,CCHD,Home Care - Elderly - North,Other Small Contracts,Firstpoint Homecare Ltd,1009.92, 27-Sep-2013
659,Revenue,CCHD,Day Care - South,Private & Voluntary Day Care,Firstpoint Homecare Ltd,280.32, 27-Sep-2013
660,Revenue,CCHD,Day Care - North,Private & Voluntary Day Care,Firstpoint Homecare Ltd,203.52, 27-Sep-2013
661,Revenue,CCHD,Under 65s -MH  Home Care Purch,Other Small Contracts,Firstpoint Homecare Ltd,46.08, 27-Sep-2013
662,Revenue,CCHD,Younger MH non-res purchasing,Private & Voluntary Day Care,Firstpoint Homecare Ltd,69.12, 27-Sep-2013
663,Revenue,CCHD,Home care - Elderly MH - North,Other Small Contracts,Firstpoint Homecare Ltd,161.28, 27-Sep-2013
664,Revenue,CCHD,Elderly MH Day Care North,Private & Voluntary Day Care,Firstpoint Homecare Ltd,96, 27-Sep-2013
665,Revenue,CCHD,Home Care - Elderly - South,Other Small Contracts,Firstpoint Homecare Ltd,1359.36, 16-Sep-2013
666,Revenue,CCHD,Home Care - Elderly - North,Other Small Contracts,Firstpoint Homecare Ltd,956.16, 16-Sep-2013
667,Revenue,CCHD,Day Care - South,Private & Voluntary Day Care,Firstpoint Homecare Ltd,280.32, 16-Sep-2013
668,Revenue,CCHD,Day Care - North,Private & Voluntary Day Care,Firstpoint Homecare Ltd,245.76, 16-Sep-2013
669,Revenue,CCHD,Under 65s -MH  Home Care Purch,Other Small Contracts,Firstpoint Homecare Ltd,46.08, 16-Sep-2013
670,Revenue,CCHD,Home care - Elderly MH - North,Other Small Contracts,Firstpoint Homecare Ltd,46.08, 16-Sep-2013
671,Revenue,CCHD,Elderly MH Day Care North,Private & Voluntary Day Care,Firstpoint Homecare Ltd,92.16, 16-Sep-2013
672,Revenue,CCHD,User Involvement,Other Supplies & Services,Forget Me Not Book Ltd,2000, 03-Sep-2013
673,Revenue,CCHD,Bed Purchasing - Elderly - South,Nursing Homes,Four Seasons Health Care,1177.16, 03-Sep-2013
674,Revenue,CCHD,Freeways,Residential Homes,Freeways Trust Limited,91987.18, 18-Sep-2013
675,Revenue,CCHD,Supported Living - South,Private & Voluntary Home Care,Freeways Trust Limited,1389.08, 09-Sep-2013
676,Revenue,CCHD,Supported Living - South,Private & Voluntary Home Care,Freeways Trust Limited,1371.94, 24-Sep-2013
677,Revenue,CCHD,Bed purchasing - Under 65s PWLD - North,Residential Homes,Freeways Trust Ltd,2817.88, 03-Sep-2013
678,Revenue,CCHD,Bed purchasing - S28A Under 65 - South,Residential Homes,Freeways Trust Ltd,2899.4, 03-Sep-2013
679,Revenue,CCHD,Bed purchasing - Under 65s PWLD - North,Residential Homes,Freeways Trust Ltd,2682.36, 03-Sep-2013
680,Revenue,CCHD,Bed purchasing - Under 65s PWLD - North,Residential Homes,Freeways Trust Ltd,2253.16, 03-Sep-2013
681,Revenue,CCHD,Bed purchasing - Under 65s PWLD - North,Residential Homes,Freeways Trust Ltd,2691.08, 03-Sep-2013
682,Revenue,CCHD,Bed Purchasing - Under 65s PWLD - South,Residential Homes,Freeways Trust Ltd,3289.6, 03-Sep-2013
683,Revenue,CCHD,Bed purchasing - Elderly PWLD - North,Residential Homes,Freeways Trust Ltd,2235.92, 03-Sep-2013
684,Revenue,CCHD,Bed Purchasing - Under 65s PWLD - South,Residential Homes,Freeways Trust Ltd,2382.36, 03-Sep-2013
685,Revenue,CCHD,Bed purchasing - Under 65s PWLD - North,Residential Homes,Freeways Trust Ltd,2691.08, 03-Sep-2013
686,Revenue,CCHD,Bed purchasing - Elderly PWLD - North,Residential Homes,Freeways Trust Ltd,2511.56, 03-Sep-2013
687,Revenue,CCHD,Section 117 Placements MH Younger,Residential Homes,Freeways Trust Ltd,3324, 03-Sep-2013
688,Revenue,CCHD,Bed Purchasing - Under 65s PWLD - South,Residential Homes,Freeways Trust Ltd,6117.96, 03-Sep-2013
689,Revenue,CCHD,Bed Purchasing - Frenchay Hospital,Nursing Homes,Frenchay Park Nursing Home,1254.56, 03-Sep-2013
690,Revenue,CCHD,Bed Purchasing - Frenchay Hospital,Nursing Homes,Frenchay Park Nursing Home,1004.36, 03-Sep-2013
691,Revenue,CCHD,Bed Purchasing - Elderly - South,Nursing Homes,Fshc  1St Floor,891.56, 03-Sep-2013
692,Revenue,CCHD,Bed Purchasing - Elderly - South,Nursing Homes,Fshc  1St Floor,1287.08, 03-Sep-2013
693,Revenue,CCHD,Bed Purchasing - Frenchay Hospital,Residential Homes,Fshc  1St Floor,893.96, 03-Sep-2013
694,Revenue,CCHD,Bed Purchasing - Southmead Hospital,Nursing Homes,Fshc  1St Floor,1370, 03-Sep-2013
695,Revenue,CCHD,Bed Purchasing - Southmead Hospital,Nursing Homes,Fshc  1St Floor,782.16, 03-Sep-2013
696,Revenue,CCHD,Bed Purchasing - Frenchay Hospital,Nursing Homes,Fshc  1St Floor,1370, 03-Sep-2013
697,Revenue,CCHD,Bed Purchasing - Southmead Hospital,Nursing Homes,Fshc  1St Floor,1370, 03-Sep-2013
698,Revenue,CCHD,Bed purchasing - Elderly MH - North,Residential Homes,Fshc  1St Floor,958.24, 03-Sep-2013
699,Revenue,CCHD,Bed Purchasing - Frenchay Hospital,Nursing Homes,Fshc  1St Floor,1370, 03-Sep-2013
700,Revenue,CCHD,Bed Purchasing - Frenchay Hospital,Nursing Homes,Fshc  1St Floor,1027.5, 03-Sep-2013
701,Revenue,CCHD,Bed Purchasing - Elderly - South,Nursing Homes,Fshc  1St Floor,1048.64, 03-Sep-2013
702,Revenue,CCHD,Bed Purchasing - Southmead Hospital,Nursing Homes,Fshc  1St Floor,1370, 03-Sep-2013
703,Revenue,CCHD,Bed Purchasing - Elderly - South,Nursing Homes,Fshc  1St Floor,1206.72, 03-Sep-2013
704,Revenue,CCHD,Bed Purchasing - Elderly - South,Residential Homes,Fshc  1St Floor,2357.82, 03-Sep-2013
705,Revenue,CCHD,Bed Purchasing - Elderly - South,Residential Homes,Fshc  1St Floor,766.26, 03-Sep-2013
706,Revenue,CCHD,Bed Purchasing - Elderly - South,Nursing Homes,Fshc  1St Floor,1301.36, 03-Sep-2013
707,Revenue,CCHD,Bed Purchasing - Frenchay Hospital,Nursing Homes,Fshc  1St Floor,1308.96, 03-Sep-2013
708,Revenue,CCHD,Bed Purchasing - Southmead Hospital,Nursing Homes,Fshc  1St Floor,1370, 03-Sep-2013
709,Revenue,CCHD,Bed Purchasing - Southmead Hospital,Residential Homes,Fshc  1St Floor,533.6, 03-Sep-2013
710,Revenue,CCHD,Bed Purchasing - Southmead Hospital,Nursing Homes,Fshc  1St Floor,1102.08, 03-Sep-2013
711,Revenue,CCHD,Bed Purchasing - Elderly - North,Nursing Homes,Fshc  1St Floor,1370, 03-Sep-2013
712,Revenue,CCHD,Bed Purchasing - Elderly - North,Nursing Homes,Fshc  1St Floor,1856, 03-Sep-2013
713,Revenue,CCHD,Bed Purchasing - Frenchay Hospital,Nursing Homes,Fshc  1St Floor,1180.6, 03-Sep-2013
714,Revenue,CCHD,Bed Purchasing - Elderly - South,Nursing Homes,Fshc  1St Floor,1370, 03-Sep-2013
715,Revenue,CCHD,Bed Purchasing - Elderly - South,Nursing Homes,Fshc  1St Floor,1316.36, 03-Sep-2013
716,Revenue,CCHD,Bed Purchasing - Elderly MH - South,Nursing Homes,Fshc  1St Floor,1370, 03-Sep-2013
717,Revenue,CCHD,Bed Purchasing - Elderly - South,Nursing Homes,Fshc  1St Floor,1082.04, 03-Sep-2013
718,Revenue,CCHD,Bed Purchasing - Elderly - South,Nursing Homes,Fshc  1St Floor,1371.6, 03-Sep-2013
719,Revenue,CCHD,Bed Purchasing - Frenchay Hospital,Nursing Homes,Fshc  1St Floor,1078.4, 03-Sep-2013
720,Revenue,CCHD,Bed Purchasing - Elderly MH - South,Residential Homes,Fshc  1St Floor,1090.48, 03-Sep-2013
721,Revenue,CCHD,Bed Purchasing - Elderly - South,Nursing Homes,Fshc  1St Floor,765.08, 03-Sep-2013
722,Revenue,CCHD,Bed Purchasing - Southmead Hospital,Nursing Homes,Fshc  1St Floor,940.4, 03-Sep-2013
723,Revenue,CCHD,Bed Purchasing - Elderly - South,Nursing Homes,Fshc  1St Floor,1095.78, 03-Sep-2013
724,Revenue,CCHD,Bed Purchasing - Southmead Hospital,Nursing Homes,Fshc  1St Floor,1370, 03-Sep-2013
725,Revenue,CCHD,Bed Purchasing - Elderly MH - South,Nursing Homes,Fshc  1St Floor,1216.84, 03-Sep-2013
726,Revenue,CCHD,Bed Purchasing - Southmead Hospital,Nursing Homes,Fshc  1St Floor,1362.4, 03-Sep-2013
727,Revenue,CCHD,Bed purchasing - Elderly MH - North,Nursing Homes,Fshc  1St Floor,786.72, 03-Sep-2013
728,Revenue,CCHD,Bed Purchasing - Elderly - South,Nursing Homes,Fshc  1St Floor,992.4, 03-Sep-2013
729,Revenue,CCHD,Bed Purchasing - Southmead Hospital,Nursing Homes,Fshc  1St Floor,1549.56, 03-Sep-2013
730,Revenue,CCHD,Bed Purchasing - Elderly - North,Nursing Homes,Fshc  1St Floor,974.36, 03-Sep-2013
731,Revenue,CCHD,Bed Purchasing - Frenchay Hospital,Residential Homes,Fshc  1St Floor,735.36, 03-Sep-2013
732,Revenue,CCHD,Bed Purchasing - Elderly - North,Nursing Homes,Fshc  1St Floor,1284.08, 03-Sep-2013
733,Revenue,CCHD,Bed Purchasing - Southmead Hospital,Nursing Homes,Fshc  1St Floor,1214.71, 03-Sep-2013
734,Revenue,CCHD,Bed Purchasing - Elderly - North,Nursing Homes,Fshc  1St Floor,1339, 03-Sep-2013
735,Revenue,CCHD,Bed Purchasing - Elderly - South,Nursing Homes,Fshc  1St Floor,609.4, 03-Sep-2013
736,Revenue,CCHD,Bed Purchasing - Southmead Hospital,Nursing Homes,Fshc  1St Floor,1215.4, 03-Sep-2013
737,Revenue,CCHD,Bed Purchasing - Elderly - North,Residential Homes,Fshc  1St Floor,1347.68, 03-Sep-2013
738,Revenue,CCHD,South Glos Users in South Glos Homes,Nursing Homes,Fshc  1St Floor,2195.8, 03-Sep-2013
739,Revenue,CCHD,Bed Purchasing - Southmead Hospital,Nursing Homes,Fshc  1St Floor,1558, 03-Sep-2013
740,Revenue,CCHD,Bed Purchasing - Elderly - North,Residential Homes,Fshc  1St Floor,1438, 03-Sep-2013
741,Revenue,CCHD,Bed Purchasing - Elderly - North,Residential Homes,Fshc  1St Floor,877.23, 03-Sep-2013
742,Revenue,CCHD,Bed Purchasing - Southmead Hospital,Nursing Homes,Fshc  1St Floor,2032, 03-Sep-2013
743,Revenue,CCHD,Bed Purchasing - Frenchay Hospital,Nursing Homes,Fshc  1St Floor,1097.72, 03-Sep-2013
744,Revenue,CCHD,Bed Purchasing - Frenchay Hospital,Nursing Homes,Fshc  1St Floor,1114.96, 03-Sep-2013
745,Revenue,CCHD,Bed purchasing - Elderly MH - North,Nursing Homes,Fshc  1St Floor,1546, 03-Sep-2013
746,Revenue,CCHD,Bed purchasing - Elderly MH - North,Nursing Homes,Fshc  1St Floor,1159.5, 03-Sep-2013
747,Revenue,CCHD,Bed Purchasing - Southmead Hospital,Nursing Homes,Fshc  1St Floor,1370, 03-Sep-2013
748,Revenue,CCHD,Bed Purchasing - Elderly - South,Residential Homes,Fshc  1St Floor,1117.84, 03-Sep-2013
749,Revenue,CCHD,Bed Purchasing - Frenchay Hospital,Nursing Homes,Fshc  1St Floor,1546, 03-Sep-2013
750,Revenue,CCHD,Bed Purchasing - Elderly - North,Nursing Homes,Fshc  1St Floor,1370, 03-Sep-2013
751,Revenue,CCHD,Bed Purchasing - Southmead Hospital,Nursing Homes,Fshc  1St Floor,1370, 03-Sep-2013
752,Revenue,CCHD,Bed Purchasing - Elderly - North,Nursing Homes,Fshc  1St Floor,1295.6, 03-Sep-2013
753,Revenue,CCHD,Bed purchasing - Elderly MH - North,Nursing Homes,Fshc  1St Floor,1468.6, 03-Sep-2013
754,Revenue,CCHD,Bed Purchasing - Elderly - North,Nursing Homes,Fshc  1St Floor,1269.68, 03-Sep-2013
755,Revenue,CCHD,Bed Purchasing - Southmead Hospital,Nursing Homes,Fshc  1St Floor,1364.32, 03-Sep-2013
756,Revenue,CCHD,Bed Purchasing - Frenchay Hospital,Residential Homes,Fshc  1St Floor,628.4, 03-Sep-2013
757,Revenue,CCHD,Bed Purchasing - Frenchay Hospital,Nursing Homes,Fshc  1St Floor,1286.96, 03-Sep-2013
758,Revenue,CCHD,Bed Purchasing - Frenchay Hospital,Nursing Homes,Fshc  1St Floor,1350.84, 03-Sep-2013
759,Revenue,CCHD,Bed Purchasing - Elderly - North,Nursing Homes,Fshc  1St Floor,1041.72, 03-Sep-2013
760,Revenue,CCHD,Bed Purchasing - Elderly - North,Nursing Homes,Fshc  1St Floor,790.76, 03-Sep-2013
761,Revenue,CCHD,Bed Purchasing - Elderly - North,Nursing Homes,Fshc  1St Floor,767.72, 03-Sep-2013
762,Revenue,CCHD,Bed Purchasing - Frenchay Hospital,Nursing Homes,Fshc  1St Floor,1534.44, 03-Sep-2013
763,Revenue,CCHD,Bed Purchasing - Elderly - North,Nursing Homes,Fshc  1St Floor,1510, 03-Sep-2013
764,Revenue,CCHD,Bed Purchasing - Elderly - North,Residential Homes,Fshc  1St Floor,1246, 03-Sep-2013
765,Revenue,CCHD,Bed Purchasing - Elderly - North,Nursing Homes,Fshc  1St Floor,1370, 03-Sep-2013
766,Revenue,CCHD,Bed Purchasing - Frenchay Hospital,Nursing Homes,Fshc  1St Floor,1195.8, 03-Sep-2013
767,Revenue,CCHD,Bed Purchasing - Southmead Hospital,Nursing Homes,Fshc  1St Floor,1450.56, 03-Sep-2013
768,Revenue,CCHD,Bed Purchasing - Southmead Hospital,Nursing Homes,Fshc  1St Floor,588.96, 03-Sep-2013
769,Revenue,CCHD,Bed Purchasing - Southmead Hospital,Nursing Homes,Fshc  1St Floor,1546, 03-Sep-2013
770,Revenue,CCHD,Bed Purchasing - Elderly MH - South,Nursing Homes,Fshc  1St Floor,1327.8, 03-Sep-2013
771,Revenue,CCHD,Bed Purchasing - Elderly - North,Residential Homes,Fshc  1St Floor,505.4, 03-Sep-2013
772,Revenue,CCHD,Bed purchasing - Elderly MH - North,Residential Homes,Fshc  1St Floor,1246, 03-Sep-2013
773,Revenue,CCHD,Bed Purchasing - Elderly - North,Nursing Homes,Fshc  1St Floor,1530.84, 03-Sep-2013
774,Revenue,CCHD,Bed purchasing - Elderly S117 - South,Nursing Homes,Fshc  1St Floor,1856, 03-Sep-2013
775,Revenue,CCHD,Bed purchasing - Elderly MH - North,Residential Homes,Fshc  1St Floor,1255.2, 03-Sep-2013
776,Revenue,CCHD,Bed Purchasing - Elderly - South,Residential Homes,Fshc  1St Floor,4974.86, 03-Sep-2013
777,Revenue,CCHD,Bed Purchasing - Southmead Hospital,Residential Homes,Fshc  1St Floor,1246, 03-Sep-2013
778,Revenue,CCHD,Bed purchasing - Elderly MH - North,Residential Homes,Fshc  1St Floor,1253.57, 03-Sep-2013
779,Revenue,CCHD,Bed Purchasing - Elderly - North,Residential Homes,Fshc  1St Floor,1246, 03-Sep-2013
780,Revenue,CCHD,Bed Purchasing - Elderly - North,Nursing Homes,Fshc  1St Floor,1522, 03-Sep-2013
781,Revenue,CCHD,Bed purchasing - Elderly MH - North,Residential Homes,Fshc  1St Floor,1378.88, 03-Sep-2013
782,Revenue,CCHD,Bed Purchasing - Elderly - North,Nursing Homes,Fshc  1St Floor,1349.52, 03-Sep-2013
783,Revenue,CCHD,Bed Purchasing - Southmead Hospital,Nursing Homes,Fshc  1St Floor,1213.24, 03-Sep-2013
784,Revenue,CCHD,Bed purchasing - Elderly MH - North,Nursing Homes,Fshc  1St Floor,1048.64, 03-Sep-2013
785,Revenue,CCHD,Bed Purchasing - Frenchay Hospital,Nursing Homes,Fshc  1St Floor,1451.36, 03-Sep-2013
786,Revenue,CCHD,Bed Purchasing - Frenchay Hospital,Nursing Homes,Fshc  1St Floor,1195.24, 03-Sep-2013
787,Revenue,CCHD,Bed Purchasing - Frenchay Hospital,Nursing Homes,Fshc  1St Floor,2187.43, 03-Sep-2013
788,Revenue,CCHD,Bed Purchasing - Elderly - North,Nursing Homes,Fshc  1St Floor,1370, 03-Sep-2013
789,Revenue,CCHD,Bed Purchasing - Elderly - North,Residential Homes,Fshc  1St Floor,1254, 03-Sep-2013
790,Revenue,CCHD,Bed Purchasing - Elderly - North,Nursing Homes,Fshc  1St Floor,1145.72, 03-Sep-2013
791,Revenue,CCHD,Bed Purchasing - Frenchay Hospital,Residential Homes,Fshc  1St Floor,1246, 03-Sep-2013
792,Revenue,CCHD,Bed Purchasing - Southmead Hospital,Nursing Homes,Fshc  1St Floor,1614.64, 03-Sep-2013
793,Revenue,CCHD,Bed Purchasing - Southmead Hospital,Nursing Homes,Fshc  1St Floor,1370, 03-Sep-2013
794,Revenue,CCHD,Bed Purchasing - Frenchay Hospital,Nursing Homes,Fshc  1St Floor,1307.44, 03-Sep-2013
795,Revenue,CCHD,Bed Purchasing - Elderly - North,Nursing Homes,Fshc  1St Floor,1013.16, 03-Sep-2013
796,Revenue,CCHD,Bed Purchasing - Southmead Hospital,Nursing Homes,Fshc  1St Floor,1856, 03-Sep-2013
797,Revenue,CCHD,Bed Purchasing - Elderly - North,Nursing Homes,Fshc  1St Floor,1027.5, 03-Sep-2013
798,Revenue,CCHD,Bed Purchasing - Frenchay Hospital,Nursing Homes,Fshc  1St Floor,1370, 03-Sep-2013
799,Revenue,CCHD,Bed Purchasing - Southmead Hospital,Nursing Homes,Fshc  1St Floor,592.56, 03-Sep-2013
800,Revenue,CCHD,Bed Purchasing - Elderly - North,Nursing Homes,Fshc  1St Floor,1071.64, 03-Sep-2013
801,Revenue,CCHD,Bed Purchasing - Southmead Hospital,Nursing Homes,Fshc  1St Floor,754.48, 03-Sep-2013
802,Revenue,CCHD,Bed Purchasing - Elderly - North,Nursing Homes,Fshc  1St Floor,1379.28, 03-Sep-2013
803,Revenue,CCHD,Bed Purchasing - Frenchay Hospital,Nursing Homes,Fshc  1St Floor,1370, 03-Sep-2013
804,Revenue,CCHD,Bed Purchasing - Frenchay Hospital,Nursing Homes,Fshc  1St Floor,1027.5, 03-Sep-2013
805,Revenue,CCHD,Bed Purchasing - Frenchay Hospital,Nursing Homes,Fshc  1St Floor,1378, 03-Sep-2013
806,Revenue,CCHD,Bed Purchasing - Elderly - South,Nursing Homes,Fshc  1St Floor,1041.56, 03-Sep-2013
807,Revenue,CCHD,Bed Purchasing - Southmead Hospital,Nursing Homes,Fshc  1St Floor,1292.6, 03-Sep-2013
808,Revenue,CCHD,Bed Purchasing - Elderly - North,Nursing Homes,Fshc  1St Floor,1249.04, 03-Sep-2013
809,Revenue,CCHD,Bed Purchasing - Southmead Hospital,Nursing Homes,Fshc  1St Floor,1370, 03-Sep-2013
810,Revenue,CCHD,Bed Purchasing - Elderly - South,Nursing Homes,Fshc  1St Floor,1390, 03-Sep-2013
811,Revenue,CCHD,Bed Purchasing - Frenchay Hospital,Nursing Homes,Fshc  1St Floor,1336.6, 03-Sep-2013
812,Revenue,CCHD,Bed Purchasing - Southmead Hospital,Nursing Homes,Fshc  1St Floor,1344.2, 03-Sep-2013
813,Revenue,CCHD,Bed Purchasing - Elderly - North,Residential Homes,Fshc  1St Floor,2960.04, 03-Sep-2013
814,Revenue,CCHD,Bed Purchasing - Frenchay Hospital,Nursing Homes,Fshc  1St Floor,1578.48, 03-Sep-2013
815,Revenue,CCHD,Bed purchasing - Phys Dis - North,Nursing Homes,Fshc  1St Floor,1376.28, 03-Sep-2013
816,Revenue,CCHD,Bed Purchasing - Elderly - South,Nursing Homes,Fshc  1St Floor,1224.64, 03-Sep-2013
817,Revenue,CCHD,Bed Purchasing - Southmead Hospital,Nursing Homes,Fshc  1St Floor,1370, 03-Sep-2013
818,Revenue,CCHD,Bed Purchasing - Elderly - North,Residential Homes,Fshc  1St Floor,1438, 03-Sep-2013
819,Revenue,CCHD,Bed Purchasing - Southmead Hospital,Nursing Homes,Fshc  1St Floor,1298.96, 03-Sep-2013
820,Revenue,CCHD,Bed Purchasing - Elderly MH - South,Residential Homes,Fshc  1St Floor,1924, 03-Sep-2013
821,Revenue,CCHD,Bed Purchasing - Frenchay Hospital,Nursing Homes,Fshc  1St Floor,1359.08, 03-Sep-2013
822,Revenue,CCHD,Bed Purchasing - Frenchay Hospital,Nursing Homes,Fshc  1St Floor,1293.56, 03-Sep-2013
823,Revenue,CCHD,Bed Purchasing - Southmead Hospital,Residential Homes,Fshc  1St Floor,1466, 03-Sep-2013
824,Revenue,CCHD,Bed Purchasing - Elderly - South,Residential Homes,Fshc  1St Floor,1399.72, 03-Sep-2013
825,Revenue,CCHD,Bed Purchasing - Elderly - North,Residential Homes,Fshc  1St Floor,1160.96, 03-Sep-2013
826,Revenue,CCHD,Bed Purchasing - Elderly - North,Nursing Homes,Fshc  1St Floor,1370, 03-Sep-2013
827,Revenue,CCHD,Bed Purchasing - Frenchay Hospital,Nursing Homes,Fshc  1St Floor,1230.52, 03-Sep-2013
828,Revenue,CCHD,Bed purchasing - Elderly MH - North,Residential Homes,Fshc  1St Floor,1438, 03-Sep-2013
829,Revenue,CCHD,Bed Purchasing - Southmead Hospital,Nursing Homes,Fshc  1St Floor,1370, 03-Sep-2013
830,Revenue,CCHD,Bed Purchasing - Southmead Hospital,Nursing Homes,Fshc  1St Floor,1027.5, 03-Sep-2013
831,Revenue,CCHD,Bed Purchasing - Frenchay Hospital,Residential Homes,Fshc  1St Floor,1438, 03-Sep-2013
832,Revenue,CCHD,Bed Purchasing - Southmead Hospital,Nursing Homes,Fshc  1St Floor,1370, 03-Sep-2013
833,Revenue,CCHD,Bed purchasing - Elderly PWLD - South,Residential Homes,Fshc  1St Floor,1246, 03-Sep-2013
834,Revenue,CCHD,Bed Purchasing - Frenchay Hospital,Nursing Homes,Fshc  1St Floor,1370, 03-Sep-2013
835,Revenue,CCHD,Bed Purchasing - Southmead Hospital,Nursing Homes,Fshc  1St Floor,1101.08, 03-Sep-2013
836,Revenue,CCHD,Bed Purchasing - Southmead Hospital,Nursing Homes,Fshc  1St Floor,1370, 03-Sep-2013
837,Revenue,CCHD,Bed Purchasing - Southmead Hospital,Nursing Homes,Fshc  1St Floor,831.79, 03-Sep-2013
838,Revenue,CCHD,Bed Purchasing - Elderly - South,Nursing Homes,Fshc  1St Floor,1294.68, 03-Sep-2013
839,Revenue,CCHD,Bed Purchasing - Elderly - North,Residential Homes,Fshc  1St Floor,1179.92, 03-Sep-2013
840,Revenue,CCHD,Bed Purchasing - Frenchay Hospital,Nursing Homes,Fshc  1St Floor,1370, 03-Sep-2013
841,Revenue,CCHD,Bed Purchasing - Southmead Hospital,Nursing Homes,Fshc  1St Floor,878.76, 03-Sep-2013
842,Revenue,CCHD,Bed Purchasing - Frenchay Hospital,Nursing Homes,Fshc  1St Floor,1370, 03-Sep-2013
843,Revenue,CCHD,Bed Purchasing - Southmead Hospital,Nursing Homes,Fshc  1St Floor,957.12, 03-Sep-2013
844,Revenue,CCHD,Bed Purchasing - Elderly - South,Residential Homes,Fshc  1St Floor,816.56, 03-Sep-2013
845,Revenue,CCHD,Bed Purchasing - Southmead Hospital,Residential Homes,Fshc  1St Floor,1397.16, 03-Sep-2013
846,Revenue,CCHD,Bed Purchasing - Southmead Hospital,Residential Homes,Fshc  1St Floor,1453.28, 03-Sep-2013
847,Revenue,CCHD,Bed Purchasing - Elderly - South,Nursing Homes,Fshc  1St Floor,941.76, 03-Sep-2013
848,Revenue,CCHD,Bed purchasing - Elderly S117 - South,Nursing Homes,Fshc  1St Floor,1856, 03-Sep-2013
849,Revenue,CCHD,Bed Purchasing - Frenchay Hospital,Residential Homes,Fshc  1St Floor,1107.56, 03-Sep-2013
850,Revenue,CCHD,Bed Purchasing - Southmead Hospital,Residential Homes,Fshc  1St Floor,1331.76, 03-Sep-2013
851,Revenue,CCHD,Bed Purchasing - Southmead Hospital,Nursing Homes,Fshc  1St Floor,1180.56, 03-Sep-2013
852,Revenue,CCHD,Bed Purchasing - Elderly - North,Residential Homes,Fshc  1St Floor,1199.92, 03-Sep-2013
853,Revenue,CCHD,Bed Purchasing - Southmead Hospital,Nursing Homes,Fshc  1St Floor,1370, 03-Sep-2013
854,Revenue,CCHD,Bed Purchasing - Southmead Hospital,Nursing Homes,Fshc  1St Floor,1370, 03-Sep-2013
855,Revenue,CCHD,Bed Purchasing - Frenchay Hospital,Nursing Homes,Fshc  1St Floor,1109.92, 03-Sep-2013
856,Revenue,CCHD,Bed Purchasing - Southmead Hospital,Nursing Homes,Fshc  1St Floor,2110.31, 03-Sep-2013
857,Revenue,CCHD,Bed Purchasing - Southmead Hospital,Nursing Homes,Fshc  1St Floor,1114.88, 03-Sep-2013
858,Revenue,CCHD,Bed Purchasing - Frenchay Hospital,Nursing Homes,Fshc  1St Floor,956.08, 03-Sep-2013
859,Revenue,CCHD,Bed Purchasing - Frenchay Hospital,Nursing Homes,Fshc  1St Floor,1117.88, 03-Sep-2013
860,Revenue,CCHD,Bed Purchasing - Frenchay Hospital,Nursing Homes,Fshc  1St Floor,1030.08, 03-Sep-2013
861,Revenue,CCHD,Bed Purchasing - Frenchay Hospital,Nursing Homes,Fshc  1St Floor,1060.28, 03-Sep-2013
862,Revenue,CCHD,Bed Purchasing - Southmead Hospital,Nursing Homes,Fshc  1St Floor,870.76, 03-Sep-2013
863,Revenue,CCHD,Bed purchasing - Phys Dis - North,Nursing Homes,Fshc  1St Floor,840.44, 03-Sep-2013
864,Revenue,CCHD,Bed Purchasing - Frenchay Hospital,Nursing Homes,Fshc  1St Floor,1302, 03-Sep-2013
865,Revenue,CCHD,Bed purchasing - Elderly MH - North,Nursing Homes,Fshc  1St Floor,858.48, 03-Sep-2013
866,Revenue,CCHD,Bed purchasing - Elderly S117 - South,Nursing Homes,Fshc  1St Floor,1964, 03-Sep-2013
867,Revenue,CCHD,Bed Purchasing - Frenchay Hospital,Nursing Homes,Fshc  1St Floor,1080.28, 03-Sep-2013
868,Revenue,CCHD,Bed Purchasing - Frenchay Hospital,Nursing Homes,Fshc  1St Floor,951.24, 03-Sep-2013
869,Revenue,CCHD,Bed Purchasing - Elderly S117- North,Nursing Homes,Fshc  1St Floor,1964, 03-Sep-2013
870,Revenue,CCHD,Bed Purchasing - Elderly S117- North,Nursing Homes,Fshc  1St Floor,911.86, 03-Sep-2013
871,Revenue,CCHD,Bed Purchasing - Elderly - North,Residential Homes,Fshc  1St Floor,2929, 03-Sep-2013
872,Revenue,CCHD,Bed Purchasing - Frenchay Hospital,Nursing Homes,Fshc  1St Floor,1097.04, 03-Sep-2013
873,Revenue,CCHD,Bed Purchasing - Elderly - South,Residential Homes,Fshc  1St Floor,1340.56, 03-Sep-2013
874,Revenue,CCHD,Tenancy Start Up Scheme,Other Supplies & Services,Individual,694.4, 16-Sep-2013
875,Revenue,CCHD,Alexandra Way,Prop.Serv. General Repairs,George Grimes,700, 04-Sep-2013
876,Revenue,CCHD,Alexandra Way,Prop.Serv. General Repairs,George Grimes,700, 04-Sep-2013
877,Revenue,CCHD,Section 117 Placements MH Younger,Residential Homes,Gladstone House,2721.88, 03-Sep-2013
878,Revenue,CCHD,Bed Purchasing - Under 65s PWLD - South,Residential Homes,Glasallt Fawr,4547.84, 03-Sep-2013
879,Revenue,CCHD,Bed purchasing - Elderly MH - North,Nursing Homes,Glebe House Nursing Home,655.56, 03-Sep-2013
880,Revenue,CCHD,Bed purchasing - Elderly MH - North,Residential Homes,Glebe House Nursing Home,2007.6, 03-Sep-2013
881,Revenue,CCHD,South Glos Users in South Glos Homes,Nursing Homes,Glebe House Nursing Home,807.49, 03-Sep-2013
882,Revenue,CCHD,Bed Purchasing - Frenchay Hospital,Nursing Homes,Glebe House Nursing Home,1003.08, 03-Sep-2013
883,Revenue,CCHD,Bed Purchasing - Elderly - South,Residential Homes,Glebe House Nursing Home,1977.76, 03-Sep-2013
884,Revenue,CCHD,Bed Purchasing - Elderly - North,Residential Homes,Glebe House Nursing Home,2551.92, 03-Sep-2013
885,Revenue,CCHD,Bed Purchasing - Under 65s PWLD - South,Residential Homes,Gordena Care Home,2082.36, 03-Sep-2013
886,Revenue,CCHD,Bed purchasing - Elderly PWLD - South,Residential Homes,Gordena Care Home,4732.4, 03-Sep-2013
887,Revenue,CCHD,Bed purchasing - Elderly PWLD - South,Residential Homes,Gordena Care Home,3116.24, 03-Sep-2013
888,Revenue,CCHD,Bed purchasing - Elderly PWLD - South,Residential Homes,Gordena Care Home,2927.44, 03-Sep-2013
889,Revenue,CCHD,Bed Purchasing - Under 65s PWLD - South,Residential Homes,Gordena Care Home,1907.6, 03-Sep-2013
890,Revenue,CCHD,Bed Purchasing - Under 65s PWLD - South,Residential Homes,Gordena Care Limited,4158.56, 03-Sep-2013
891,Revenue,CCHD,Bed purchasing - S28A Under 65 - South,Residential Homes,Gordena Care Limited,4055.8, 03-Sep-2013
892,Revenue,CCHD,Bed purchasing - Under 65s PWLD - North,Residential Homes,Gordena Care Limited,4160, 03-Sep-2013
893,Revenue,CCHD,Bed Purchasing - Elderly - North,Residential Homes,Greensleeves,1312.68, 03-Sep-2013
894,Revenue,CCHD,Bed Purchasing - Elderly - South,Residential Homes,Gwendoline House,1490.04, 03-Sep-2013
895,Revenue,CCHD,Bed Purchasing - Elderly - South,Residential Homes,Gwendoline House,1164.96, 03-Sep-2013
896,Revenue,CCHD,Bed Purchasing - Elderly - North,Residential Homes,Gwendoline House,1636.56, 03-Sep-2013
897,Revenue,CCHD,Bed Purchasing - Elderly MH - South,Residential Homes,Gwendoline House,1284.64, 03-Sep-2013
898,Revenue,CCHD,Bed Purchasing - Southmead Hospital,Residential Homes,Gwendoline House,1686.64, 03-Sep-2013
899,Revenue,CCHD,Bed Purchasing - Elderly - South,Residential Homes,Gwendoline House,1128.52, 03-Sep-2013
900,Revenue,CCHD,Bed Purchasing - Elderly - South,Residential Homes,Harefield Hall,1327.24, 03-Sep-2013
901,Revenue,CCHD,Bed Purchasing - Elderly - South,Residential Homes,Harefield Hall,6436.4, 03-Sep-2013
902,Revenue,CCHD,Bed Purchasing - Elderly MH - South,Residential Homes,Harefield Hall,958.24, 03-Sep-2013
903,Revenue,CCHD,Bed Purchasing - Elderly - South,Residential Homes,Harefield Hall,1112.96, 03-Sep-2013
904,Revenue,CCHD,Bed Purchasing - Elderly - South,Residential Homes,Harefield Hall,1778.56, 03-Sep-2013
905,Revenue,CCHD,Bed Purchasing - Elderly MH - South,Residential Homes,Harefield Hall,1030.52, 03-Sep-2013
906,Revenue,CCHD,Bed Purchasing - Elderly - South,Residential Homes,Harefield Hall,1291.8, 03-Sep-2013
907,Revenue,CCHD,Bed Purchasing - Elderly - South,Residential Homes,Harefield Hall,1203.06, 03-Sep-2013
908,Revenue,CCHD,Bed Purchasing - Elderly - South,Residential Homes,Harefield Hall,1250, 03-Sep-2013
909,Revenue,CCHD,Bed Purchasing - Southmead Hospital,Nursing Homes,Haven Lodge,1382.28, 03-Sep-2013
910,Revenue,CCHD,Bed Purchasing - Elderly - North,Nursing Homes,Hc-One Ltd,1469.6, 03-Sep-2013
911,Revenue,CCHD,Bed Purchasing - Elderly - North,Nursing Homes,Hc-One Ltd,971.48, 03-Sep-2013
912,Revenue,CCHD,Bed Purchasing - Elderly - North,Nursing Homes,Hc-One Ltd,1499.04, 03-Sep-2013
913,Revenue,CCHD,Bed purchasing - Elderly PWLD - South,Nursing Homes,Hc-One Ltd,1929.96, 03-Sep-2013
914,Revenue,CCHD,Bed purchasing - Elderly MH - North,Nursing Homes,Hc-One Ltd,1478, 03-Sep-2013
915,Revenue,CCHD,Bed purchasing - Elderly MH - North,Nursing Homes,Hc-One Ltd,1229.12, 03-Sep-2013
916,Revenue,CCHD,Bed Purchasing - Frenchay Hospital,Nursing Homes,Hc-One Ltd,1471.16, 03-Sep-2013
917,Revenue,CCHD,Bed Purchasing - Elderly - South,Nursing Homes,Hc-One Ltd,1146.88, 03-Sep-2013
918,Revenue,CCHD,Bed purchasing - Elderly MH - North,Nursing Homes,Hc-One Ltd,1478, 03-Sep-2013
919,Revenue,CCHD,Bed Purchasing - Elderly S117- North,Nursing Homes,Hc-One Ltd,1947.72, 03-Sep-2013
920,Revenue,CCHD,Bed Purchasing - Frenchay Hospital,Residential Homes,Hc-One Ltd,1489.64, 03-Sep-2013
921,Revenue,CCHD,Day Care - North,Private & Voluntary Day Care,Headway Bristol,696.92, 06-Sep-2013
922,Revenue,CCHD,Bed Purchasing - Southmead Hospital,Residential Homes,High Border Lodge,1444.2, 03-Sep-2013
923,Revenue,CCHD,Bed Purchasing - Frenchay Hospital,Residential Homes,Highfield House,4884, 03-Sep-2013
924,Revenue,CCHD,Bed Purchasing - Southmead Hospital,Residential Homes,Highgate Studios,1166.84, 03-Sep-2013
925,Revenue,CCHD,Bed purchasing - Under 65s PWLD - North,Residential Homes,Holmleigh Care Homes Ltd,4000.16, 03-Sep-2013
926,Revenue,CCHD,Bed Purchasing - Under 65s PWLD - South,Residential Homes,Holmleigh Care Homes Ltd,5027.72, 03-Sep-2013
927,Revenue,CCHD,Bed purchasing - Under 65s PWLD - North,Residential Homes,Home Farm Trust Ltd  5-6 Brook Office Pa,2810.04, 03-Sep-2013
928,Revenue,CCHD,Bed purchasing - Elderly PWLD - South,Residential Homes,Home Farm Trust Ltd  5-6 Brook Office Pa,5050.32, 03-Sep-2013
929,Revenue,CCHD,Bed purchasing - Under 65s PWLD - North,Residential Homes,Home Farm Trust Ltd  5-6 Brook Office Pa,3396, 03-Sep-2013
930,Revenue,CCHD,Bed Purchasing - Under 65s PWLD - South,Residential Homes,Home Farm Trust Ltd  5-6 Brook Office Pa,4505.04, 03-Sep-2013
931,Revenue,CCHD,Bed purchasing - Under 65s PWLD - North,Residential Homes,Home From Home Care Ltd,8857.52, 03-Sep-2013
932,Revenue,CCHD,Bed purchasing - Under 65s PWLD - North,Residential Homes,Homes Caring For Autism Ltd  Churchill H,9755.64, 03-Sep-2013
933,Revenue,CCHD,Bed Purchasing - Under 65s PWLD - South,Residential Homes,Homes Caring For Autism Ltd  Churchill H,12715.92, 03-Sep-2013
934,Revenue,CCHD,Bed purchasing - Under 65s PWLD - North,Residential Homes,Homes Caring For Autism Ltd  Churchill H,12410, 03-Sep-2013
935,Revenue,CCHD,Bed Purchasing - Elderly - South,Nursing Homes,Horfield Care Limited,1260.85, 18-Sep-2013
936,Revenue,CCHD,Bed Purchasing - Elderly - North,Nursing Homes,Horfield Care Limited,7607.36, 18-Sep-2013
937,Revenue,CCHD,Bed Purchasing - Frenchay Hospital,Nursing Homes,Horfield Care Limited,1483.39, 18-Sep-2013
938,Revenue,CCHD,Bed Purchasing - Southmead Hospital,Nursing Homes,Horfield Care Limited,9853.42, 18-Sep-2013
939,Revenue,CCHD,Home Care - Elderly - North,Private & Voluntary Home Care,Housing 21,37028.34, 10-Sep-2013
940,Revenue,CCHD,Training - Adult Services,Training Expenses,Inclusive Trading CIC,580, 09-Sep-2013
941,Revenue,CCHD,Care Management Team - South,Agency Staff (Operational)/PCT Pay,IPE,5084.81, 13-Sep-2013
942,Revenue,CCHD,Social Lettings Agency,Fees - General,Individual,11.6, 11-Sep-2013
943,Revenue,CCHD,Social Lettings Agency,Other Supplies & Services,Individual,655.41, 11-Sep-2013
944,Revenue,CCHD,Bed Purchasing - Southmead Hospital,Nursing Homes,Jasmine Court,1227.24, 03-Sep-2013
945,Revenue,CCHD,Homeless - Private Sector Leasing,Other Supplies & Services,Jill Collins,594, 13-Sep-2013
946,Revenue,CCHD,Bed Purchasing - Under 65s PWLD - South,Residential Homes,Julia Simone- Supp. Ind.,3562.32, 03-Sep-2013
947,Revenue,CCHD,Bed purchasing -S28A  Under 65 - North,Residential Homes,Julia Simone- Supp. Ind.,3443.08, 03-Sep-2013
948,Revenue,CCHD,Bed Purchasing - Elderly - South,Residential Homes,Karenza Ltd,1732, 03-Sep-2013
949,Revenue,CCHD,Bed Purchasing - Elderly - South,Residential Homes,Kenver House Residential Home,1545.64, 03-Sep-2013
950,Revenue,CCHD,Bed purchasing - Elderly S117 - South,Residential Homes,Kenver House Residential Home,1897.08, 03-Sep-2013
951,Revenue,CCHD,Bed Purchasing - Frenchay Hospital,Residential Homes,Kenver House Residential Home,2135.28, 03-Sep-2013
952,Revenue,CCHD,Bed Purchasing - Frenchay Hospital,Residential Homes,Kenver House Residential Home,1647.2, 03-Sep-2013
953,Revenue,CCHD,Bed Purchasing - Elderly - South,Residential Homes,Kenver House Residential Home,2135.28, 03-Sep-2013
954,Revenue,CCHD,Bed Purchasing - Elderly - South,Residential Homes,Kenver House Residential Home,1067.64, 03-Sep-2013
955,Revenue,CCHD,Section 117 Placements MH Younger,Residential Homes,Kenver House Residential Home,1900, 03-Sep-2013
956,Revenue,CCHD,Bed Purchasing - Elderly MH - South,Residential Homes,Kenver House Residential Home,1285.96, 03-Sep-2013
957,Revenue,CCHD,Bed Purchasing - Elderly - South,Residential Homes,Kenver House Residential Home,1143.9, 03-Sep-2013
958,Revenue,CCHD,Bed Purchasing - Elderly - South,Residential Homes,Kenver House Residential Home,1649.28, 03-Sep-2013
959,Revenue,CCHD,Bed Purchasing - Elderly - South,Residential Homes,Kenver House Residential Home,1220.16, 03-Sep-2013
960,Revenue,CCHD,Bed Purchasing - Frenchay Hospital,Residential Homes,Kenver House Residential Home,654.84, 03-Sep-2013
961,Revenue,CCHD,Bed Purchasing - Elderly - South,Residential Homes,Kenver House Residential Home,1576.4, 03-Sep-2013
962,Revenue,CCHD,Bed Purchasing - Southmead Hospital,Residential Homes,Kenver House Residential Home,1649.2, 03-Sep-2013
963,Revenue,CCHD,Bed Purchasing - Elderly MH - South,Residential Homes,Kenver House Residential Home,1182.52, 03-Sep-2013
964,Revenue,CCHD,Bed Purchasing - Elderly MH - South,Residential Homes,Kenver House Residential Home,1167.92, 03-Sep-2013
965,Revenue,CCHD,Bed Purchasing - Elderly - South,Residential Homes,Kenver House Residential Home,1497.08, 03-Sep-2013
966,Revenue,CCHD,Bed Purchasing - Frenchay Hospital,Residential Homes,Kenver House Residential Home,1574.12, 03-Sep-2013
967,Revenue,CCHD,Bed Purchasing - Elderly - South,Residential Homes,Kenver House Residential Home,2520.88, 03-Sep-2013
968,Revenue,CCHD,Bed Purchasing - Frenchay Hospital,Residential Homes,Kenver House Residential Home,1539.76, 03-Sep-2013
969,Revenue,CCHD,Tenancy Start Up Scheme,Other Supplies & Services,Individual,1250, 11-Sep-2013
970,Revenue,CCHD,Bed Purchasing - Elderly - North,Nursing Homes,Kingfisher Lodge Care Centre,17248.44, 04-Sep-2013
971,Revenue,CCHD,Bed purchasing - Under 65s PWLD - North,Residential Homes,Kisimul Group,11223.12, 03-Sep-2013
972,Revenue,CCHD,Home Care - Elderly - South,Other Small Contracts,Kumari Care Limited,3919.09, 16-Sep-2013
973,Revenue,CCHD,Home Care - Elderly - North,Other Small Contracts,Kumari Care Limited,833.86, 16-Sep-2013
974,Revenue,CCHD,Day Care - South,Private & Voluntary Day Care,Kumari Care Limited,169.84, 16-Sep-2013
975,Revenue,CCHD,Under 65s -MH  Home Care Purch,Other Small Contracts,Kumari Care Limited,258.62, 16-Sep-2013
976,Revenue,CCHD,Home Care - Elderly - South,Other Small Contracts,Kumari Care Limited,4195.82, 24-Sep-2013
977,Revenue,CCHD,Home Care - Elderly - North,Other Small Contracts,Kumari Care Limited,833.86, 24-Sep-2013
978,Revenue,CCHD,Day Care - South,Private & Voluntary Day Care,Kumari Care Limited,165.98, 24-Sep-2013
979,Revenue,CCHD,Under 65s -MH  Home Care Purch,Other Small Contracts,Kumari Care Limited,262.48, 24-Sep-2013
980,Revenue,CCHD,Home Care - Elderly - South,Other Small Contracts,Kumari Care Limited,4029.84, 24-Sep-2013
981,Revenue,CCHD,Home Care - Elderly - North,Other Small Contracts,Kumari Care Limited,834.89, 24-Sep-2013
982,Revenue,CCHD,Day Care - South,Private & Voluntary Day Care,Kumari Care Limited,169.84, 24-Sep-2013
983,Revenue,CCHD,Under 65s -MH  Home Care Purch,Other Small Contracts,Kumari Care Limited,256.69, 24-Sep-2013
984,Revenue,CCHD,Home Care - Elderly - South,Other Small Contracts,Kumari Care Limited,4199.68, 24-Sep-2013
985,Revenue,CCHD,Home Care - Elderly - North,Other Small Contracts,Kumari Care Limited,833.86, 24-Sep-2013
986,Revenue,CCHD,Day Care - South,Private & Voluntary Day Care,Kumari Care Limited,169.84, 24-Sep-2013
987,Revenue,CCHD,Under 65s -MH  Home Care Purch,Other Small Contracts,Kumari Care Limited,261, 24-Sep-2013
988,Revenue,CCHD,Home Care - Elderly - South,Other Small Contracts,Kumari Care Limited,4064.58, 24-Sep-2013
989,Revenue,CCHD,Home Care - Elderly - North,Other Small Contracts,Kumari Care Limited,833.86, 24-Sep-2013
990,Revenue,CCHD,Day Care - South,Private & Voluntary Day Care,Kumari Care Limited,46.32, 24-Sep-2013
991,Revenue,CCHD,Under 65s -MH  Home Care Purch,Other Small Contracts,Kumari Care Limited,227.74, 24-Sep-2013
992,Revenue,CCHD,Bed purchasing - Phys Dis - North,Nursing Homes,Leonard Cheshire  National Account Centr,4963.04, 03-Sep-2013
993,Revenue,CCHD,Bed purchasing - Phys Dis - North,Residential Homes,Leonard Cheshire  National Account Centr,2868.88, 03-Sep-2013
994,Revenue,CCHD,Bed Purchasing - Under 65s PWLD - South,Residential Homes,Leonard Cheshire  National Account Centr,2959.44, 03-Sep-2013
995,Revenue,CCHD,Bed Purchasing - Elderly - North,Nursing Homes,Leonard Cheshire  National Account Centr,3468.8, 03-Sep-2013
996,Revenue,CCHD,Bed purchasing - Phys Dis - North,Nursing Homes,Leonard Cheshire  National Account Centr,2779.04, 03-Sep-2013
997,Revenue,CCHD,Bed Purchasing - Elderly - North,Residential Homes,Leonard Cheshire  National Account Centr,3150.32, 03-Sep-2013
998,Revenue,CCHD,Bed purchasing - Under 65s PWLD - North,Residential Homes,Leonard Cheshire  National Account Centr,5872.12, 03-Sep-2013
999,Revenue,CCHD,Bed purchasing - Under 65s PWLD - North,Residential Homes,Leonard Cheshire  National Account Centr,5870.56, 03-Sep-2013
1000,Revenue,CCHD,Bed Purchasing - Elderly - South,Residential Homes,Leonard Cheshire  National Account Centr,4433.04, 03-Sep-2013
1001,Revenue,CCHD,Bed purchasing - Phys Dis - North,Nursing Homes,Leonard Cheshire  National Account Centr,2838.64, 03-Sep-2013
1002,Revenue,CCHD,Bed purchasing - Phys Dis - North,Residential Homes,Leonard Cheshire  National Account Centr,2889.4, 03-Sep-2013
1003,Revenue,CCHD,Bed purchasing - Phys Dis - North,Nursing Homes,Leonard Cheshire  National Account Centr,3223.8, 03-Sep-2013
1004,Revenue,CCHD,Bed purchasing - Phys Dis - South,Nursing Homes,Leonard Cheshire  National Account Centr,6114.8, 03-Sep-2013
1005,Revenue,CCHD,Bed purchasing - Phys Dis - North,Nursing Homes,Leonard Cheshire  National Account Centr,5521.36, 03-Sep-2013
1006,Revenue,CCHD,Bed Purchasing - Southmead Hospital,Nursing Homes,Leonard Cheshire  National Account Centr,3002, 03-Sep-2013
1007,Revenue,CCHD,South Glos Users in all other LA Homes,Nursing Homes,Leonard Cheshire  National Account Centr,604.4, 03-Sep-2013
1008,Revenue,CCHD,Bed purchasing - Phys Dis - North,Nursing Homes,Leonard Cheshire  National Account Centr,3309.2, 03-Sep-2013
1009,Revenue,CCHD,Bed Purchasing - Elderly - South,Nursing Homes,Leonard Cheshire  National Account Centr,4369.6, 03-Sep-2013
1010,Revenue,CCHD,Bed Purchasing - Elderly - South,Nursing Homes,Leonard Elms Care Home,1539.28, 03-Sep-2013
1011,Revenue,CCHD,Supported Living - North,Private & Voluntary Home Care,Lifeways Community Care (Gloucester) Ltd,8792, 20-Sep-2013
1012,Revenue,CCHD,Supported Living - North,Private & Voluntary Home Care,Lifeways Community Care (Gloucester) Ltd,11373, 02-Sep-2013
1013,Revenue,CCHD,Bed Purchasing - Southmead Hospital,Residential Homes,Little Croft,843.74, 03-Sep-2013
1014,Revenue,CCHD,Bed Purchasing - Southmead Hospital,Residential Homes,Little Croft,1599, 03-Sep-2013
1015,Revenue,CCHD,Bed Purchasing - Southmead Hospital,Residential Homes,Little Croft,1244.76, 03-Sep-2013
1016,Revenue,CCHD,Bed Purchasing - Elderly - South,Residential Homes,Little Croft,1856, 03-Sep-2013
1017,Revenue,CCHD,Bed Purchasing - Elderly - South,Residential Homes,Little Croft,1522.8, 03-Sep-2013
1018,Revenue,CCHD,Bed Purchasing - Frenchay Hospital,Residential Homes,Little Croft,1187.44, 03-Sep-2013
1019,Revenue,CCHD,Bed Purchasing - Southmead Hospital,Residential Homes,Little Croft,1246, 03-Sep-2013
1020,Revenue,CCHD,Bed Purchasing - Elderly MH - South,Residential Homes,Little Croft,1173.28, 03-Sep-2013
1021,Revenue,CCHD,Bed Purchasing - Frenchay Hospital,Residential Homes,Little Croft,878.74, 03-Sep-2013
1022,Revenue,CCHD,Bed Purchasing - Southmead Hospital,Residential Homes,Little Croft,1246, 03-Sep-2013
1023,Revenue,CCHD,Bed purchasing - Under 65s PWLD - North,Residential Homes,Littlecroft Residential Homes  Longcroft,6386.28, 03-Sep-2013
1024,Revenue,CCHD,Home Care - Elderly - South,Other Small Contracts,Lloyds TSB Commercial Finance Limited,191.59, 09-Sep-2013
1025,Revenue,CCHD,Home Care - Elderly - North,Other Small Contracts,Lloyds TSB Commercial Finance Limited,8003.77, 09-Sep-2013
1026,Revenue,CCHD,Day Care - South,Private & Voluntary Day Care,Lloyds TSB Commercial Finance Limited,203.32, 09-Sep-2013
1027,Revenue,CCHD,Day Care - North,Private & Voluntary Day Care,Lloyds TSB Commercial Finance Limited,234.6, 09-Sep-2013
1028,Revenue,CCHD,Home Care - Elderly - South,Other Small Contracts,Lloyds TSB Commercial Finance Limited,66.47, 11-Sep-2013
1029,Revenue,CCHD,Home Care - Elderly - North,Other Small Contracts,Lloyds TSB Commercial Finance Limited,7601.04, 11-Sep-2013
1030,Revenue,CCHD,Day Care - South,Private & Voluntary Day Care,Lloyds TSB Commercial Finance Limited,261.97, 11-Sep-2013
1031,Revenue,CCHD,Day Care - North,Private & Voluntary Day Care,Lloyds TSB Commercial Finance Limited,234.6, 11-Sep-2013
1032,Revenue,CCHD,Supported Living - South,Private & Voluntary Home Care,Lloyds TSB Commercial Finance Limited,3772.18, 09-Sep-2013
1033,Revenue,CCHD,Supported Living - South,Private & Voluntary Home Care,Lloyds TSB Commercial Finance Limited,6221.84, 06-Sep-2013
1034,Revenue,CCHD,Supported Living - South,Private & Voluntary Home Care,Lloyds TSB Commercial Finance Limited,3888.89, 09-Sep-2013
1035,Revenue,CCHD,Supported Living - South,Private & Voluntary Home Care,Lloyds TSB Commercial Finance Limited,8035.57, 09-Sep-2013
1036,Revenue,CCHD,Supported Living - South,Private & Voluntary Home Care,Lloyds TSB Commercial Finance Limited,4159.13, 06-Sep-2013
1037,Revenue,CCHD,Supported Living - South,Private & Voluntary Home Care,Lloyds TSB Commercial Finance Limited,3920.65, 06-Sep-2013
1038,Revenue,CCHD,Supported Living - South,Private & Voluntary Home Care,Lloyds TSB Commercial Finance Limited,3910, 06-Sep-2013
1039,Revenue,CCHD,Supported Living - North,Private & Voluntary Home Care,Lloyds TSB Commercial Finance Limited,9506.62, 06-Sep-2013
1040,Revenue,CCHD,Supported Living - South,Private & Voluntary Home Care,Lloyds TSB Commercial Finance Limited,5053.68, 06-Sep-2013
1041,Revenue,CCHD,Supported Living - South,Private & Voluntary Home Care,Lloyds TSB Commercial Finance Limited,3749.74, 06-Sep-2013
1042,Revenue,CCHD,Supported Living - South,Private & Voluntary Home Care,Lloyds TSB Commercial Finance Limited,3693.23, 06-Sep-2013
1043,Revenue,CCHD,Supported Living - South,Private & Voluntary Home Care,Lloyds TSB Commercial Finance Limited,5818.78, 06-Sep-2013
1044,Revenue,CCHD,Supported Living - South,Private & Voluntary Home Care,Lloyds TSB Commercial Finance Limited,3570.64, 06-Sep-2013
1045,Revenue,CCHD,Supported Living - South,Private & Voluntary Home Care,Lloyds TSB Commercial Finance Limited,3689.02, 09-Sep-2013
1046,Revenue,CCHD,Supported Living - North,Private & Voluntary Home Care,Lloyds TSB Commercial Finance Limited,8043.16, 06-Sep-2013
1047,Revenue,CCHD,Supported Living - South,Private & Voluntary Home Care,Lloyds TSB Commercial Finance Limited,3644.36, 06-Sep-2013
1048,Revenue,CCHD,Bed purchasing - Under 65s PWLD - North,Residential Homes,Longton Court,114290.7, 03-Sep-2013
1049,Revenue,CCHD,Bed purchasing - Under 65s PWLD - North,Residential Homes,Longton Court,50777.45, 03-Sep-2013
1050,Revenue,CCHD,Bed Purchasing - Southmead Hospital,Nursing Homes,Majestic 3 Limited,998, 03-Sep-2013
1051,Revenue,CCHD,Supported Living - South,Private & Voluntary Home Care,Make It Mentoring (MiM),1339.2, 16-Sep-2013
1052,Revenue,CCHD,Community Support - North,Preventative Assistance,Make It Mentoring (MiM),1472.11, 05-Sep-2013
1053,Revenue,CCHD,Community Support - North,Preventative Assistance,Make It Mentoring (MiM),921.6, 05-Sep-2013
1054,Revenue,CCHD,Bed Purchasing - Elderly - North,Residential Homes,Manor Cottage,1232.24, 03-Sep-2013
1055,Revenue,CCHD,Bed Purchasing - Southmead Hospital,Residential Homes,Manor Cottage,1246, 03-Sep-2013
1056,Revenue,CCHD,Bed Purchasing - Elderly - South,Residential Homes,Manor Cottage,1449.64, 03-Sep-2013
1057,Revenue,CCHD,Bed Purchasing - Southmead Hospital,Residential Homes,Manor Cottage,1246, 03-Sep-2013
1058,Revenue,CCHD,Bed Purchasing - Elderly - North,Residential Homes,Manton Hall Residential Home,1496.44, 03-Sep-2013
1059,Revenue,CCHD,Section 117 Placements MH Younger,Private & Voluntary Day Care,Maples Community Care Limited,812.25, 27-Sep-2013
1060,Revenue,CCHD,Section 117 Placements MH Younger,Private & Voluntary Day Care,Maples Community Care Limited,1715.88, 27-Sep-2013
1061,Revenue,CCHD,Social Lettings Agency,Fees - General,Individual,11.6, 20-Sep-2013
1062,Revenue,CCHD,Social Lettings Agency,Other Supplies & Services,Individual,655.41, 20-Sep-2013
1063,Revenue,CCHD,Bed Purchasing - Under 65s PWLD - South,Residential Homes,Marsden Healthcare Limited,911.04, 27-Sep-2013
1064,Revenue,CCHD,Bed purchasing - Elderly PWLD - South,Residential Homes,Marsden Healthcare Limited,3203, 27-Sep-2013
1065,Revenue,CCHD,Bed purchasing - Elderly PWLD - South,Residential Homes,Marsden Healthcare Limited,1505.96, 27-Sep-2013
1066,Revenue,CCHD,Bed Purchasing - Elderly MH - South,Nursing Homes,Meadow Care Home,1476.76, 03-Sep-2013
1067,Revenue,CCHD,Bed Purchasing - Elderly - South,Nursing Homes,Meadow Care Home,1673.16, 03-Sep-2013
1068,Revenue,CCHD,Home Care - Elderly - South,Other Small Contracts,Mears Care,617.9, 04-Sep-2013
1069,Revenue,CCHD,Home Care - Elderly - North,Other Small Contracts,Mears Care,5587, 04-Sep-2013
1070,Revenue,CCHD,Day Care - South,Private & Voluntary Day Care,Mears Care,88.8, 04-Sep-2013
1071,Revenue,CCHD,Day Care - North,Private & Voluntary Day Care,Mears Care,251.6, 04-Sep-2013
1072,Revenue,CCHD,Under 65s -MH  Home Care Purch,Other Small Contracts,Mears Care,111, 04-Sep-2013
1073,Revenue,CCHD,Home Care - Elderly LD - KH,Private & Voluntary Home Care,Mears Care,51.8, 04-Sep-2013
1074,Revenue,CCHD,Home Care - Elderly - South,Other Small Contracts,Mears Care,540.2, 09-Sep-2013
1075,Revenue,CCHD,Home Care - Elderly - North,Other Small Contracts,Mears Care,6142, 09-Sep-2013
1076,Revenue,CCHD,Day Care - South,Private & Voluntary Day Care,Mears Care,88.8, 09-Sep-2013
1077,Revenue,CCHD,Day Care - North,Private & Voluntary Day Care,Mears Care,251.6, 09-Sep-2013
1078,Revenue,CCHD,Under 65s -MH  Home Care Purch,Other Small Contracts,Mears Care,111, 09-Sep-2013
1079,Revenue,CCHD,Home Care - Elderly LD - KH,Private & Voluntary Home Care,Mears Care,51.8, 09-Sep-2013
1080,Revenue,CCHD,Home Care - Elderly - South,Other Small Contracts,Mears Care,669.7, 09-Sep-2013
1081,Revenue,CCHD,Home Care - Elderly - North,Other Small Contracts,Mears Care,6119.8, 09-Sep-2013
1082,Revenue,CCHD,Day Care - South,Private & Voluntary Day Care,Mears Care,88.8, 09-Sep-2013
1083,Revenue,CCHD,Day Care - North,Private & Voluntary Day Care,Mears Care,229.4, 09-Sep-2013
1084,Revenue,CCHD,Under 65s -MH  Home Care Purch,Other Small Contracts,Mears Care,111, 09-Sep-2013
1085,Revenue,CCHD,Home Care - Elderly LD - KH,Private & Voluntary Home Care,Mears Care,51.8, 09-Sep-2013
1086,Revenue,CCHD,Home Care - Elderly - South,Other Small Contracts,Mears Care,669.7, 09-Sep-2013
1087,Revenue,CCHD,Home Care - Elderly - North,Other Small Contracts,Mears Care,6105, 09-Sep-2013
1088,Revenue,CCHD,Day Care - South,Private & Voluntary Day Care,Mears Care,88.8, 09-Sep-2013
1089,Revenue,CCHD,Day Care - North,Private & Voluntary Day Care,Mears Care,251.6, 09-Sep-2013
1090,Revenue,CCHD,Under 65s -MH  Home Care Purch,Other Small Contracts,Mears Care,111, 09-Sep-2013
1091,Revenue,CCHD,Home Care - Elderly LD - KH,Private & Voluntary Home Care,Mears Care,51.8, 09-Sep-2013
1092,Revenue,CCHD,Home Care - Elderly - South,Other Small Contracts,Mears Care,677.1, 09-Sep-2013
1093,Revenue,CCHD,Home Care - Elderly - North,Other Small Contracts,Mears Care,6256.7, 09-Sep-2013
1094,Revenue,CCHD,Day Care - South,Private & Voluntary Day Care,Mears Care,92.5, 09-Sep-2013
1095,Revenue,CCHD,Day Care - North,Private & Voluntary Day Care,Mears Care,255.3, 09-Sep-2013
1096,Revenue,CCHD,Under 65s -MH  Home Care Purch,Other Small Contracts,Mears Care,111, 09-Sep-2013
1097,Revenue,CCHD,Home Care - Elderly LD - KH,Private & Voluntary Home Care,Mears Care,51.8, 09-Sep-2013
1098,Revenue,CCHD,Home Care - Elderly - South,Other Small Contracts,Mears Care,666, 24-Sep-2013
1099,Revenue,CCHD,Home Care - Elderly - North,Other Small Contracts,Mears Care,6301.1, 24-Sep-2013
1100,Revenue,CCHD,Day Care - South,Private & Voluntary Day Care,Mears Care,88.8, 24-Sep-2013
1101,Revenue,CCHD,Day Care - North,Private & Voluntary Day Care,Mears Care,247.9, 24-Sep-2013
1102,Revenue,CCHD,Under 65s -MH  Home Care Purch,Other Small Contracts,Mears Care,111, 24-Sep-2013
1103,Revenue,CCHD,Home Care - Elderly LD - KH,Private & Voluntary Home Care,Mears Care,51.8, 24-Sep-2013
1104,Revenue,CCHD,Home Care - Elderly - South,Private & Voluntary Home Care,Mears Care,48154.25, 27-Sep-2013
1105,Revenue,CCHD,Home Care - Elderly - North,Other Small Contracts,Medacs Home Care,644, 04-Sep-2013
1106,Revenue,CCHD,Home care - Elderly MH - North,Other Small Contracts,Medacs Home Care,98, 04-Sep-2013
1107,Revenue,CCHD,Home Care - Elderly - North,Other Small Contracts,Medacs Home Care,626.2, 04-Sep-2013
1108,Revenue,CCHD,Home care - Elderly MH - North,Other Small Contracts,Medacs Home Care,84, 04-Sep-2013
1109,Revenue,CCHD,Home Care - Elderly - North,Other Small Contracts,Medacs Home Care,693, 04-Sep-2013
1110,Revenue,CCHD,Home care - Elderly MH - North,Other Small Contracts,Medacs Home Care,98, 04-Sep-2013
1111,Revenue,CCHD,Home Care - Elderly - North,Other Small Contracts,Medacs Home Care,640.5, 04-Sep-2013
1112,Revenue,CCHD,Home care - Elderly MH - North,Other Small Contracts,Medacs Home Care,98, 04-Sep-2013
1113,Revenue,CCHD,NRS Contract,Daily Living Equipment,Medequip Assistive Technology Ltd,30367.96, 13-Sep-2013
1114,Revenue,CCHD,NRS Contract,Daily Living Equipment,Medequip Assistive Technology Ltd,59680.47, 13-Sep-2013
1115,Revenue,CCHD,Bed Purchasing - Under 65s PWLD - South,Residential Homes,Mencap,2219.16, 03-Sep-2013
1116,Revenue,CCHD,Supported Living (S28a) South,Private & Voluntary Home Care,Mencap - PS Central & Cymru,3786.86, 18-Sep-2013
1117,Revenue,CCHD,Intermediate Care Accommodation,Other Supplies & Services,Merlin Housing Society,967.68, 04-Sep-2013
1118,Revenue,CCHD,Intermediate Care Accommodation,Other Supplies & Services,Merlin Housing Society,1209.59, 24-Sep-2013
1119,Revenue,CCHD,Bed Purchasing - Frenchay Hospital,Residential Homes,Milburn Finance,1040.12, 03-Sep-2013
1120,Revenue,CCHD,Home Care - Elderly - South,Other Small Contracts,Milestones Outreach Dementia Services,1412.76, 02-Sep-2013
1121,Revenue,CCHD,Home Care - Elderly - North,Other Small Contracts,Milestones Outreach Dementia Services,976.58, 02-Sep-2013
1122,Revenue,CCHD,Day Care - South,Private & Voluntary Day Care,Milestones Outreach Dementia Services,61.76, 02-Sep-2013
1123,Revenue,CCHD,Home care - Elderly MH - North,Other Small Contracts,Milestones Outreach Dementia Services,65.62, 02-Sep-2013
1124,Revenue,CCHD,Elderly MH Day Care North,Private & Voluntary Day Care,Milestones Outreach Dementia Services,15.44, 02-Sep-2013
1125,Revenue,CCHD,Home Care - Elderly - South,Other Small Contracts,Milestones Outreach Dementia Services,1073.08, 02-Sep-2013
1126,Revenue,CCHD,Home Care - Elderly - North,Other Small Contracts,Milestones Outreach Dementia Services,968.86, 02-Sep-2013
1127,Revenue,CCHD,Day Care - South,Private & Voluntary Day Care,Milestones Outreach Dementia Services,61.76, 02-Sep-2013
1128,Revenue,CCHD,Home care - Elderly MH - North,Other Small Contracts,Milestones Outreach Dementia Services,77.2, 02-Sep-2013
1129,Revenue,CCHD,Elderly MH Day Care North,Private & Voluntary Day Care,Milestones Outreach Dementia Services,15.44, 02-Sep-2013
1130,Revenue,CCHD,Home Care - Elderly - South,Other Small Contracts,Milestones Outreach Dementia Services,880.08, 16-Sep-2013
1131,Revenue,CCHD,Home Care - Elderly - North,Other Small Contracts,Milestones Outreach Dementia Services,976.58, 16-Sep-2013
1132,Revenue,CCHD,Day Care - South,Private & Voluntary Day Care,Milestones Outreach Dementia Services,61.76, 16-Sep-2013
1133,Revenue,CCHD,Home care - Elderly MH - North,Other Small Contracts,Milestones Outreach Dementia Services,84.92, 16-Sep-2013
1134,Revenue,CCHD,Elderly MH Day Care North,Private & Voluntary Day Care,Milestones Outreach Dementia Services,15.44, 16-Sep-2013
1135,Revenue,CCHD,Home Care - Elderly - South,Other Small Contracts,Milestones Outreach Dementia Services,1057.64, 16-Sep-2013
1136,Revenue,CCHD,Home Care - Elderly - North,Other Small Contracts,Milestones Outreach Dementia Services,968.86, 16-Sep-2013
1137,Revenue,CCHD,Home care - Elderly MH - North,Other Small Contracts,Milestones Outreach Dementia Services,81.06, 16-Sep-2013
1138,Revenue,CCHD,Elderly MH Day Care North,Private & Voluntary Day Care,Milestones Outreach Dementia Services,15.44, 16-Sep-2013
1139,Revenue,CCHD,Purchase of Non-Res Care - South,Private & Voluntary Day Care,Milestones Trust,528, 25-Sep-2013
1140,Revenue,CCHD,Supported Living (S28a) South,Private & Voluntary Home Care,Milestones Trust,6561.03, 24-Sep-2013
1141,Revenue,CCHD,Supported Living (S28a) North,Private & Voluntary Home Care,Milestones Trust,4757.81, 03-Sep-2013
1142,Revenue,CCHD,Supported Living (S28a) South,Private & Voluntary Home Care,Milestones Trust,788.45, 03-Sep-2013
1143,Revenue,CCHD,Supported Living (S28a) North,Private & Voluntary Home Care,Milestones Trust,4967.5, 03-Sep-2013
1144,Revenue,CCHD,Supported Living (S28a) North,Private & Voluntary Home Care,Milestones Trust,4967.5, 03-Sep-2013
1145,Revenue,CCHD,Supported Living (S28a) North,Private & Voluntary Home Care,Milestones Trust,4390.75, 03-Sep-2013
1146,Revenue,CCHD,Supported Living (S28a) North,Private & Voluntary Home Care,Milestones Trust,4390.75, 03-Sep-2013
1147,Revenue,CCHD,Supported Living - South,Private & Voluntary Home Care,Milestones Trust,1063.23, 03-Sep-2013
1148,Revenue,CCHD,Supported Living (S28a) South,Private & Voluntary Home Care,Milestones Trust,1867.51, 03-Sep-2013
1149,Revenue,CCHD,Supported Living (S28a) North,Private & Voluntary Home Care,Milestones Trust,8993.28, 03-Sep-2013
1150,Revenue,CCHD,Supported Living (S28a) North,Private & Voluntary Home Care,Milestones Trust,11213.35, 03-Sep-2013
1151,Revenue,CCHD,Supported Living (S28a) South,Private & Voluntary Home Care,Milestones Trust,588.71, 03-Sep-2013
1152,Revenue,CCHD,Supported Living (S28a) South,Private & Voluntary Home Care,Milestones Trust,4032.37, 03-Sep-2013
1153,Revenue,CCHD,Supported Living (S28a) South,Private & Voluntary Home Care,Milestones Trust,4471.2, 03-Sep-2013
1154,Revenue,CCHD,Supported Living - South,Private & Voluntary Home Care,Milestones Trust,3814.4, 09-Sep-2013
1155,Revenue,CCHD,Supported Living (S28a) South,Private & Voluntary Home Care,Milestones Trust,3863.66, 03-Sep-2013
1156,Revenue,CCHD,Supported Living (S28a) North,Private & Voluntary Home Care,Milestones Trust,1308.54, 03-Sep-2013
1157,Revenue,CCHD,Supported Living (S28a) North,Private & Voluntary Home Care,Milestones Trust,989.26, 03-Sep-2013
1158,Revenue,CCHD,Supported Living (S28a) North,Private & Voluntary Home Care,Milestones Trust,989.26, 03-Sep-2013
1159,Revenue,CCHD,Supported Living (S28a) North,Private & Voluntary Home Care,Milestones Trust,3250.42, 03-Sep-2013
1160,Revenue,CCHD,Supported Living (S28a) North,Private & Voluntary Home Care,Milestones Trust,3250.42, 03-Sep-2013
1161,Revenue,CCHD,Purchase of Non-Res Care - South,Private & Voluntary Day Care,Milestones Trust,625.32, 02-Sep-2013
1162,Revenue,CCHD,Supported Living (S28a) South,Private & Voluntary Home Care,Milestones Trust,6561.03, 03-Sep-2013
1163,Revenue,CCHD,Supported Living - South,Private & Voluntary Home Care,Milestones Trust,1295.84, 02-Sep-2013
1164,Revenue,CCHD,Supported Living - South,Private & Voluntary Home Care,Milestones Trust,533.81, 02-Sep-2013
1165,Revenue,CCHD,Supported Living - South,Private & Voluntary Home Care,Milestones Trust,644.6, 02-Sep-2013
1166,Revenue,CCHD,Purchase of Non-Res Care - South,Private & Voluntary Day Care,Milestones Trust,528.48, 02-Sep-2013
1167,Revenue,CCHD,Supported Living - South,Private & Voluntary Home Care,Milestones Trust,973.68, 02-Sep-2013
1168,Revenue,CCHD,Supported Living - North,Private & Voluntary Home Care,Milestones Trust,5001.91, 02-Sep-2013
1169,Revenue,CCHD,Supported Living - South,Private & Voluntary Home Care,Milestones Trust,1666.28, 02-Sep-2013
1170,Revenue,CCHD,Supported Living - South,Private & Voluntary Home Care,Milestones Trust,654.4, 02-Sep-2013
1171,Revenue,CCHD,Supported Living - South,Private & Voluntary Home Care,Milestones Trust,1805.31, 02-Sep-2013
1172,Revenue,CCHD,Supported Living - South,Private & Voluntary Home Care,Milestones Trust,1320.12, 02-Sep-2013
1173,Revenue,CCHD,Supported Living (S28a) South,Private & Voluntary Home Care,Milestones Trust,4157.48, 03-Sep-2013
1174,Revenue,CCHD,Supported Living (S28a) South,Private & Voluntary Home Care,Milestones Trust,2844.14, 03-Sep-2013
1175,Revenue,CCHD,Supported Living - South,Private & Voluntary Home Care,Milestones Trust,2514.45, 02-Sep-2013
1176,Revenue,CCHD,Purchase of Non-Res Care - South,Private & Voluntary Day Care,Milestones Trust,930.78, 06-Sep-2013
1177,Revenue,CCHD,Purchase of Non-Res Care - South,Private & Voluntary Day Care,Milestones Trust,531.36, 06-Sep-2013
1178,Revenue,CCHD,Purchase of Non-Res Care - South,Private & Voluntary Day Care,Milestones Trust,1338.45, 16-Sep-2013
1179,Revenue,CCHD,Purchase of Non-Res Care - South,Private & Voluntary Day Care,Milestones Trust,1105.22, 06-Sep-2013
1180,Revenue,CCHD,Purchase of Non-Res Care - South,Private & Voluntary Day Care,Milestones Trust,2041.96, 06-Sep-2013
1181,Revenue,CCHD,Supported Living - South,Private & Voluntary Home Care,Milestones Trust,531.36, 06-Sep-2013
1182,Revenue,CCHD,Purchase of Non-Res Care - South,Private & Voluntary Day Care,Milestones Trust,1405.73, 06-Sep-2013
1183,Revenue,CCHD,Purchase of Non-Res Care - South,Private & Voluntary Day Care,Milestones Trust,1812.51, 06-Sep-2013
1184,Revenue,CCHD,Purchase of Non-Res Care - South,Private & Voluntary Day Care,Milestones Trust,2817.27, 06-Sep-2013
1185,Revenue,CCHD,Supported Living - South,Private & Voluntary Home Care,Milestones Trust,1564.65, 06-Sep-2013
1186,Revenue,CCHD,Purchase of Non-Res Care - South,Private & Voluntary Day Care,Milestones Trust,1186.64, 16-Sep-2013
1187,Revenue,CCHD,Purchase of Non-Res Care - South,Private & Voluntary Day Care,Milestones Trust,525.61, 06-Sep-2013
1188,Revenue,CCHD,Purchase of Non-Res Care - South,Private & Voluntary Day Care,Milestones Trust,1520.95, 16-Sep-2013
1189,Revenue,CCHD,Purchase of Non-Res Care - South,Private & Voluntary Day Care,Milestones Trust,1298.53, 06-Sep-2013
1190,Revenue,CCHD,Supported Living - South,Private & Voluntary Home Care,Milestones Trust,1851.69, 06-Sep-2013
1191,Revenue,CCHD,Purchase of Non-Res Care - South,Private & Voluntary Day Care,Milestones Trust,1348.86, 16-Sep-2013
1192,Revenue,CCHD,Supported Living - South,Private & Voluntary Home Care,Milestones Trust,673.39, 09-Sep-2013
1193,Revenue,CCHD,Supported Living - South,Private & Voluntary Home Care,Milestones Trust,916.16, 09-Sep-2013
1194,Revenue,CCHD,Supported Living - North,Private & Voluntary Home Care,Milestones Trust,1761.13, 06-Sep-2013
1195,Revenue,CCHD,Supported Living - South,Private & Voluntary Home Care,Milestones Trust,18115.04, 16-Sep-2013
1196,Revenue,CCHD,Stibbs and Fairburn,Private & Voluntary Respite Care,Milestones Trust,125996.48, 24-Sep-2013
1197,Revenue,CCHD,Elderly MH Day Care North,Private & Voluntary Day Care,Milestones Trust,739.08, 18-Sep-2013
1198,Revenue,CCHD,Supported Living (S28a) North,Private & Voluntary Home Care,Milestones Trust,1501.54, 24-Sep-2013
1199,Revenue,CCHD,Supported Living (S28a) North,Private & Voluntary Home Care,Milestones Trust,4932.62, 24-Sep-2013
1200,Revenue,CCHD,Purchase of Non-Res Care - South,Private & Voluntary Day Care,Milestones Trust,617.6, 24-Sep-2013
1201,Revenue,CCHD,Supported Living (S28a) South,Private & Voluntary Home Care,Milestones Trust,6561.03, 24-Sep-2013
1202,Revenue,CCHD,Supported Living - South,Private & Voluntary Home Care,Milestones Trust,1480.56, 24-Sep-2013
1203,Revenue,CCHD,Supported Living - South,Private & Voluntary Home Care,Milestones Trust,653.83, 24-Sep-2013
1204,Revenue,CCHD,Supported Living - North,Private & Voluntary Home Care,Milestones Trust,590.13, 24-Sep-2013
1205,Revenue,CCHD,Supported Living (S28a) South,Private & Voluntary Home Care,Milestones Trust,619.81, 24-Sep-2013
1206,Revenue,CCHD,Supported Living - South,Private & Voluntary Home Care,Milestones Trust,586.72, 24-Sep-2013
1207,Revenue,CCHD,Supported Living (S28a) North,Private & Voluntary Home Care,Milestones Trust,4390.75, 24-Sep-2013
1208,Revenue,CCHD,Supported Living (S28a) North,Private & Voluntary Home Care,Milestones Trust,4381, 24-Sep-2013
1209,Revenue,CCHD,Supported Living - South,Private & Voluntary Home Care,Milestones Trust,790.76, 24-Sep-2013
1210,Revenue,CCHD,Supported Living (S28a) North,Private & Voluntary Home Care,Milestones Trust,4390.75, 24-Sep-2013
1211,Revenue,CCHD,Supported Living (S28a) North,Private & Voluntary Home Care,Milestones Trust,4381, 24-Sep-2013
1212,Revenue,CCHD,Supported Living - South,Private & Voluntary Home Care,Milestones Trust,1145.2, 24-Sep-2013
1213,Revenue,CCHD,Supported Living - South,Private & Voluntary Home Care,Milestones Trust,1046.63, 24-Sep-2013
1214,Revenue,CCHD,Supported Living (S28a) South,Private & Voluntary Home Care,Milestones Trust,1816.31, 24-Sep-2013
1215,Revenue,CCHD,Supported Living (S28a) North,Private & Voluntary Home Care,Milestones Trust,9293.06, 24-Sep-2013
1216,Revenue,CCHD,Supported Living (S28a) North,Private & Voluntary Home Care,Milestones Trust,11169.5, 24-Sep-2013
1217,Revenue,CCHD,Supported Living (S28a) South,Private & Voluntary Home Care,Milestones Trust,4217.34, 24-Sep-2013
1218,Revenue,CCHD,Supported Living (S28a) South,Private & Voluntary Home Care,Milestones Trust,3788.34, 24-Sep-2013
1219,Revenue,CCHD,Supported Living - South,Private & Voluntary Home Care,Milestones Trust,3227.3, 24-Sep-2013
1220,Revenue,CCHD,Supported Living (S28a) South,Private & Voluntary Home Care,Milestones Trust,4136.83, 24-Sep-2013
1221,Revenue,CCHD,Supported Living - South,Private & Voluntary Home Care,Milestones Trust,2429.68, 24-Sep-2013
1222,Revenue,CCHD,Supported Living - South,Private & Voluntary Home Care,Milestones Trust,739.63, 24-Sep-2013
1223,Revenue,CCHD,Supported Living (S28a) South,Private & Voluntary Home Care,Milestones Trust,581, 24-Sep-2013
1224,Revenue,CCHD,Supported Living (S28a) North,Private & Voluntary Home Care,Milestones Trust,4967.5, 24-Sep-2013
1225,Revenue,CCHD,Supported Living (S28a) North,Private & Voluntary Home Care,Milestones Trust,4967.5, 24-Sep-2013
1226,Revenue,CCHD,Supported Living - South,Private & Voluntary Home Care,Milestones Trust,1718.84, 26-Sep-2013
1227,Revenue,CCHD,Supported Living (S28a) North,Private & Voluntary Home Care,Milestones Trust,5319.63, 12-Sep-2013
1228,Revenue,CCHD,Bed Purchasing - S28A - Over 65- North,Residential Homes,Milestones Trust,2617.12, 03-Sep-2013
1229,Revenue,CCHD,Bed Purchasing - Elderly - South,Residential Homes,Milestones Trust,1408.28, 03-Sep-2013
1230,Revenue,CCHD,Bed Purchasing - Under 65s PWLD - South,Residential Homes,Milestones Trust,5601.56, 03-Sep-2013
1231,Revenue,CCHD,Bed purchasing - Elderly MH - North,Nursing Homes,Milestones Trust,959.4, 03-Sep-2013
1232,Revenue,CCHD,Section 117 Placements MH Younger,Residential Homes,Milestones Trust,1386.45, 03-Sep-2013
1233,Revenue,CCHD,Bed purchasing - Elderly PWLD - North,Residential Homes,Milestones Trust,3355.76, 03-Sep-2013
1234,Revenue,CCHD,Bed Purchasing - Under 65s PWLD - South,Residential Homes,Milestones Trust,4796.48, 03-Sep-2013
1235,Revenue,CCHD,Bed Purchasing - Under 65s PWLD - South,Residential Homes,Milestones Trust,5362.64, 03-Sep-2013
1236,Revenue,CCHD,Bed Purchasing - Under 65s PWLD - South,Nursing Homes,Milestones Trust,2784.88, 03-Sep-2013
1237,Revenue,CCHD,Bed purchasing - Elderly MH - North,Nursing Homes,Milestones Trust,1434.2, 03-Sep-2013
1238,Revenue,CCHD,Section 117 Placements MH Younger,Nursing Homes,Milestones Trust,1615.36, 03-Sep-2013
1239,Revenue,CCHD,Bed Purchasing - Elderly MH - South,Residential Homes,Milestones Trust,15282.07, 03-Sep-2013
1240,Revenue,CCHD,Section 117 Placements MH Younger,Residential Homes,Milestones Trust,1239.55, 03-Sep-2013
1241,Revenue,CCHD,Bed purchasing - Elderly S117 - South,Nursing Homes,Milestones Trust,1964, 03-Sep-2013
1242,Revenue,CCHD,Bed Purchasing - Frenchay Hospital,Nursing Homes,Milestones Trust,1964, 03-Sep-2013
1243,Revenue,CCHD,Bed purchasing - Elderly PWLD - South,Residential Homes,Milestones Trust,4067.52, 03-Sep-2013
1244,Revenue,CCHD,Bed purchasing -S28A  Under 65 - North,Nursing Homes,Milestones Trust,5774.8, 03-Sep-2013
1245,Revenue,CCHD,Bed purchasing -S28A  Under 65 - North,Residential Homes,Milestones Trust,5258.88, 03-Sep-2013
1246,Revenue,CCHD,Bed purchasing - Elderly PWLD - South,Residential Homes,Milestones Trust,3827.48, 03-Sep-2013
1247,Revenue,CCHD,Bed purchasing - S28A Under 65 - South,Residential Homes,Milestones Trust,5446.8, 03-Sep-2013
1248,Revenue,CCHD,Bed Purchasing - Elderly MH - South,Residential Homes,Milestones Trust,1282.64, 03-Sep-2013
1249,Revenue,CCHD,Bed Purchasing - Under 65s PWLD - South,Residential Homes,Milestones Trust,5000.92, 03-Sep-2013
1250,Revenue,CCHD,Bed Purchasing - Under 65s PWLD - South,Residential Homes,Milestones Trust,5431.76, 03-Sep-2013
1251,Revenue,CCHD,Bed purchasing - S28A Under 65 - South,Nursing Homes,Milestones Trust,7190.52, 03-Sep-2013
1252,Revenue,CCHD,MH Purchasing - Younger,Residential Homes,Milestones Trust,1020.8, 03-Sep-2013
1253,Revenue,CCHD,Bed purchasing - Elderly PWLD - South,Residential Homes,Milestones Trust,5052.56, 03-Sep-2013
1254,Revenue,CCHD,Bed purchasing - Elderly PWLD - South,Residential Homes,Milestones Trust,3823.68, 03-Sep-2013
1255,Revenue,CCHD,Bed purchasing - Elderly PWLD - North,Residential Homes,Milestones Trust,2969.12, 03-Sep-2013
1256,Revenue,CCHD,Bed purchasing -S28A  Under 65 - North,Residential Homes,Milestones Trust,5182.72, 03-Sep-2013
1257,Revenue,CCHD,Bed purchasing -S28A  Under 65 - North,Residential Homes,Milestones Trust,9932.52, 03-Sep-2013
1258,Revenue,CCHD,Bed purchasing -S28A  Under 65 - North,Residential Homes,Milestones Trust,6955.32, 03-Sep-2013
1259,Revenue,CCHD,Bed purchasing -S28A  Under 65 - North,Residential Homes,Milestones Trust,670.14, 03-Sep-2013
1260,Revenue,CCHD,Bed purchasing -S28A  Under 65 - North,Nursing Homes,Milestones Trust,6153.36, 03-Sep-2013
1261,Revenue,CCHD,Bed Purchasing - Under 65s PWLD - South,Residential Homes,Milestones Trust,4452.24, 03-Sep-2013
1262,Revenue,CCHD,Bed purchasing -S28A  Under 65 - North,Residential Homes,Milestones Trust,6656.16, 03-Sep-2013
1263,Revenue,CCHD,Bed purchasing -S28A  Under 65 - North,Residential Homes,Milestones Trust,6080.36, 03-Sep-2013
1264,Revenue,CCHD,Bed purchasing - S28A Under 65 - South,Residential Homes,Milestones Trust,4459.4, 03-Sep-2013
1265,Revenue,CCHD,Bed Purchasing - S28A - Over 65- North,Residential Homes,Milestones Trust,6510.76, 03-Sep-2013
1266,Revenue,CCHD,Bed Purchasing - LD S28A- Over 65- South,Residential Homes,Milestones Trust,4118.28, 03-Sep-2013
1267,Revenue,CCHD,Bed purchasing -S28A  Under 65 - North,Residential Homes,Milestones Trust,9932.52, 03-Sep-2013
1268,Revenue,CCHD,Bed purchasing -S28A  Under 65 - North,Residential Homes,Milestones Trust,6955.32, 03-Sep-2013
1269,Revenue,CCHD,Bed purchasing -S28A  Under 65 - North,Residential Homes,Milestones Trust,670.14, 03-Sep-2013
1270,Revenue,CCHD,Bed purchasing -S28A  Under 65 - North,Residential Homes,Milestones Trust,9932.52, 03-Sep-2013
1271,Revenue,CCHD,Bed purchasing -S28A  Under 65 - North,Residential Homes,Milestones Trust,6955.32, 03-Sep-2013
1272,Revenue,CCHD,Bed purchasing -S28A  Under 65 - North,Residential Homes,Milestones Trust,670.14, 03-Sep-2013
1273,Revenue,CCHD,Bed Purchasing - LD S28A- Over 65- South,Residential Homes,Milestones Trust,4041.16, 03-Sep-2013
1274,Revenue,CCHD,Bed purchasing - S28A Under 65 - South,Residential Homes,Milestones Trust,4796.48, 03-Sep-2013
1275,Revenue,CCHD,Bed purchasing - S28A Under 65 - South,Residential Homes,Milestones Trust,4691.48, 03-Sep-2013
1276,Revenue,CCHD,Bed purchasing - S28A Under 65 - South,Residential Homes,Milestones Trust,4225.4, 03-Sep-2013
1277,Revenue,CCHD,Bed Purchasing - LD S28A- Over 65- South,Residential Homes,Milestones Trust,5019.44, 03-Sep-2013
1278,Revenue,CCHD,Bed Purchasing - LD S28A- Over 65- South,Residential Homes,Milestones Trust,4960.32, 03-Sep-2013
1279,Revenue,CCHD,Bed Purchasing - LD S28A- Over 65- South,Residential Homes,Milestones Trust,5114.08, 03-Sep-2013
1280,Revenue,CCHD,Bed Purchasing - LD S28A- Over 65- South,Residential Homes,Milestones Trust,4292.36, 03-Sep-2013
1281,Revenue,CCHD,Bed Purchasing - LD S28A- Over 65- South,Residential Homes,Milestones Trust,5701.92, 03-Sep-2013
1282,Revenue,CCHD,Bed purchasing -S28A  Under 65 - North,Residential Homes,Milestones Trust,21171.28, 03-Sep-2013
1283,Revenue,CCHD,Bed purchasing -S28A  Under 65 - North,Residential Homes,Milestones Trust,9023.08, 03-Sep-2013
1284,Revenue,CCHD,Bed purchasing -S28A  Under 65 - North,Residential Homes,Milestones Trust,1350.81, 03-Sep-2013
1285,Revenue,CCHD,Bed purchasing - S28A Under 65 - South,Residential Homes,Milestones Trust,501.28, 03-Sep-2013
1286,Revenue,CCHD,Bed purchasing -S28A  Under 65 - North,Nursing Homes,Milestones Trust,6235.36, 03-Sep-2013
1287,Revenue,CCHD,Bed Purchasing - LD S28A- Over 65- South,Residential Homes,Milestones Trust,2953.24, 03-Sep-2013
1288,Revenue,CCHD,Bed Purchasing - S28A - Over 65- North,Residential Homes,Milestones Trust,2835.72, 03-Sep-2013
1289,Revenue,CCHD,Section 117 Placements MH Younger,Residential Homes,Milestones Trust,1336, 03-Sep-2013
1290,Revenue,CCHD,Bed purchasing - Elderly MH - North,Residential Homes,Milestones Trust,850, 03-Sep-2013
1291,Revenue,CCHD,Bed purchasing - S28A Under 65 - South,Residential Homes,Milestones Trust,4796.48, 03-Sep-2013
1292,Revenue,CCHD,Bed purchasing - Elderly PWLD - North,Residential Homes,Milestones Trust,4247.2, 03-Sep-2013
1293,Revenue,CCHD,Bed purchasing - Under 65s PWLD - North,Residential Homes,Milestones Trust,9080.84, 03-Sep-2013
1294,Revenue,CCHD,Bed purchasing - Elderly MH - North,Nursing Homes,Milestones Trust,1098.04, 03-Sep-2013
1295,Revenue,CCHD,Bed Purchasing - Under 65s PWLD - South,Residential Homes,Milestones Trust,4208.76, 03-Sep-2013
1296,Revenue,CCHD,Bed purchasing -S28A  Under 65 - North,Residential Homes,Milestones Trust,5592.32, 03-Sep-2013
1297,Revenue,CCHD,Bed Purchasing - S28A - Over 65- North,Residential Homes,Milestones Trust,3549.16, 03-Sep-2013
1298,Revenue,CCHD,Bed Purchasing - Elderly S117- North,Residential Homes,Milestones Trust,1732, 03-Sep-2013
1299,Revenue,CCHD,MH Purchasing - Younger,Residential Homes,Milestones Trust,1020.8, 03-Sep-2013
1300,Revenue,CCHD,Bed Purchasing - S28A - Over 65- North,Residential Homes,Milestones Trust,3540.36, 03-Sep-2013
1301,Revenue,CCHD,Bed Purchasing - LD S28A- Over 65- South,Residential Homes,Milestones Trust,3828.04, 03-Sep-2013
1302,Revenue,CCHD,Bed purchasing - S28A Under 65 - South,Residential Homes,Milestones Trust,4851.32, 03-Sep-2013
1303,Revenue,CCHD,Bed purchasing - S28A Under 65 - South,Residential Homes,Milestones Trust,5724.72, 03-Sep-2013
1304,Revenue,CCHD,Bed Purchasing - LD S28A- Over 65- South,Residential Homes,Milestones Trust,5591.04, 03-Sep-2013
1305,Revenue,CCHD,Bed Purchasing - LD S28A- Over 65- South,Residential Homes,Milestones Trust,4735.4, 03-Sep-2013
1306,Revenue,CCHD,Bed Purchasing - LD S28A- Over 65- South,Residential Homes,Milestones Trust,4461.32, 03-Sep-2013
1307,Revenue,CCHD,Bed Purchasing - LD S28A- Over 65- South,Residential Homes,Milestones Trust,4535.32, 03-Sep-2013
1308,Revenue,CCHD,Bed purchasing - S28A Under 65 - South,Residential Homes,Milestones Trust,7067.16, 03-Sep-2013
1309,Revenue,CCHD,Bed Purchasing - LD S28A- Over 65- South,Residential Homes,Milestones Trust,4241.68, 03-Sep-2013
1310,Revenue,CCHD,Bed Purchasing - S28A - Over 65- North,Residential Homes,Milestones Trust,4683.8, 03-Sep-2013
1311,Revenue,CCHD,Bed Purchasing - Elderly S117- North,Nursing Homes,Milestones Trust,1788, 03-Sep-2013
1312,Revenue,CCHD,Bed Purchasing - S28A - Over 65- North,Residential Homes,Milestones Trust,4524.16, 03-Sep-2013
1313,Revenue,CCHD,Bed Purchasing - S28A - Over 65- North,Residential Homes,Milestones Trust,4692.44, 03-Sep-2013
1314,Revenue,CCHD,Bed purchasing - S28A Under 65 - South,Residential Homes,Milestones Trust,4686.44, 03-Sep-2013
1315,Revenue,CCHD,Bed Purchasing - S28A - Over 65- North,Residential Homes,Milestones Trust,4440.04, 03-Sep-2013
1316,Revenue,CCHD,Bed purchasing - S28A Under 65 - South,Residential Homes,Milestones Trust,4625.68, 03-Sep-2013
1317,Revenue,CCHD,Bed purchasing -S28A  Under 65 - North,Residential Homes,Milestones Trust,9932.52, 03-Sep-2013
1318,Revenue,CCHD,Bed purchasing -S28A  Under 65 - North,Residential Homes,Milestones Trust,6955.32, 03-Sep-2013
1319,Revenue,CCHD,Bed purchasing -S28A  Under 65 - North,Residential Homes,Milestones Trust,670.14, 03-Sep-2013
1320,Revenue,CCHD,Bed Purchasing - S28A - Over 65- North,Residential Homes,Milestones Trust,5530.88, 03-Sep-2013
1321,Revenue,CCHD,Bed purchasing -S28A  Under 65 - North,Residential Homes,Milestones Trust,2924.52, 03-Sep-2013
1322,Revenue,CCHD,Bed Purchasing - S28A - Over 65- North,Residential Homes,Milestones Trust,3090.6, 03-Sep-2013
1323,Revenue,CCHD,Bed Purchasing - S28A - Over 65- North,Residential Homes,Milestones Trust,3221.88, 03-Sep-2013
1324,Revenue,CCHD,Bed Purchasing - LD S28A- Over 65- South,Residential Homes,Milestones Trust,3043.6, 03-Sep-2013
1325,Revenue,CCHD,Bed purchasing - Under 65s PWLD - North,Residential Homes,Milestones Trust,6673.92, 03-Sep-2013
1326,Revenue,CCHD,Bed purchasing - Under 65s PWLD - North,Residential Homes,Milestones Trust,6309.16, 03-Sep-2013
1327,Revenue,CCHD,Bed purchasing - Under 65s PWLD - North,Residential Homes,Milestones Trust,5549.07, 03-Sep-2013
1328,Revenue,CCHD,Bed Purchasing - Elderly - South,Residential Homes,Milestones Trust,1286, 03-Sep-2013
1329,Revenue,CCHD,MH Purchasing - Younger,Nursing Homes,Milestones Trust,924, 03-Sep-2013
1330,Revenue,CCHD,MH Purchasing - Younger,Nursing Homes,Milestones Trust,1112.8, 03-Sep-2013
1331,Revenue,CCHD,South Glos Users in South Glos Homes,Nursing Homes,Milestones Trust,1646.85, 03-Sep-2013
1332,Revenue,CCHD,Bed purchasing - Elderly PWLD - South,Residential Homes,Milestones Trust,3209.36, 03-Sep-2013
1333,Revenue,CCHD,Bed purchasing - S28A Under 65 - South,Residential Homes,Milestones Trust,5832.32, 03-Sep-2013
1334,Revenue,CCHD,Bed purchasing - S28A Under 65 - South,Residential Homes,Milestones Trust,5925.08, 03-Sep-2013
1335,Revenue,CCHD,Bed Purchasing - LD S28A- Over 65- South,Residential Homes,Milestones Trust,4292.36, 03-Sep-2013
1336,Revenue,CCHD,Bed Purchasing - Under 65s PWLD - South,Residential Homes,Milestones Trust,5832.72, 03-Sep-2013
1337,Revenue,CCHD,Bed Purchasing - LD S28A- Over 65- South,Nursing Homes,Milestones Trust,4464.72, 03-Sep-2013
1338,Revenue,CCHD,Bed Purchasing - LD S28A- Over 65- South,Residential Homes,Milestones Trust,5591.04, 03-Sep-2013
1339,Revenue,CCHD,Bed Purchasing - LD S28A- Over 65- South,Residential Homes,Milestones Trust,3559.36, 03-Sep-2013
1340,Revenue,CCHD,Bed Purchasing - LD S28A- Over 65- South,Residential Homes,Milestones Trust,4282.6, 03-Sep-2013
1341,Revenue,CCHD,Bed Purchasing - LD S28A- Over 65- South,Residential Homes,Milestones Trust,5869.12, 03-Sep-2013
1342,Revenue,CCHD,Bed Purchasing - Elderly MH - South,Residential Homes,Milestones Trust,1212.08, 03-Sep-2013
1343,Revenue,CCHD,Bed purchasing -S28A  Under 65 - North,Nursing Homes,Milestones Trust,7563.52, 03-Sep-2013
1344,Revenue,CCHD,Bed Purchasing - Under 65s PWLD - South,Residential Homes,Milestones Trust,5173.28, 03-Sep-2013
1345,Revenue,CCHD,Bed Purchasing - Elderly S117- North,Nursing Homes,Milestones Trust,1964, 03-Sep-2013
1346,Revenue,CCHD,Bed Purchasing - Elderly MH - South,Nursing Homes,Milestones Trust,1732.4, 03-Sep-2013
1347,Revenue,CCHD,Bed purchasing - Under 65s PWLD - North,Residential Homes,Milestones Trust,9386.6, 03-Sep-2013
1348,Revenue,CCHD,Section 117 Placements MH Younger,Residential Homes,Milestones Trust,1336, 03-Sep-2013
1349,Revenue,CCHD,Bed Purchasing - LD S28A- Over 65- South,Nursing Homes,Milestones Trust,2940.76, 03-Sep-2013
1350,Revenue,CCHD,Bed Purchasing - LD S28A- Over 65- South,Nursing Homes,Milestones Trust,2573.72, 03-Sep-2013
1351,Revenue,CCHD,Bed Purchasing - LD S28A- Over 65- South,Nursing Homes,Milestones Trust,3218.2, 03-Sep-2013
1352,Revenue,CCHD,Bed Purchasing - LD S28A- Over 65- South,Nursing Homes,Milestones Trust,2729.64, 03-Sep-2013
1353,Revenue,CCHD,Bed Purchasing - S28A - Over 65- North,Nursing Homes,Milestones Trust,3649.32, 03-Sep-2013
1354,Revenue,CCHD,Bed Purchasing - S28A - Over 65- North,Nursing Homes,Milestones Trust,3665.32, 03-Sep-2013
1355,Revenue,CCHD,Bed Purchasing - Elderly - South,Residential Homes,Milestones Trust,2091.5, 03-Sep-2013
1356,Revenue,CCHD,Bed purchasing - Elderly S117 - South,Residential Homes,Mostyn Lodge Residential Home,1900, 03-Sep-2013
1357,Revenue,CCHD,Bed Purchasing - Frenchay Hospital,Residential Homes,Mostyn Lodge Residential Home,654.96, 03-Sep-2013
1358,Revenue,CCHD,Older People's Commissioned Se,Grants to Voluntary Bodies,Mothers for Mothers,2155.25, 30-Sep-2013
1359,Revenue,CCHD,Supported Living - South,Private & Voluntary Home Care,Moving On,3756.81, 12-Sep-2013
1360,Revenue,CCHD,Supported Living - South,Private & Voluntary Home Care,Moving On,2192.9, 12-Sep-2013
1361,Revenue,CCHD,Social Lettings Agency,Fees - General,Individual,10, 06-Sep-2013
1362,Revenue,CCHD,Social Lettings Agency,Other Supplies & Services,Individual,565, 06-Sep-2013
1363,Revenue,CCHD,Social Lettings Agency,Fees - General,Individual,10, 18-Sep-2013
1364,Revenue,CCHD,Social Lettings Agency,Other Supplies & Services,Individual,565, 18-Sep-2013
1365,Revenue,CCHD,Social Lettings Agency,Fees - General,Individual,10, 20-Sep-2013
1366,Revenue,CCHD,Social Lettings Agency,Other Supplies & Services,Individual,565, 20-Sep-2013
1367,Revenue,CCHD,Social Lettings Agency,Fees - General,Individual,8.6, 20-Sep-2013
1368,Revenue,CCHD,Social Lettings Agency,Other Supplies & Services,Individual,582, 20-Sep-2013
1369,Revenue,CCHD,Social Lettings Agency,Other Supplies & Services,Individual,850, 12-Sep-2013
1370,Revenue,CCHD,Tenancy Start Up Scheme,Other Supplies & Services,Individual,1450, 27-Sep-2013
1371,Revenue,CCHD,Social Lettings Agency,Fees - General,Individual,10, 06-Sep-2013
1372,Revenue,CCHD,Social Lettings Agency,Other Supplies & Services,Individual,565, 06-Sep-2013
1373,Revenue,CCHD,Tenancy Start Up Scheme,Other Supplies & Services,Individual,625, 24-Sep-2013
1374,Revenue,CCHD,Social Lettings Agency,Fees - General,Individual,11.2, 20-Sep-2013
1375,Revenue,CCHD,Social Lettings Agency,Other Supplies & Services,Individual,632.81, 20-Sep-2013
1376,Revenue,CCHD,Tenancy Start Up Scheme,Other Supplies & Services,Individual,650, 16-Sep-2013
1377,Revenue,CCHD,Social Lettings Agency,Fees - General,Individual,9.76, 06-Sep-2013
1378,Revenue,CCHD,Social Lettings Agency,Other Supplies & Services,Individual,551.44, 06-Sep-2013
1379,Revenue,CCHD,Social Lettings Agency,Fees - General,Individual,8.7, 16-Sep-2013
1380,Revenue,CCHD,Social Lettings Agency,Other Supplies & Services,Individual,622.8, 16-Sep-2013
1381,Revenue,CCHD,Social Lettings Agency,Fees - General,Individual,11.2, 13-Sep-2013
1382,Revenue,CCHD,Social Lettings Agency,Other Supplies & Services,Individual,632.81, 13-Sep-2013
1383,Revenue,CCHD,Supporting People Programme,Grants to Voluntary Bodies,Mr Steven Welling,624.96, 12-Sep-2013
1384,Revenue,CCHD,Supported Living - South,Private & Voluntary Home Care,Mrs B Kimber,10844.71, 13-Sep-2013
1385,Revenue,CCHD,Supported Living - South,Private & Voluntary Home Care,Mrs B Kimber,8704.59, 13-Sep-2013
1386,Revenue,CCHD,Supported Living - North,Private & Voluntary Home Care,Mrs B Kimber,1270.55, 17-Sep-2013
1387,Revenue,CCHD,Supported Living - South,Private & Voluntary Home Care,Mrs B Kimber,1334.95, 13-Sep-2013
1388,Revenue,CCHD,Purchase of Non-Res Care - South,Private & Voluntary Day Care,Mrs B Kimber,1240.92, 13-Sep-2013
1389,Revenue,CCHD,Elderly MH Day Care North,Private & Voluntary Day Care,Mrs B Kimber,503.55, 13-Sep-2013
1390,Revenue,CCHD,Day Care - South,Private & Voluntary Day Care,Mrs B Kimber,596.8, 23-Sep-2013
1391,Revenue,CCHD,Home Care - Elderly - South,Other Small Contracts,Mrs B Kimber -  CM2000,6427.35, 11-Sep-2013
1392,Revenue,CCHD,Home Care - Elderly - North,Other Small Contracts,Mrs B Kimber -  CM2000,3106.35, 11-Sep-2013
1393,Revenue,CCHD,Day Care - South,Private & Voluntary Day Care,Mrs B Kimber -  CM2000,571.05, 11-Sep-2013
1394,Revenue,CCHD,Under 65s -MH  Home Care Purch,Other Small Contracts,Mrs B Kimber -  CM2000,32.4, 11-Sep-2013
1395,Revenue,CCHD,Elderly MH Day Care North,Private & Voluntary Day Care,Mrs B Kimber -  CM2000,97.2, 11-Sep-2013
1396,Revenue,CCHD,PWLD Home Care - Under 65 - KH,Private & Voluntary Home Care,Mrs B Kimber -  CM2000,97.2, 11-Sep-2013
1397,Revenue,CCHD,Home Care - Elderly - South,Other Small Contracts,Mrs B Kimber -  CM2000,6856.65, 11-Sep-2013
1398,Revenue,CCHD,Home Care - Elderly - North,Other Small Contracts,Mrs B Kimber -  CM2000,3142.8, 11-Sep-2013
1399,Revenue,CCHD,Day Care - South,Private & Voluntary Day Care,Mrs B Kimber -  CM2000,481.95, 11-Sep-2013
1400,Revenue,CCHD,Day Care - North,Private & Voluntary Day Care,Mrs B Kimber -  CM2000,32.4, 11-Sep-2013
1401,Revenue,CCHD,Under 65s -MH  Home Care Purch,Other Small Contracts,Mrs B Kimber -  CM2000,64.8, 11-Sep-2013
1402,Revenue,CCHD,Elderly MH Day Care North,Private & Voluntary Day Care,Mrs B Kimber -  CM2000,97.2, 11-Sep-2013
1403,Revenue,CCHD,PWLD Home Care - Under 65 - KH,Private & Voluntary Home Care,Mrs B Kimber -  CM2000,93.15, 11-Sep-2013
1404,Revenue,CCHD,Home Care - Elderly - South,Other Small Contracts,Mrs B Kimber -  CM2000,7366.95, 27-Sep-2013
1405,Revenue,CCHD,Home Care - Elderly - North,Other Small Contracts,Mrs B Kimber -  CM2000,3564, 27-Sep-2013
1406,Revenue,CCHD,Day Care - South,Private & Voluntary Day Care,Mrs B Kimber -  CM2000,457.65, 27-Sep-2013
1407,Revenue,CCHD,Day Care - North,Private & Voluntary Day Care,Mrs B Kimber -  CM2000,32.4, 27-Sep-2013
1408,Revenue,CCHD,Under 65s -MH  Home Care Purch,Other Small Contracts,Mrs B Kimber -  CM2000,48.6, 27-Sep-2013
1409,Revenue,CCHD,Elderly MH Day Care North,Private & Voluntary Day Care,Mrs B Kimber -  CM2000,48.6, 27-Sep-2013
1410,Revenue,CCHD,Social Lettings Agency,Fees - General,Individual,10, 17-Sep-2013
1411,Revenue,CCHD,Social Lettings Agency,Other Supplies & Services,Individual,565, 17-Sep-2013
1412,Revenue,CCHD,Social Lettings Agency,Fees - General,Individual,10, 24-Sep-2013
1413,Revenue,CCHD,Social Lettings Agency,Other Supplies & Services,Individual,565, 24-Sep-2013
1414,Revenue,CCHD,Social Lettings Agency,Fees - General,Individual,10, 12-Sep-2013
1415,Revenue,CCHD,Social Lettings Agency,Other Supplies & Services,Individual,565, 12-Sep-2013
1416,Revenue,CCHD,Social Lettings Agency,Fees - General,Individual,11.6, 16-Sep-2013
1417,Revenue,CCHD,Social Lettings Agency,Other Supplies & Services,Individual,655.41, 16-Sep-2013
1418,Revenue,CCHD,Purchase of Non-Res Care - North,Private & Voluntary Day Care,Mrs W Thompson,1484.4, 19-Sep-2013
1419,Revenue,CCHD,Purchase of Non-Res Care - North,Private & Voluntary Day Care,Mrs W Thompson,563.28, 19-Sep-2013
1420,Revenue,CCHD,Social Lettings Agency,Fees - General,Individual,15.2, 11-Sep-2013
1421,Revenue,CCHD,Social Lettings Agency,Other Supplies & Services,Individual,858.8, 11-Sep-2013
1422,Revenue,CCHD,Younger MH non-res purchasing,Private & Voluntary Day Care,NAS Services Limited,582.55, 13-Sep-2013
1423,Revenue,CCHD,Younger MH non-res purchasing,Private & Voluntary Day Care,NAS Services Limited,767.1, 19-Sep-2013
1424,Revenue,CCHD,Younger MH non-res purchasing,Private & Voluntary Day Care,NAS Services Limited,740.4, 19-Sep-2013
1425,Revenue,CCHD,Younger MH non-res purchasing,Private & Voluntary Day Care,NAS Services Limited,1108.1, 19-Sep-2013
1426,Revenue,CCHD,Younger MH non-res purchasing,Private & Voluntary Day Care,NAS Services Limited,802.2, 20-Sep-2013
1427,Revenue,CCHD,Younger MH non-res purchasing,Private & Voluntary Day Care,NAS Services Limited,897.7, 20-Sep-2013
1428,Revenue,CCHD,Bed Purchasing - Under 65s PWLD - South,Residential Homes,National Star College,4547.72, 03-Sep-2013
1429,Revenue,CCHD,Purchase of Non-Res Care - North,Private & Voluntary Day Care,Natureworks Training Community Interest,6804.3, 06-Sep-2013
1430,Revenue,CCHD,Younger MH non-res purchasing,Private & Voluntary Day Care,Natureworks Training Community Interest,10215, 06-Sep-2013
1431,Revenue,CCHD,Home Care - Elderly - South,Other Small Contracts,Network Health & Social Care,1867.2, 27-Sep-2013
1432,Revenue,CCHD,Home Care - Elderly - North,Other Small Contracts,Network Health & Social Care,3503.64, 27-Sep-2013
1433,Revenue,CCHD,Social Lettings Agency,Fees - General,Individual,10, 04-Sep-2013
1434,Revenue,CCHD,Social Lettings Agency,Other Supplies & Services,Individual,565, 04-Sep-2013
1435,Revenue,CCHD,Bed Purchasing - Under 65s PWLD - South,Residential Homes,Nightingale Nursing Home,3105.36, 03-Sep-2013
1436,Revenue,CCHD,SLA Grants - Support Serv,Grants to Voluntary Bodies,North Bristol NHS Trust,4350, 30-Sep-2013
1437,Revenue,CCHD,Bed Purchasing - Under 65s PWLD - South,Residential Homes,Norwood   Broadway House,4899.44, 03-Sep-2013
1438,Revenue,CCHD,Bed Purchasing - Elderly MH - South,Residential Homes,Notaro Homes Ltd  Queensmead Court,1857.32, 03-Sep-2013
1439,Revenue,CCHD,Bed Purchasing - Southmead Hospital,Residential Homes,Notaro Homes Ltd  Queensmead Court,1371.32, 03-Sep-2013
1440,Revenue,CCHD,Section 117 Placements MH Younger,Residential Homes,Notaro Homes Ltd  Queensmead Court,3028.8, 03-Sep-2013
1441,Revenue,CCHD,Home Care - Elderly - South,Other Small Contracts,Nursing Solutions Limited,1528.8, 17-Sep-2013
1442,Revenue,CCHD,Home Care - Elderly - North,Other Small Contracts,Nursing Solutions Limited,280.8, 17-Sep-2013
1443,Revenue,CCHD,Home Care - Elderly - South,Other Small Contracts,Nursing Solutions Limited,1579.5, 17-Sep-2013
1444,Revenue,CCHD,Home Care - Elderly - North,Other Small Contracts,Nursing Solutions Limited,253.5, 17-Sep-2013
1445,Revenue,CCHD,Home Care - Elderly - South,Other Small Contracts,Nursing Solutions Limited,1404, 17-Sep-2013
1446,Revenue,CCHD,Home Care - Elderly - North,Other Small Contracts,Nursing Solutions Limited,253.5, 17-Sep-2013
1447,Revenue,CCHD,Home Care - Elderly - South,Other Small Contracts,Nursing Solutions Limited,1443, 17-Sep-2013
1448,Revenue,CCHD,Home Care - Elderly - North,Other Small Contracts,Nursing Solutions Limited,405.6, 17-Sep-2013
1449,Revenue,CCHD,Section 117 Placements MH Younger,Nursing Homes,Oaklands,6000, 03-Sep-2013
1450,Revenue,CCHD,Kingswood Centre - Maple Suite,Contract Hire & Operational Leases,OCS Group UK Ltd,483.6, 09-Sep-2013
1451,Revenue,CCHD,Home Care - Elderly - South,Other Small Contracts,On the Up,965, 04-Sep-2013
1452,Revenue,CCHD,Home Care - Elderly - North,Other Small Contracts,On the Up,135.1, 04-Sep-2013
1453,Revenue,CCHD,Day Care - South,Private & Voluntary Day Care,On the Up,155.76, 04-Sep-2013
1454,Revenue,CCHD,Day Care - North,Private & Voluntary Day Care,On the Up,392.16, 04-Sep-2013
1455,Revenue,CCHD,Younger MH non-res purchasing,Private & Voluntary Day Care,On the Up,36.48, 04-Sep-2013
1456,Revenue,CCHD,Elderly MH Day Care North,Private & Voluntary Day Care,On the Up,46.32, 04-Sep-2013
1457,Revenue,CCHD,Home Care - Elderly - South,Other Small Contracts,On the Up,806.74, 16-Sep-2013
1458,Revenue,CCHD,Home Care - Elderly - North,Other Small Contracts,On the Up,88.78, 16-Sep-2013
1459,Revenue,CCHD,Day Care - South,Private & Voluntary Day Care,On the Up,160.32, 16-Sep-2013
1460,Revenue,CCHD,Day Care - North,Private & Voluntary Day Care,On the Up,392.16, 16-Sep-2013
1461,Revenue,CCHD,Younger MH non-res purchasing,Private & Voluntary Day Care,On the Up,36.48, 16-Sep-2013
1462,Revenue,CCHD,Bed purchasing -S28A  Under 65 - North,Residential Homes,Orchard End Limited,7452.12, 03-Sep-2013
1463,Revenue,CCHD,Bed Purchasing - Elderly S117- North,Residential Homes,Osbourne Court,1900, 03-Sep-2013
1464,Revenue,CCHD,Bed purchasing - Elderly S117 - South,Residential Homes,Osbourne Court,3060, 03-Sep-2013
1465,Revenue,CCHD,Bed Purchasing - Elderly S117- North,Residential Homes,Osbourne Court,1732.48, 03-Sep-2013
1466,Revenue,CCHD,Bed Purchasing - Elderly MH - South,Residential Homes,Osbourne Court,1414, 03-Sep-2013
1467,Revenue,CCHD,Bed Purchasing - Elderly S117- North,Residential Homes,Osbourne Court,1900, 03-Sep-2013
1468,Revenue,CCHD,Bed Purchasing - Southmead Hospital,Residential Homes,Osbourne Court,859.4, 03-Sep-2013
1469,Revenue,CCHD,Bed Purchasing - Under 65s PWLD - South,Residential Homes,Osprey Court,7636.76, 03-Sep-2013
1470,Revenue,CCHD,Bed purchasing - S28A Under 65 - South,Residential Homes,Osprey Court,4259.36, 03-Sep-2013
1471,Revenue,CCHD,Bed purchasing - S28A Under 65 - South,Residential Homes,Osprey Court,6305.32, 03-Sep-2013
1472,Revenue,CCHD,Bed Purchasing - Southmead Hospital,Nursing Homes,Palm Court Nursing Home,1503.36, 03-Sep-2013
1473,Revenue,CCHD,Bed Purchasing - Elderly MH - South,Residential Homes,Park Farm House,1333.44, 03-Sep-2013
1474,Revenue,CCHD,Bed Purchasing - Elderly - South,Residential Homes,Park Farm House,998.05, 03-Sep-2013
1475,Revenue,CCHD,Bed Purchasing - Elderly MH - South,Residential Homes,Park Farm House,1593.2, 03-Sep-2013
1476,Revenue,CCHD,Bed Purchasing - Under 65s PWLD - South,Residential Homes,Park Hall,5552, 03-Sep-2013
1477,Revenue,CCHD,Bed purchasing - Under 65s PWLD - North,Residential Homes,Park Hall,5131.28, 03-Sep-2013
1478,Revenue,CCHD,Bed Purchasing - Under 65s PWLD - South,Residential Homes,Park Hall,4940.84, 03-Sep-2013
1479,Revenue,CCHD,Bed purchasing - Elderly PWLD - South,Residential Homes,Park Hall,2520.96, 03-Sep-2013
1480,Revenue,CCHD,Bed Purchasing - Under 65s PWLD - South,Residential Homes,Park Hall,3824.16, 03-Sep-2013
1481,Revenue,CCHD,Bed purchasing - Elderly PWLD - North,Residential Homes,Park Hall,4897.8, 03-Sep-2013
1482,Revenue,CCHD,Bed purchasing - S28A Under 65 - South,Residential Homes,Park Hall,4614.16, 03-Sep-2013
1483,Revenue,CCHD,Bed Purchasing - Under 65s PWLD - South,Residential Homes,Park Hall,4917.16, 03-Sep-2013
1484,Revenue,CCHD,Bed purchasing - Under 65s PWLD - North,Residential Homes,Park Hall,4278.84, 03-Sep-2013
1485,Revenue,CCHD,Bed Purchasing - S28A - Over 65- North,Residential Homes,Park Hall,5286.8, 03-Sep-2013
1486,Revenue,CCHD,Bed Purchasing - Under 65s PWLD - South,Residential Homes,Park Hall,10610.92, 03-Sep-2013
1487,Revenue,CCHD,Bed purchasing -S28A  Under 65 - North,Residential Homes,Park Hall,5844.16, 03-Sep-2013
1488,Revenue,CCHD,Bed purchasing - S28A Under 65 - South,Residential Homes,Park Hall,5565.72, 03-Sep-2013
1489,Revenue,CCHD,Bed Purchasing - Under 65s PWLD - South,Residential Homes,Park Hall,7859.88, 03-Sep-2013
1490,Revenue,CCHD,Minor Adaptations Service,Operational Equipment,Patterson Medical Limited,1312.5, 04-Sep-2013
1491,Revenue,CCHD,Social Lettings Agency,Fees - General,Individual,10, 27-Sep-2013
1492,Revenue,CCHD,Social Lettings Agency,Other Supplies & Services,Individual,565, 27-Sep-2013
1493,Revenue,CCHD,Bed Purchasing - Under 65s PWLD - South,Residential Homes,Penleigh House Care Home,4493.52, 03-Sep-2013
1494,Revenue,CCHD,Bed Purchasing - Under 65s PWLD - South,Residential Homes,Penleigh House Care Home,5224.4, 03-Sep-2013
1495,Revenue,CCHD,Bed purchasing - Elderly PWLD - South,Residential Homes,Penleigh House Care Home,4258.48, 03-Sep-2013
1496,Revenue,CCHD,Bed purchasing - S28A Under 65 - South,Residential Homes,Penleigh House Care Home,5417.04, 03-Sep-2013
1497,Revenue,CCHD,Bed Purchasing - Under 65s PWLD - South,Residential Homes,Penleigh House Care Home,4893.28, 03-Sep-2013
1498,Revenue,CCHD,Housing Needs,Furniture & Fittings Loose,Posturite (UK) Limited,858.5, 27-Sep-2013
1499,Revenue,CCHD,Home Care - Elderly - South,Other Small Contracts,Premier Homecare Limited,971.28, 11-Sep-2013
1500,Revenue,CCHD,Home Care - Elderly - North,Other Small Contracts,Premier Homecare Limited,6954, 11-Sep-2013
1501,Revenue,CCHD,Younger MH non-res purchasing,Private & Voluntary Day Care,Premier Homecare Limited,27.36, 11-Sep-2013
1502,Revenue,CCHD,Home care - Elderly MH - North,Other Small Contracts,Premier Homecare Limited,164.16, 11-Sep-2013
1503,Revenue,CCHD,Elderly MH Day Care North,Private & Voluntary Day Care,Premier Homecare Limited,214.32, 11-Sep-2013
1504,Revenue,CCHD,Home Care - Elderly - South,Other Small Contracts,Premier Homecare Limited,984.96, 11-Sep-2013
1505,Revenue,CCHD,Home Care - Elderly - North,Other Small Contracts,Premier Homecare Limited,7355.28, 11-Sep-2013
1506,Revenue,CCHD,Day Care - North,Private & Voluntary Day Care,Premier Homecare Limited,13.68, 11-Sep-2013
1507,Revenue,CCHD,Younger MH non-res purchasing,Private & Voluntary Day Care,Premier Homecare Limited,27.36, 11-Sep-2013
1508,Revenue,CCHD,Home care - Elderly MH - North,Other Small Contracts,Premier Homecare Limited,164.16, 11-Sep-2013
1509,Revenue,CCHD,Elderly MH Day Care North,Private & Voluntary Day Care,Premier Homecare Limited,214.32, 11-Sep-2013
1510,Revenue,CCHD,Home Care - Elderly - South,Other Small Contracts,Premier Homecare Limited,984.96, 27-Sep-2013
1511,Revenue,CCHD,Home Care - Elderly - North,Other Small Contracts,Premier Homecare Limited,7302.27, 27-Sep-2013
1512,Revenue,CCHD,Younger MH non-res purchasing,Private & Voluntary Day Care,Premier Homecare Limited,27.36, 27-Sep-2013
1513,Revenue,CCHD,Home care - Elderly MH - North,Other Small Contracts,Premier Homecare Limited,164.16, 27-Sep-2013
1514,Revenue,CCHD,Elderly MH Day Care North,Private & Voluntary Day Care,Premier Homecare Limited,209.76, 27-Sep-2013
1515,Revenue,CCHD,Home Care - Elderly - South,Other Small Contracts,Premier Homecare Limited,980.4, 27-Sep-2013
1516,Revenue,CCHD,Home Care - Elderly - North,Other Small Contracts,Premier Homecare Limited,7510.32, 27-Sep-2013
1517,Revenue,CCHD,Younger MH non-res purchasing,Private & Voluntary Day Care,Premier Homecare Limited,27.36, 27-Sep-2013
1518,Revenue,CCHD,Home care - Elderly MH - North,Other Small Contracts,Premier Homecare Limited,155.04, 27-Sep-2013
1519,Revenue,CCHD,Elderly MH Day Care North,Private & Voluntary Day Care,Premier Homecare Limited,209.76, 27-Sep-2013
1520,Revenue,CCHD,Home Care - Elderly - South,Other Small Contracts,Prestige Nursing,961.13, 16-Sep-2013
1521,Revenue,CCHD,Home Care - Elderly - North,Other Small Contracts,Prestige Nursing,1396.44, 16-Sep-2013
1522,Revenue,CCHD,Day Care - South,Private & Voluntary Day Care,Prestige Nursing,258.6, 16-Sep-2013
1523,Revenue,CCHD,Day Care - North,Private & Voluntary Day Care,Prestige Nursing,422.38, 16-Sep-2013
1524,Revenue,CCHD,Home Care - Elderly - South,Other Small Contracts,Prestige Nursing,1012.85, 16-Sep-2013
1525,Revenue,CCHD,Home Care - Elderly - North,Other Small Contracts,Prestige Nursing,1525.74, 16-Sep-2013
1526,Revenue,CCHD,Day Care - South,Private & Voluntary Day Care,Prestige Nursing,176.71, 16-Sep-2013
1527,Revenue,CCHD,Day Care - North,Private & Voluntary Day Care,Prestige Nursing,525.82, 16-Sep-2013
1528,Revenue,CCHD,Older People's Commissioned Se,Grants to Voluntary Bodies,Princess Royal Trust Carers Centre,40415.25, 30-Sep-2013
1529,Revenue,CCHD,Older People's Commissioned Se,Grants to Voluntary Bodies,Princess Royal Trust Carers Centre,1930.75, 30-Sep-2013
1530,Revenue,CCHD,Bed purchasing - Elderly MH - North,Nursing Homes,Ravenswood,1269.48, 03-Sep-2013
1531,Revenue,CCHD,Bed Purchasing - Elderly - South,Residential Homes,Ravenswood,3804.6, 03-Sep-2013
1532,Revenue,CCHD,Bed Purchasing - Elderly - North,Nursing Homes,Ravenswood,7359.46, 03-Sep-2013
1533,Revenue,CCHD,Bed Purchasing - Elderly - North,Nursing Homes,Ravenswood,1549.36, 03-Sep-2013
1534,Revenue,CCHD,Bed Purchasing - PWLD S 117 Placements,Residential Homes,Real Life Options,7979.92, 03-Sep-2013
1535,Revenue,CCHD,Bed Purchasing - Elderly S117- North,Nursing Homes,Redholme Memory Care Limited,1962.8, 03-Sep-2013
1536,Revenue,CCHD,Bed Purchasing - Elderly - South,Nursing Homes,Regent House,2224.96, 03-Sep-2013
1537,Revenue,CCHD,Bed Purchasing - Elderly - South,Nursing Homes,Regent House,1649.08, 03-Sep-2013
1538,Revenue,CCHD,Bed Purchasing - Elderly - South,Nursing Homes,Regent House,1958.52, 03-Sep-2013
1539,Revenue,CCHD,South Glos Users in South Glos Homes,Nursing Homes,Regent House,4369.8, 03-Sep-2013
1540,Revenue,CCHD,Bed Purchasing - Elderly MH - South,Nursing Homes,Regent House,1982.08, 03-Sep-2013
1541,Revenue,CCHD,Bed Purchasing - Elderly - South,Nursing Homes,Regent House,1699.68, 03-Sep-2013
1542,Revenue,CCHD,Bed Purchasing - Elderly - South,Nursing Homes,Regent House,1876.36, 03-Sep-2013
1543,Revenue,CCHD,Bed Purchasing - Elderly - South,Nursing Homes,Regent House,1977.08, 03-Sep-2013
1544,Revenue,CCHD,Bed Purchasing - Elderly - South,Nursing Homes,Regent House,1808, 03-Sep-2013
1545,Revenue,CCHD,Bed Purchasing - Elderly - South,Nursing Homes,Regent House,1649.08, 03-Sep-2013
1546,Revenue,CCHD,Bed Purchasing - Elderly - South,Nursing Homes,Regent House,616.04, 03-Sep-2013
1547,Revenue,CCHD,Bed Purchasing - Elderly - South,Nursing Homes,Regent House,2088.4, 03-Sep-2013
1548,Revenue,CCHD,Bed Purchasing - Southmead Hospital,Nursing Homes,Regent House,1388.52, 03-Sep-2013
1549,Revenue,CCHD,Bed Purchasing - Elderly - South,Nursing Homes,Regent House,1646.36, 03-Sep-2013
1550,Revenue,CCHD,Bed Purchasing - Elderly MH - South,Nursing Homes,Regent House,1192.64, 03-Sep-2013
1551,Revenue,CCHD,Bed purchasing - Elderly MH - North,Nursing Homes,Regent House,1275.76, 03-Sep-2013
1552,Revenue,CCHD,Bed Purchasing - Elderly - South,Nursing Homes,Regent House,2605.96, 03-Sep-2013
1553,Revenue,CCHD,Bed Purchasing - Under 65s PWLD - South,Residential Homes,Ridgeway House,3450.56, 03-Sep-2013
1554,Revenue,CCHD,Bed Purchasing - Under 65s PWLD - South,Residential Homes,Riverside House,3557.92, 03-Sep-2013
1555,Revenue,CCHD,Bed Purchasing - Frenchay Hospital,Nursing Homes,Riversway Nursing Home,7653.48, 03-Sep-2013
1556,Revenue,CCHD,Bed purchasing - Elderly PWLD - South,Residential Homes,Rockleaze,1408.56, 03-Sep-2013
1557,Revenue,CCHD,Bed Purchasing - LD S28A- Over 65- South,Residential Homes,Rockleaze,2054.24, 03-Sep-2013
1558,Revenue,CCHD,Bed purchasing - Elderly PWLD - South,Residential Homes,Rockleaze,2382.32, 03-Sep-2013
1559,Revenue,CCHD,Bed purchasing - Elderly PWLD - South,Residential Homes,Rockleaze,1408.56, 03-Sep-2013
1560,Revenue,CCHD,Bed Purchasing - Elderly MH - South,Residential Homes,Ross Healthcare,1292.56, 03-Sep-2013
1561,Revenue,CCHD,Bed Purchasing - Frenchay Hospital,Nursing Homes,Saffron Gardens,1825.64, 03-Sep-2013
1562,Revenue,CCHD,Bed Purchasing - Elderly - North,Nursing Homes,Saffron Gardens,988.72, 03-Sep-2013
1563,Revenue,CCHD,Home Care - Elderly - South,Other Small Contracts,Saga Homecare,3167.9, 04-Sep-2013
1564,Revenue,CCHD,Home Care - Elderly - North,Other Small Contracts,Saga Homecare,8092.34, 04-Sep-2013
1565,Revenue,CCHD,Day Care - South,Private & Voluntary Day Care,Saga Homecare,75.05, 04-Sep-2013
1566,Revenue,CCHD,Day Care - North,Private & Voluntary Day Care,Saga Homecare,312.05, 04-Sep-2013
1567,Revenue,CCHD,Carer`s Grant - South,Carers Breaks & Services,Saga Homecare,110.6, 04-Sep-2013
1568,Revenue,CCHD,Home care - Elderly MH - North,Other Small Contracts,Saga Homecare,158, 04-Sep-2013
1569,Revenue,CCHD,Elderly MH Day Care North,Private & Voluntary Day Care,Saga Homecare,134.3, 04-Sep-2013
1570,Revenue,CCHD,Home Care - LD Under 65 - South,Private & Voluntary Home Care,Saga Homecare,252.8, 04-Sep-2013
1571,Revenue,CCHD,PWLD Home Care - Under 65 - KH,Private & Voluntary Home Care,Saga Homecare,695.2, 04-Sep-2013
1572,Revenue,CCHD,Home Care - Elderly - South,Other Small Contracts,Saga Homecare,3479.95, 04-Sep-2013
1573,Revenue,CCHD,Home Care - Elderly - North,Other Small Contracts,Saga Homecare,7534.67, 04-Sep-2013
1574,Revenue,CCHD,Day Care - South,Private & Voluntary Day Care,Saga Homecare,79, 04-Sep-2013
1575,Revenue,CCHD,Day Care - North,Private & Voluntary Day Care,Saga Homecare,319.95, 04-Sep-2013
1576,Revenue,CCHD,Carer`s Grant - South,Carers Breaks & Services,Saga Homecare,110.6, 04-Sep-2013
1577,Revenue,CCHD,Home care - Elderly MH - North,Other Small Contracts,Saga Homecare,169.85, 04-Sep-2013
1578,Revenue,CCHD,Elderly MH Day Care North,Private & Voluntary Day Care,Saga Homecare,134.3, 04-Sep-2013
1579,Revenue,CCHD,Home Care - LD Under 65 - South,Private & Voluntary Home Care,Saga Homecare,252.8, 04-Sep-2013
1580,Revenue,CCHD,PWLD Home Care - Under 65 - KH,Private & Voluntary Home Care,Saga Homecare,651.75, 04-Sep-2013
1581,Revenue,CCHD,Home Care - Elderly - South,Other Small Contracts,Saga Homecare,2912.7, 19-Sep-2013
1582,Revenue,CCHD,Home Care - Elderly - North,Other Small Contracts,Saga Homecare,9022.25, 19-Sep-2013
1583,Revenue,CCHD,Day Care - South,Private & Voluntary Day Care,Saga Homecare,75.81, 19-Sep-2013
1584,Revenue,CCHD,Day Care - North,Private & Voluntary Day Care,Saga Homecare,263.34, 19-Sep-2013
1585,Revenue,CCHD,Home care - Elderly MH - North,Other Small Contracts,Saga Homecare,119.7, 19-Sep-2013
1586,Revenue,CCHD,Home Care - LD Under 65 - South,Private & Voluntary Home Care,Saga Homecare,259.35, 19-Sep-2013
1587,Revenue,CCHD,PWLD Home Care - Under 65 - KH,Private & Voluntary Home Care,Saga Homecare,486.78, 19-Sep-2013
1588,Revenue,CCHD,Home Care - Elderly - South,Other Small Contracts,Saga Homecare,2960.58, 09-Sep-2013
1589,Revenue,CCHD,Home Care - Elderly - North,Other Small Contracts,Saga Homecare,9267.81, 09-Sep-2013
1590,Revenue,CCHD,Day Care - South,Private & Voluntary Day Care,Saga Homecare,31.92, 09-Sep-2013
1591,Revenue,CCHD,Day Care - North,Private & Voluntary Day Care,Saga Homecare,263.34, 09-Sep-2013
1592,Revenue,CCHD,Home care - Elderly MH - North,Other Small Contracts,Saga Homecare,103.74, 09-Sep-2013
1593,Revenue,CCHD,Home Care - LD Under 65 - South,Private & Voluntary Home Care,Saga Homecare,159.6, 09-Sep-2013
1594,Revenue,CCHD,PWLD Home Care - Under 65 - KH,Private & Voluntary Home Care,Saga Homecare,478.8, 09-Sep-2013
1595,Revenue,CCHD,Home Care - Elderly - South,Other Small Contracts,Saga Homecare,3211.95, 10-Sep-2013
1596,Revenue,CCHD,Home Care - Elderly - North,Other Small Contracts,Saga Homecare,8924.67, 10-Sep-2013
1597,Revenue,CCHD,Day Care - South,Private & Voluntary Day Care,Saga Homecare,31.92, 10-Sep-2013
1598,Revenue,CCHD,Day Care - North,Private & Voluntary Day Care,Saga Homecare,263.34, 10-Sep-2013
1599,Revenue,CCHD,Home care - Elderly MH - North,Other Small Contracts,Saga Homecare,91.77, 10-Sep-2013
1600,Revenue,CCHD,PWLD Home Care - Under 65 - KH,Private & Voluntary Home Care,Saga Homecare,486.78, 10-Sep-2013
1601,Revenue,CCHD,Home Care - Elderly - South,Other Small Contracts,Saga Homecare,3207.4, 09-Sep-2013
1602,Revenue,CCHD,Home Care - Elderly - North,Other Small Contracts,Saga Homecare,8350.41, 09-Sep-2013
1603,Revenue,CCHD,Day Care - South,Private & Voluntary Day Care,Saga Homecare,82.95, 09-Sep-2013
1604,Revenue,CCHD,Day Care - North,Private & Voluntary Day Care,Saga Homecare,264.65, 09-Sep-2013
1605,Revenue,CCHD,Carer`s Grant - South,Carers Breaks & Services,Saga Homecare,110.6, 09-Sep-2013
1606,Revenue,CCHD,Home care - Elderly MH - North,Other Small Contracts,Saga Homecare,189.6, 09-Sep-2013
1607,Revenue,CCHD,Elderly MH Day Care North,Private & Voluntary Day Care,Saga Homecare,67.15, 09-Sep-2013
1608,Revenue,CCHD,Home Care - LD Under 65 - South,Private & Voluntary Home Care,Saga Homecare,240.95, 09-Sep-2013
1609,Revenue,CCHD,PWLD Home Care - Under 65 - KH,Private & Voluntary Home Care,Saga Homecare,663.6, 09-Sep-2013
1610,Revenue,CCHD,Home Care - Elderly - South,Other Small Contracts,Saga Homecare,3140.13, 12-Sep-2013
1611,Revenue,CCHD,Home Care - Elderly - North,Other Small Contracts,Saga Homecare,9275.79, 12-Sep-2013
1612,Revenue,CCHD,Day Care - South,Private & Voluntary Day Care,Saga Homecare,75.81, 12-Sep-2013
1613,Revenue,CCHD,Day Care - North,Private & Voluntary Day Care,Saga Homecare,263.34, 12-Sep-2013
1614,Revenue,CCHD,Home care - Elderly MH - North,Other Small Contracts,Saga Homecare,99.75, 12-Sep-2013
1615,Revenue,CCHD,PWLD Home Care - Under 65 - KH,Private & Voluntary Home Care,Saga Homecare,458.85, 12-Sep-2013
1616,Revenue,CCHD,Home Care - Elderly - South,Other Small Contracts,Saga Homecare,3037.39, 16-Sep-2013
1617,Revenue,CCHD,Home Care - Elderly - North,Other Small Contracts,Saga Homecare,9027.25, 16-Sep-2013
1618,Revenue,CCHD,Day Care - South,Private & Voluntary Day Care,Saga Homecare,31.92, 16-Sep-2013
1619,Revenue,CCHD,Day Care - North,Private & Voluntary Day Care,Saga Homecare,267.33, 16-Sep-2013
1620,Revenue,CCHD,Home care - Elderly MH - North,Other Small Contracts,Saga Homecare,107.73, 16-Sep-2013
1621,Revenue,CCHD,Elderly MH Day Care North,Private & Voluntary Day Care,Saga Homecare,135.66, 16-Sep-2013
1622,Revenue,CCHD,Home Care - LD Under 65 - South,Private & Voluntary Home Care,Saga Homecare,255.36, 16-Sep-2013
1623,Revenue,CCHD,PWLD Home Care - Under 65 - KH,Private & Voluntary Home Care,Saga Homecare,383.04, 16-Sep-2013
1624,Revenue,CCHD,Home Care - Elderly - South,Other Small Contracts,Saga Homecare,3183.7, 27-Sep-2013
1625,Revenue,CCHD,Home Care - Elderly - North,Other Small Contracts,Saga Homecare,8231.91, 27-Sep-2013
1626,Revenue,CCHD,Day Care - South,Private & Voluntary Day Care,Saga Homecare,173.8, 27-Sep-2013
1627,Revenue,CCHD,Day Care - North,Private & Voluntary Day Care,Saga Homecare,292.3, 27-Sep-2013
1628,Revenue,CCHD,Carer`s Grant - South,Carers Breaks & Services,Saga Homecare,110.6, 27-Sep-2013
1629,Revenue,CCHD,Home care - Elderly MH - North,Other Small Contracts,Saga Homecare,189.6, 27-Sep-2013
1630,Revenue,CCHD,Elderly MH Day Care North,Private & Voluntary Day Care,Saga Homecare,134.3, 27-Sep-2013
1631,Revenue,CCHD,Home Care - LD Under 65 - South,Private & Voluntary Home Care,Saga Homecare,260.7, 27-Sep-2013
1632,Revenue,CCHD,PWLD Home Care - Under 65 - KH,Private & Voluntary Home Care,Saga Homecare,659.65, 27-Sep-2013
1633,Revenue,CCHD,Home Care - Elderly - South,Other Small Contracts,Saga Homecare,3363.57, 30-Sep-2013
1634,Revenue,CCHD,Home Care - Elderly - North,Other Small Contracts,Saga Homecare,8653.35, 30-Sep-2013
1635,Revenue,CCHD,Day Care - South,Private & Voluntary Day Care,Saga Homecare,79.8, 30-Sep-2013
1636,Revenue,CCHD,Day Care - North,Private & Voluntary Day Care,Saga Homecare,271.32, 30-Sep-2013
1637,Revenue,CCHD,Home care - Elderly MH - North,Other Small Contracts,Saga Homecare,55.86, 30-Sep-2013
1638,Revenue,CCHD,PWLD Home Care - Under 65 - KH,Private & Voluntary Home Care,Saga Homecare,414.96, 30-Sep-2013
1639,Revenue,CCHD,Home Care - Elderly - South,Other Small Contracts,Saga Homecare,3662.82, 30-Sep-2013
1640,Revenue,CCHD,Home Care - Elderly - North,Other Small Contracts,Saga Homecare,9128.16, 30-Sep-2013
1641,Revenue,CCHD,Day Care - North,Private & Voluntary Day Care,Saga Homecare,263.34, 30-Sep-2013
1642,Revenue,CCHD,Home care - Elderly MH - North,Other Small Contracts,Saga Homecare,51.87, 30-Sep-2013
1643,Revenue,CCHD,PWLD Home Care - Under 65 - KH,Private & Voluntary Home Care,Saga Homecare,399, 30-Sep-2013
1644,Revenue,CCHD,Community Support - North,Preventative Assistance,Salisbury NHS Foundation Trust,1100, 23-Sep-2013
1645,Revenue,CCHD,Bed Purchasing - Under 65s PWLD - South,Residential Homes,Salters Hill Barn,2014.52, 03-Sep-2013
1646,Revenue,CCHD,Bed Purchasing - Southmead Hospital,Residential Homes,Sanctuary Care Limited,1719.12, 03-Sep-2013
1647,Revenue,CCHD,Bed Purchasing - Southmead Hospital,Residential Homes,Sanctuary Care Ltd,1270, 03-Sep-2013
1648,Revenue,CCHD,Learning Difficulties PSL,Rent,Individual,1650, 05-Sep-2013
1649,Revenue,CCHD,Woodleaze,"Provisions (Food, etc)",School Milk Services Limited,889.26, 30-Sep-2013
1650,Revenue,CCHD,Bed purchasing - Under 65s PWLD - North,Residential Homes,Scope   Accounts Dept,4956.52, 03-Sep-2013
1651,Revenue,CCHD,Bed Purchasing - Under 65s PWLD - South,Residential Homes,Scope   Accounts Dept,7139.4, 03-Sep-2013
1652,Revenue,CCHD,Day Care - North,Private & Voluntary Day Care,SeeAbility,1942.06, 02-Sep-2013
1653,Revenue,CCHD,Supported Living - North,Private & Voluntary Home Care,SeeAbility,7132.48, 30-Sep-2013
1654,Revenue,CCHD,Supported Living - North,Private & Voluntary Home Care,SeeAbility,1341.86, 30-Sep-2013
1655,Revenue,CCHD,Supported Living - North,Private & Voluntary Home Care,SeeAbility,7610.1, 30-Sep-2013
1656,Revenue,CCHD,Supported Living - North,Private & Voluntary Home Care,SeeAbility,1254.26, 30-Sep-2013
1657,Revenue,CCHD,Supported Living - South,Private & Voluntary Home Care,Selborne Care Ltd,3000.47, 12-Sep-2013
1658,Revenue,CCHD,Supported Living - South,Private & Voluntary Home Care,Selborne Care Ltd,643.6, 12-Sep-2013
1659,Revenue,CCHD,Purchase of Non-Res Care - North,Private & Voluntary Day Care,Selborne Care Ltd,1627.92, 12-Sep-2013
1660,Revenue,CCHD,Supported Living - South,Private & Voluntary Home Care,Selborne Care Ltd,5128.68, 12-Sep-2013
1661,Revenue,CCHD,Purchase of Non-Res Care - North,Private & Voluntary Day Care,Selborne Care Ltd,901.04, 12-Sep-2013
1662,Revenue,CCHD,Supported Living - South,Private & Voluntary Home Care,Selborne Care Ltd,1158.3, 13-Sep-2013
1663,Revenue,CCHD,Purchase of Non-Res Care - North,Private & Voluntary Day Care,Selborne Care Ltd,859.36, 12-Sep-2013
1664,Revenue,CCHD,Supported Living - South,Private & Voluntary Home Care,Selborne Care Ltd,514.88, 13-Sep-2013
1665,Revenue,CCHD,Supported Living - South,Private & Voluntary Home Care,Selborne Care Ltd,4629.68, 12-Sep-2013
1666,Revenue,CCHD,Purchase of Non-Res Care - North,Private & Voluntary Day Care,Selborne Care Ltd,786.36, 12-Sep-2013
1667,Revenue,CCHD,Supported Living - South,Private & Voluntary Home Care,Selborne Care Ltd,554.56, 13-Sep-2013
1668,Revenue,CCHD,Supported Living - South,Private & Voluntary Home Care,Selborne Care Ltd,1955.48, 12-Sep-2013
1669,Revenue,CCHD,Purchase of Non-Res Care - North,Private & Voluntary Day Care,Selborne Care Ltd,719.6, 12-Sep-2013
1670,Revenue,CCHD,Supported Living (S28a) South,Private & Voluntary Home Care,Selborne Care Ltd,3326.68, 18-Sep-2013
1671,Revenue,CCHD,Bed Purchasing - Elderly - South,Nursing Homes,Shaw Healthcare Ltd,1603.76, 03-Sep-2013
1672,Revenue,CCHD,Bed Purchasing - Elderly S117- North,Nursing Homes,Shaw Healthcare Ltd,1962.68, 03-Sep-2013
1673,Revenue,CCHD,Bed purchasing - Elderly S117 - South,Nursing Homes,Shaw Healthcare Ltd,1992.16, 03-Sep-2013
1674,Revenue,CCHD,Bed purchasing - Elderly MH - North,Nursing Homes,Shaw Healthcare Ltd,6045.84, 03-Sep-2013
1675,Revenue,CCHD,Bed Purchasing - Elderly - North,Nursing Homes,Shaw Healthcare Ltd,990.76, 03-Sep-2013
1676,Revenue,CCHD,Bed purchasing - S28A Under 65 - South,Residential Homes,Shaw Healthcare Ltd,10507.8, 03-Sep-2013
1677,Revenue,CCHD,Bed purchasing - S28A Under 65 - South,Residential Homes,Shaw Healthcare Ltd,10337, 03-Sep-2013
1678,Revenue,CCHD,Bed purchasing - S28A Under 65 - South,Residential Homes,Shaw Healthcare Ltd,10337, 03-Sep-2013
1679,Revenue,CCHD,Bed Purchasing - Under 65s PWLD - South,Nursing Homes,Shaw Healthcare Ltd,9754.04, 03-Sep-2013
1680,Revenue,CCHD,Bed Purchasing - Under 65s PWLD - South,Residential Homes,Shaw Healthcare Ltd,9760.6, 03-Sep-2013
1681,Revenue,CCHD,Bed purchasing - Elderly PWLD - South,Residential Homes,Shaw Healthcare Ltd,3907.68, 03-Sep-2013
1682,Revenue,CCHD,Bed purchasing - S28A Under 65 - South,Residential Homes,Shaw Healthcare Ltd,10393.88, 03-Sep-2013
1683,Revenue,CCHD,Bed purchasing - S28A Under 65 - South,Residential Homes,Shaw Healthcare Ltd,12174.6, 03-Sep-2013
1684,Revenue,CCHD,Bed Purchasing - S28A - Over 65- North,Residential Homes,Shaw Healthcare Ltd,4238.92, 03-Sep-2013
1685,Revenue,CCHD,Bed Purchasing - S28A - Over 65- North,Residential Homes,Shaw Healthcare Ltd,4246.2, 03-Sep-2013
1686,Revenue,CCHD,Bed Purchasing - LD S28A- Over 65- South,Residential Homes,Shaw Healthcare Ltd,4763.2, 03-Sep-2013
1687,Revenue,CCHD,Bed Purchasing - Under 65s PWLD - South,Nursing Homes,Shaw Healthcare Ltd,10091.08, 03-Sep-2013
1688,Revenue,CCHD,Bed Purchasing - LD S28A- Over 65- South,Residential Homes,Shaw Healthcare Ltd,4321.32, 03-Sep-2013
1689,Revenue,CCHD,Bed purchasing -S28A  Under 65 - North,Residential Homes,Shaw Healthcare Ltd,9174, 03-Sep-2013
1690,Revenue,CCHD,Bed Purchasing - S28A - Over 65- North,Residential Homes,Shaw Healthcare Ltd,8580.2, 03-Sep-2013
1691,Revenue,CCHD,Bed Purchasing - Southmead Hospital,Residential Homes,Shaw Healthcare Ltd,891.96, 03-Sep-2013
1692,Revenue,CCHD,Bed Purchasing - Elderly - North,Residential Homes,Shaw Healthcare Ltd,1262, 03-Sep-2013
1693,Revenue,CCHD,Bed Purchasing - Frenchay Hospital,Residential Homes,Shaw Healthcare Ltd,1119.32, 03-Sep-2013
1694,Revenue,CCHD,Supported Living - South,Private & Voluntary Home Care,Silva Care Limited,4415.44, 24-Sep-2013
1695,Revenue,CCHD,Downend Day Centre,Refuse Collection Charges,SITA UK LTD,1681.58, 02-Sep-2013
1696,Revenue,CCHD,Alexandra Way,Refuse Collection Charges,SITA UK LTD,711.52, 18-Sep-2013
1697,Revenue,CCHD,Bed purchasing - Under 65s PWLD - North,Residential Homes,Small House Homes Limited,17754.92, 03-Sep-2013
1698,Revenue,CCHD,Purchase of Non-Res Care - South,Private & Voluntary Day Care,Smile Independent Living Support Limited,685.97, 13-Sep-2013
1699,Revenue,CCHD,Supported Living - North,Private & Voluntary Home Care,Smile Independent Living Support Limited,3261.51, 13-Sep-2013
1700,Revenue,CCHD,Supported Living - North,Private & Voluntary Home Care,Smile Independent Living Support Limited,3362.26, 13-Sep-2013
1701,Revenue,CCHD,Purchase of Non-Res Care - North,Private & Voluntary Day Care,Smile Independent Living Support Limited,595.26, 13-Sep-2013
1702,Revenue,CCHD,Purchase of Non-Res Care - North,Private & Voluntary Day Care,Smile Independent Living Support Limited,550.62, 13-Sep-2013
1703,Revenue,CCHD,Supported Living - North,Private & Voluntary Home Care,Smile Independent Living Support Limited,2661.46, 13-Sep-2013
1704,Revenue,CCHD,Purchase of Non-Res Care - North,Private & Voluntary Day Care,Smile Independent Living Support Limited,1149.72, 17-Sep-2013
1705,Revenue,CCHD,Purchase of Non-Res Care - North,Private & Voluntary Day Care,Smile Independent Living Support Limited,1305.24, 13-Sep-2013
1706,Revenue,CCHD,Purchase of Non-Res Care - North,Private & Voluntary Day Care,Smile Independent Living Support Limited,962.62, 13-Sep-2013
1707,Revenue,CCHD,Purchase of Non-Res Care - North,Private & Voluntary Day Care,Smile Independent Living Support Limited,513, 13-Sep-2013
1708,Revenue,CCHD,Purchase of Non-Res Care - North,Private & Voluntary Day Care,Smile Independent Living Support Limited,678.48, 13-Sep-2013
1709,Revenue,CCHD,Minor Adaptations Service,Premises Maintenance by Contractor,Southern Electric Contracting Limited,471.63, 10-Sep-2013
1710,Revenue,CCHD,Minor Adaptations Service,Premises Maintenance by Contractor,Southern Electric Contracting Limited,37.37, 10-Sep-2013
1711,Revenue,CCHD,Bed Purchasing - Under 65s PWLD - South,Residential Homes,St Brigas,2055.56, 03-Sep-2013
1712,Revenue,CCHD,Bed Purchasing - Under 65s PWLD - South,Residential Homes,St Brigas,2972.08, 03-Sep-2013
1713,Revenue,CCHD,Bed Purchasing - Under 65s PWLD - South,Residential Homes,St Brigas,2003.32, 03-Sep-2013
1714,Revenue,CCHD,Bed Purchasing - Elderly - South,Nursing Homes,St George Nursing Home,719.72, 03-Sep-2013
1715,Revenue,CCHD,Bed Purchasing - Frenchay Hospital,Nursing Homes,St George Nursing Home,1302, 03-Sep-2013
1716,Revenue,CCHD,Bed Purchasing - Southmead Hospital,Nursing Homes,St George Nursing Home,678.16, 03-Sep-2013
1717,Revenue,CCHD,Bed Purchasing - Elderly - South,Nursing Homes,St George Nursing Home,1302, 03-Sep-2013
1718,Revenue,CCHD,Bed Purchasing - Southmead Hospital,Nursing Homes,St George Nursing Home,1314, 03-Sep-2013
1719,Revenue,CCHD,Bed Purchasing - Frenchay Hospital,Nursing Homes,St George Nursing Home,1065.36, 03-Sep-2013
1720,Revenue,CCHD,Bed Purchasing - Frenchay Hospital,Nursing Homes,St George Nursing Home,662.16, 03-Sep-2013
1721,Revenue,CCHD,Bed Purchasing - Southmead Hospital,Nursing Homes,St Monicas Trust,1534.5, 03-Sep-2013
1722,Revenue,CCHD,Bed Purchasing - Elderly - North,Nursing Homes,St Monicas Trust,2790.36, 03-Sep-2013
1723,Revenue,CCHD,Bed Purchasing - Elderly - South,Nursing Homes,St Roses School,3982.76, 27-Sep-2013
1724,Revenue,CCHD,Bed Purchasing - Under 65s PWLD - South,Residential Homes,Stepping Stones Re-Sett. Unit,7484.8, 03-Sep-2013
1725,Revenue,CCHD,Section 117 Placements MH Younger,Private & Voluntary Day Care,Supported Independence Ltd,2019.48, 13-Sep-2013
1726,Revenue,CCHD,Younger MH non-res purchasing,Private & Voluntary Day Care,Supported Independence Ltd,1041.04, 13-Sep-2013
1727,Revenue,CCHD,Section 117 Placements MH Younger,Private & Voluntary Day Care,Supported Independence Ltd,2434.7, 13-Sep-2013
1728,Revenue,CCHD,Section 117 Placements MH Younger,Private & Voluntary Day Care,Supported Independence Ltd,3563.48, 26-Sep-2013
1729,Revenue,CCHD,Section 117 Placements MH Younger,Private & Voluntary Day Care,Supported Independence Ltd,521.1, 13-Sep-2013
1730,Revenue,CCHD,Supported Living - South,Private & Voluntary Home Care,Supported Independence Ltd,708.22, 16-Sep-2013
1731,Revenue,CCHD,Section 117 Placements MH Younger,Private & Voluntary Day Care,Supported Independence Ltd,582.2, 18-Sep-2013
1732,Revenue,CCHD,Younger MH non-res purchasing,Private & Voluntary Day Care,Supported Independence Ltd,1041.04, 13-Sep-2013
1733,Revenue,CCHD,Section 117 Placements MH Younger,Private & Voluntary Day Care,Supported Independence Ltd,562.41, 13-Sep-2013
1734,Revenue,CCHD,Day Care - South,Private & Voluntary Day Care,Supported Independence Ltd,2491.6, 19-Sep-2013
1735,Revenue,CCHD,Section 117 Placements MH Younger,Private & Voluntary Day Care,Supported Independence Ltd,3702.32, 18-Sep-2013
1736,Revenue,CCHD,Younger MH non-res purchasing,Private & Voluntary Day Care,Supported Independence Ltd,541.58, 26-Sep-2013
1737,Revenue,CCHD,Section 117 Placements MH Younger,Private & Voluntary Day Care,Supported Independence Ltd,1273.8, 26-Sep-2013
1738,Revenue,CCHD,Supported Living - South,Private & Voluntary Home Care,Supported Independence Ltd,1561.56, 24-Sep-2013
1739,Revenue,CCHD,Supported Living - North,Private & Voluntary Home Care,Supported Independence Ltd,760.76, 24-Sep-2013
1740,Revenue,CCHD,Supported Living - South,Private & Voluntary Home Care,Supported Independent Living Schemes,642.96, 18-Sep-2013
1741,Revenue,CCHD,Younger MH non-res purchasing,Private & Voluntary Day Care,Supporting Options,586.43, 05-Sep-2013
1742,Revenue,CCHD,Day Care - South,Private & Voluntary Day Care,Supporting Options,2619.47, 02-Sep-2013
1743,Revenue,CCHD,Day Care - South,Private & Voluntary Day Care,Supporting Options,1683.94, 24-Sep-2013
1744,Revenue,CCHD,Supported Living - South,Private & Voluntary Home Care,Supporting Options,776.65, 23-Sep-2013
1745,Revenue,CCHD,Supported Living - South,Private & Voluntary Home Care,Supporting Options,1325.97, 20-Sep-2013
1746,Revenue,CCHD,Turnberries,Other Supplies & Services,Teacher Stern LLP,1907.12, 20-Sep-2013
1747,Revenue,CCHD,Bed Purchasing - Under 65s PWLD - South,Residential Homes,The Ann Coleman Centre,5968.36, 03-Sep-2013
1748,Revenue,CCHD,Bed Purchasing - Elderly - North,Residential Homes,The Beeches,1000, 03-Sep-2013
1749,Revenue,CCHD,Bed Purchasing - Southmead Hospital,Residential Homes,The Beeches,2911.6, 03-Sep-2013
1750,Revenue,CCHD,Bed Purchasing - Southmead Hospital,Residential Homes,The Beeches,990.64, 03-Sep-2013
1751,Revenue,CCHD,Bed Purchasing - Southmead Hospital,Residential Homes,The Beeches,1246, 03-Sep-2013
1752,Revenue,CCHD,Bed Purchasing - Frenchay Hospital,Residential Homes,The Beeches,1392.22, 03-Sep-2013
1753,Revenue,CCHD,Supported Living - North,Private & Voluntary Home Care,The Brandon Trust,9071.34, 20-Sep-2013
1754,Revenue,CCHD,Day Care - North,Private & Voluntary Day Care,The Brandon Trust,789, 10-Sep-2013
1755,Revenue,CCHD,Day Care - South,Private & Voluntary Day Care,The Brandon Trust,1660.69, 19-Sep-2013
1756,Revenue,CCHD,Younger MH non-res purchasing,Private & Voluntary Day Care,The Brandon Trust,1916.17, 18-Sep-2013
1757,Revenue,CCHD,Supported Living - South,Private & Voluntary Home Care,The Brandon Trust,1418.85, 16-Sep-2013
1758,Revenue,CCHD,Purchase of Non-Res Care - North,Private & Voluntary Day Care,The Brandon Trust,13723.21, 20-Sep-2013
1759,Revenue,CCHD,Purchase of Non-Res Care - South,Private & Voluntary Day Care,The Brandon Trust,25735.83, 16-Sep-2013
1760,Revenue,CCHD,Supported Living - North,Private & Voluntary Home Care,The Brandon Trust,9104.7, 13-Sep-2013
1761,Revenue,CCHD,Purchase of Non-Res Care - South,Private & Voluntary Day Care,The Camphill Village Trust,1837.3, 04-Sep-2013
1762,Revenue,CCHD,MH Purchasing - Younger,Residential Homes,The Cidermill,1414, 03-Sep-2013
1763,Revenue,CCHD,Bed purchasing - Elderly MH - North,Residential Homes,The Cidermill,1414, 03-Sep-2013
1764,Revenue,CCHD,Bed purchasing - Elderly MH - North,Residential Homes,The Cidermill,991.36, 03-Sep-2013
1765,Revenue,CCHD,Bed purchasing - Elderly MH - North,Nursing Homes,The Cidermill,1208.28, 03-Sep-2013
1766,Revenue,CCHD,Bed Purchasing - Southmead Hospital,Residential Homes,The Cidermill,932.24, 03-Sep-2013
1767,Revenue,CCHD,Bed purchasing - Under 65s PWLD - North,Residential Homes,The David Lewis Centre,5532.03, 27-Sep-2013
1768,Revenue,CCHD,Bed Purchasing - Southmead Hospital,Residential Homes,The Gables Residential Home,1366.68, 03-Sep-2013
1769,Revenue,CCHD,Bed purchasing - Elderly S117 - South,Residential Homes,The Gables Residential Home,2214.12, 03-Sep-2013
1770,Revenue,CCHD,Bed Purchasing - Southmead Hospital,Residential Homes,The Gables Residential Home,976.08, 03-Sep-2013
1771,Revenue,CCHD,Bed Purchasing - Elderly - South,Residential Homes,The Gables Residential Home,1286.4, 03-Sep-2013
1772,Revenue,CCHD,Bed Purchasing - Elderly - South,Residential Homes,The Gables Residential Home,995.04, 03-Sep-2013
1773,Revenue,CCHD,Bed Purchasing - Elderly - South,Residential Homes,The Garden House,752.96, 03-Sep-2013
1774,Revenue,CCHD,Bed Purchasing - Elderly - North,Residential Homes,The Garden House,697.04, 03-Sep-2013
1775,Revenue,CCHD,Bed Purchasing - Frenchay Hospital,Residential Homes,The Garden House,1233.48, 03-Sep-2013
1776,Revenue,CCHD,Bed purchasing - Elderly MH - North,Residential Homes,The Garden House,1651.76, 03-Sep-2013
1777,Revenue,CCHD,Bed Purchasing - Elderly - South,Residential Homes,The Garden House,1612.56, 03-Sep-2013
1778,Revenue,CCHD,Bed Purchasing - Elderly - South,Residential Homes,The Garden House,1492.8, 03-Sep-2013
1779,Revenue,CCHD,Bed Purchasing - Elderly S117- North,Residential Homes,The Garden House,1900, 03-Sep-2013
1780,Revenue,CCHD,Bed Purchasing - Southmead Hospital,Residential Homes,The Garden House,2540, 03-Sep-2013
1781,Revenue,CCHD,Bed Purchasing - Elderly - North,Residential Homes,The Garden House,1244.04, 03-Sep-2013
1782,Revenue,CCHD,Bed Purchasing - Southmead Hospital,Residential Homes,The Garden House,1171.8, 03-Sep-2013
1783,Revenue,CCHD,Bed Purchasing - Elderly - South,Residential Homes,The Garden House,1302.67, 03-Sep-2013
1784,Revenue,CCHD,Bed Purchasing - Frenchay Hospital,Residential Homes,The Garden House,1414, 03-Sep-2013
1785,Revenue,CCHD,Bed Purchasing - Elderly MH - South,Residential Homes,The Garden House,1213.16, 03-Sep-2013
1786,Revenue,CCHD,Bed purchasing - Elderly MH - North,Residential Homes,The Grove,1049.24, 03-Sep-2013
1787,Revenue,CCHD,Bed Purchasing - Elderly - North,Residential Homes,The Grove,1414, 03-Sep-2013
1788,Revenue,CCHD,Bed Purchasing - Elderly S117- North,Residential Homes,The Grove,2094.2, 03-Sep-2013
1789,Revenue,CCHD,Bed purchasing - Elderly S117 - South,Residential Homes,The Grove,2322.08, 03-Sep-2013
1790,Revenue,CCHD,Bed purchasing - Elderly MH - North,Residential Homes,The Grove,1619.32, 03-Sep-2013
1791,Revenue,CCHD,Bed Purchasing - Southmead Hospital,Residential Homes,The Grove,2463.44, 03-Sep-2013
1792,Revenue,CCHD,Bed Purchasing - Frenchay Hospital,Residential Homes,The Grove,1442, 03-Sep-2013
1793,Revenue,CCHD,Bed Purchasing - Southmead Hospital,Residential Homes,The Grove,501.84, 03-Sep-2013
1794,Revenue,CCHD,Bed purchasing - Elderly S117 - South,Residential Homes,The Grove,2322.08, 03-Sep-2013
1795,Revenue,CCHD,Bed purchasing - Elderly MH - North,Residential Homes,The Grove,1500.32, 03-Sep-2013
1796,Revenue,CCHD,Bed Purchasing - Southmead Hospital,Residential Homes,The Grove,1267.6, 03-Sep-2013
1797,Revenue,CCHD,Bed purchasing - Elderly MH - North,Residential Homes,The Grove,1491.76, 03-Sep-2013
1798,Revenue,CCHD,Bed Purchasing - Elderly - South,Nursing Homes,The Heathers,706.04, 03-Sep-2013
1799,Revenue,CCHD,Bed Purchasing - Frenchay Hospital,Nursing Homes,The Heathers,1310, 03-Sep-2013
1800,Revenue,CCHD,Bed Purchasing - Frenchay Hospital,Nursing Homes,The Heathers,1246.52, 03-Sep-2013
1801,Revenue,CCHD,Bed Purchasing - Frenchay Hospital,Nursing Homes,The Heathers,680.64, 03-Sep-2013
1802,Revenue,CCHD,Bed Purchasing - Southmead Hospital,Nursing Homes,The Heathers,1275.52, 03-Sep-2013
1803,Revenue,CCHD,Bed Purchasing - Elderly - North,Nursing Homes,The Heathers,1422, 03-Sep-2013
1804,Revenue,CCHD,Bed Purchasing - Frenchay Hospital,Nursing Homes,The Heathers,1189.28, 03-Sep-2013
1805,Revenue,CCHD,Bed Purchasing - Frenchay Hospital,Nursing Homes,The Heathers,1302, 03-Sep-2013
1806,Revenue,CCHD,Bed Purchasing - Elderly - North,Nursing Homes,The Heathers,1302.72, 03-Sep-2013
1807,Revenue,CCHD,Bed Purchasing - Elderly - North,Nursing Homes,The Heathers,1061.56, 03-Sep-2013
1808,Revenue,CCHD,Bed Purchasing - Frenchay Hospital,Nursing Homes,The Heathers,985.2, 03-Sep-2013
1809,Revenue,CCHD,Bed Purchasing - Frenchay Hospital,Nursing Homes,The Heathers,1235.4, 03-Sep-2013
1810,Revenue,CCHD,Bed Purchasing - Frenchay Hospital,Nursing Homes,The Heathers,1219.92, 03-Sep-2013
1811,Revenue,CCHD,Bed Purchasing - Southmead Hospital,Nursing Homes,The Heathers,726.16, 03-Sep-2013
1812,Revenue,CCHD,Bed Purchasing - Southmead Hospital,Nursing Homes,The Heathers,999.86, 03-Sep-2013
1813,Revenue,CCHD,Bed Purchasing - Frenchay Hospital,Nursing Homes,The Heathers,1266.36, 03-Sep-2013
1814,Revenue,CCHD,Bed purchasing - Elderly MH - North,Residential Homes,The Hollies,1289.76, 03-Sep-2013
1815,Revenue,CCHD,Bed Purchasing - Elderly - North,Nursing Homes,The Hollies Nursing Home,1776.6, 03-Sep-2013
1816,Revenue,CCHD,Bed Purchasing - Under 65s PWLD - South,Residential Homes,The Manor House,3033.48, 03-Sep-2013
1817,Revenue,CCHD,Bed Purchasing - Under 65s PWLD - South,Residential Homes,The Manor House,1982.44, 03-Sep-2013
1818,Revenue,CCHD,Bed Purchasing - Under 65s PWLD - South,Residential Homes,The Manor House,991.23, 03-Sep-2013
1819,Revenue,CCHD,Bed Purchasing - Under 65s PWLD - South,Residential Homes,The Manor House,659.32, 03-Sep-2013
1820,Revenue,CCHD,Bed Purchasing - Under 65s PWLD - South,Residential Homes,The Manor House,4894.16, 03-Sep-2013
1821,Revenue,CCHD,Bed Purchasing - Under 65s PWLD - South,Residential Homes,The Manor House,3476.08, 03-Sep-2013
1822,Revenue,CCHD,Bed Purchasing - Under 65s PWLD - South,Residential Homes,The Manor House,2674.68, 03-Sep-2013
1823,Revenue,CCHD,Bed purchasing - Under 65s PWLD - North,Residential Homes,The Manor House,3372.68, 03-Sep-2013
1824,Revenue,CCHD,Bed Purchasing - Under 65s PWLD - South,Residential Homes,The Manor House,3249.2, 03-Sep-2013
1825,Revenue,CCHD,Bed purchasing - Under 65s PWLD - North,Residential Homes,The Manor House,2816.2, 03-Sep-2013
1826,Revenue,CCHD,Bed Purchasing - Under 65s PWLD - South,Residential Homes,The Manor House,2674.68, 03-Sep-2013
1827,Revenue,CCHD,Bed Purchasing - Under 65s PWLD - South,Residential Homes,The Manor House,3323.4, 03-Sep-2013
